Service Area,Service Division,Expense Type,Expense Code,Detailed Expense Type,Payment Date,Transaction Number,Amount Exc Vat,Supplier Name
Assistant Chief Executive,Partnerships & Community Engagement Div.,Supplies and Services,384086,Miscellaneous Expenses,04-Mar-2015,2869266-VOUCHER14NB-EDUR036,"10,000.00",BLACKHALL COMMUNITY ASSOCIATION.
Assistant Chief Executive,Partnerships & Community Engagement Div.,Supplies and Services,384086,Miscellaneous Expenses,04-Mar-2015,2869291-VOUCHER14NB-STAN016,"2,049.00",CATCHGATE COMMUNITY FOOTBALL CLUB.
Assistant Chief Executive,Partnerships & Community Engagement Div.,Cap Exp on Grants & Other Financial Assistance (REFCUS),918004,Contributions to other bodies,04-Mar-2015,2869665-VOUCHER14NB-DCTY017,"9,000.00",UNITE NORTH EAST REGION.
Assistant Chief Executive,Partnerships & Community Engagement Div.,Cap Exp on Grants & Other Financial Assistance (REFCUS),918004,Contributions to other bodies,06-Mar-2015,2870194-VOUCHER14NB-MDUR017,"5,000.00",BUTSFIELD & DISTRICT YOUNG FARMERS CLUB.
Assistant Chief Executive,Partnerships & Community Engagement Div.,Transfer Payments,525030,Other,06-Mar-2015,2870267-VOUCHER14AB-4TOG009,"8,000.00",ENDEAVOUR WOODCRAFTS.
Assistant Chief Executive,Partnerships & Community Engagement Div.,Supplies and Services,384086,Miscellaneous Expenses,06-Mar-2015,2870313-VOUCHER14NB-EDUR044,"2,500.00",HORDEN YOUTH & COMMUNITY ASSOCIATION.
Assistant Chief Executive,Partnerships & Community Engagement Div.,Cap Exp on Grants & Other Financial Assistance (REFCUS),918004,Contributions to other bodies,06-Mar-2015,2870406-VOUCHER14AB-STAN003STANSGF14-01,"2,000.00",MORRISON ROAD ALLOTMENT ASSOCIATION.
Assistant Chief Executive,Partnerships & Community Engagement Div.,Transfer Payments,525030,Other,06-Mar-2015,2870448-VOUCHER14AB-STAN003STANSGF14-07,672.00,OXHILL YOUTH CLUB.
Assistant Chief Executive,Partnerships & Community Engagement Div.,Transfer Payments,525030,Other,06-Mar-2015,2870493-VOUCHER14AB-STAN003STANSGF14-05,"2,000.00",ROCK THE DEN.
Assistant Chief Executive,Partnerships & Community Engagement Div.,Supplies and Services,384086,Miscellaneous Expenses,06-Mar-2015,2870520-VOUCHER14NB-EDUR042,"10,000.00",SHOTTON & DISTRICT COMMUNITY ASSOCIATION.
Assistant Chief Executive,Partnerships & Community Engagement Div.,Transfer Payments,525030,Other,06-Mar-2015,2870534-VOUCHER14AB-4TOG002,"8,370.00",SOCIAL RESOURCE CENTRE LTD.
Assistant Chief Executive,Partnerships & Community Engagement Div.,Cap Exp on Grants & Other Financial Assistance (REFCUS),918004,Contributions to other bodies,09-Mar-2015,2870614-VOUCHER14AB-STAN003STANSGF14-13,"2,000.00",2ND ANNFIELD PLAIN SCOUT GROUP.
Assistant Chief Executive,Partnerships & Community Engagement Div.,Supplies and Services,384085,Miscellaneous Expenses,09-Mar-2015,2870640-ARML10-14,"1,000.00",ASPIRE LEARNING SUPPORT & WELLING CIC.
Assistant Chief Executive,Partnerships & Community Engagement Div.,Cap Exp on Grants & Other Financial Assistance (REFCUS),918004,Contributions to other bodies,09-Mar-2015,2870651-VOUCHER14AB-STAN003STANSGF14-14,"2,000.00",BEAMISH & EAST STANLEY SPORTS CLUB.
Assistant Chief Executive,Partnerships & Community Engagement Div.,Transfer Payments,525030,Other,09-Mar-2015,2870705-VOUCHER14AB-STAN003STANSGF14-16,"1,450.00",CRAGHEAD COLLIERY BAND.
Assistant Chief Executive,Partnerships & Community Engagement Div.,Cap Exp on Grants & Other Financial Assistance (REFCUS),918004,Contributions to other bodies,09-Mar-2015,2870893-VOUCHER14AB-STAN003STANSGF14-22,"1,150.00",QUAKING HOUSES ACTION GROUP.
Assistant Chief Executive,Partnerships & Community Engagement Div.,Transfer Payments,525030,Other,09-Mar-2015,2870894-VOUCHER14AB-STAN003STANSGF14-20,"1,480.00",QUAKING HOUSES VILLAGE HALL ASSOCIATION.
Assistant Chief Executive,Partnerships & Community Engagement Div.,Supplies and Services,384085,Miscellaneous Expenses,09-Mar-2015,2870919-BLEG08-14,800.00,SEATON WITH SLINGLEY PARISH COUNCIL.
Assistant Chief Executive,Partnerships & Community Engagement Div.,Supplies and Services,384085,Miscellaneous Expenses,09-Mar-2015,2870920-ROBJ07-14,500.00,SEDGEFIELD COMMUNITY ASSOCIATION.
Assistant Chief Executive,Planning & Performance Division,Supplies and Services,372009,Subscriptions,09-Mar-2015,2870934-66932,"1,689.00",SNAP SURVEYS.
Assistant Chief Executive,Partnerships & Community Engagement Div.,Transfer Payments,525030,Other,09-Mar-2015,2870940-VOUCHER14AB-STAN003STANSGF14-25,609.00,STANLEY YOUNG PEOPLES CLUB.
Assistant Chief Executive,Partnerships & Community Engagement Div.,Transfer Payments,525030,Other,09-Mar-2015,2870953-VOUCHER14AB-STAN003STANSGF14-26,"1,896.00",TANFIELD LEA & DISTRICT COMMUNITY ASSOCIATION.
Assistant Chief Executive,Partnerships & Community Engagement Div.,Transfer Payments,525030,Other,09-Mar-2015,2870961-VOUCHER14AB-STAN003STANSGF14-23,900.00,THE ACTIVITY DEN.
Assistant Chief Executive,Partnerships & Community Engagement Div.,Supplies and Services,384085,Miscellaneous Expenses,09-Mar-2015,2870979-MARC07-14,500.00,VIEW LANE BOWLS CLUB.
Assistant Chief Executive,Partnerships & Community Engagement Div.,Cap Exp on Grants & Other Financial Assistance (REFCUS),918004,Contributions to other bodies,10-Mar-2015,2871678-VOUCHER14NB-CHES012,"2,000.00",BULLION COMMUNITY RESOURCE CENTRE.
Assistant Chief Executive,Partnerships & Community Engagement Div.,Cap Exp on Grants & Other Financial Assistance (REFCUS),918004,Contributions to other bodies,10-Mar-2015,2871678-VOUCHER14NB-CHES014,"9,000.00",BULLION COMMUNITY RESOURCE CENTRE.
Assistant Chief Executive,Partnerships & Community Engagement Div.,Cap Exp on Grants & Other Financial Assistance (REFCUS),918004,Contributions to other bodies,10-Mar-2015,2871679-VOUCHER14NB-DVLY012,"2,000.00",BURNOPFIELD JUNIORS.
Assistant Chief Executive,Planning & Performance Division,Supplies and Services,338099,Services,10-Mar-2015,2871962-3809,"2,062.50",READING ROOM MANCHESTER.
Assistant Chief Executive,Partnerships & Community Engagement Div.,Cap Exp on Grants & Other Financial Assistance (REFCUS),918004,Contributions to other bodies,11-Mar-2015,2872134-VOUCHER14NB-DCTY029,"6,000.00",BOW TRUST (DURHAM) LTD.
Assistant Chief Executive,Partnerships & Community Engagement Div.,Supplies and Services,384086,Miscellaneous Expenses,11-Mar-2015,2872145-VOUCHER12NB-DVLY025,"25,000.00",BURNOPFIELD COMMUNITY ASSOCIATION.
Assistant Chief Executive,Planning & Performance Division,Employees,040149,Recruitment Instruction and Training,11-Mar-2015,2872161-41001986,"2,250.00",CENTRE FOR PUBLIC SCRUTINY.
Assistant Chief Executive,Partnerships & Community Engagement Div.,Transfer Payments,525030,Other,11-Mar-2015,2872215-VOUCHER14AB-EDUR004/14WR,"35,806.00",EAST DURHAM COMMUNITY DEVELOPMENT TRUST LTD.
Assistant Chief Executive,Policy & Communications Division,Employees,040149,Recruitment Instruction and Training,12-Mar-2015,2872509-VIDEO/EDITING-FEB19/20,770.00,ANDREW GLOVER T/A LUSH PLACES MEDIA LTD.
Assistant Chief Executive,Partnerships & Community Engagement Div.,Transfer Payments,525030,Other,12-Mar-2015,2872558-VOUCHER14AB-TEES001SGF016,922.00,EVENWOOD ROADRUNNERS.
Assistant Chief Executive,Partnerships & Community Engagement Div.,Transfer Payments,525030,Other,13-Mar-2015,2872748-VOUCHER12AB-MDUR004,"12,460.00",AGE UK COUNTY DURHAM.
Assistant Chief Executive,Partnerships & Community Engagement Div.,Supplies and Services,384086,Miscellaneous Expenses,13-Mar-2015,2872850-VOUCHER14NB-DVLY007,"4,000.00",CONSETT YMCA.
Assistant Chief Executive,Policy & Communications Division,Supplies and Services,332029,Printing Stationery and Gen Off Exps,16-Mar-2015,2873314-50176,"13,438.38",ACORN WEB OFFSET LTD.
Assistant Chief Executive,Partnerships & Community Engagement Div.,Supplies and Services,384085,Miscellaneous Expenses,16-Mar-2015,2873354-ROBS09-14OLIP09-14,"1,000.00",BENFIELDSIDE BLACKHILL BRIDGEHILL & SHOTLEY BRIDGE COMMUNITY PARTNERSHIP.
Assistant Chief Executive,Partnerships & Community Engagement Div.,Supplies and Services,384085,Miscellaneous Expenses,16-Mar-2015,2873359-GELI10-14LAWP12-14,700.00,BISHOP AUCKLAND TABLE TENNIS CLUB.
Assistant Chief Executive,Partnerships & Community Engagement Div.,Supplies and Services,384085,Miscellaneous Expenses,16-Mar-2015,2873365-BLAJ14-14PLEM13-14,600.00,BOWBURN COMMUNITY ASSOCIATION.
Assistant Chief Executive,Partnerships & Community Engagement Div.,Supplies and Services,384085,Miscellaneous Expenses,16-Mar-2015,2873520-BUCJ06-14,900.00,GREATER WILLINGTON TOWN COUNCIL.
Assistant Chief Executive,Planning & Performance Division,Supplies and Services,338099,Services,16-Mar-2015,2873739-3818,"3,750.00",READING ROOM MANCHESTER.
Assistant Chief Executive,Partnerships & Community Engagement Div.,Supplies and Services,384086,Miscellaneous Expenses,17-Mar-2015,2874591-VOUCHER14NB-CHES021,"4,000.00",CHESTER WEST & CENTRAL COMMUNITY PROJECT.
Assistant Chief Executive,Partnerships & Community Engagement Div.,Cap Exp on Grants & Other Financial Assistance (REFCUS),918004,Contributions to other bodies,17-Mar-2015,2874635-VOUCHER14NB-EDUR041,"2,000.00",EAST DURHAM HOMES.
Assistant Chief Executive,Partnerships & Community Engagement Div.,Premises,106082,Centrally Controlled Rep and Maint,17-Mar-2015,2874702-9719,"12,664.76",JC MAINTENANCE SERVICES LTD.
Assistant Chief Executive,Partnerships & Community Engagement Div.,Transfer Payments,525030,Other,19-Mar-2015,2875349-VOUCHER14AB-DVLY015/14PH-DVLY002,"10,000.00",AGE UK COUNTY DURHAM.
Assistant Chief Executive,Partnerships & Community Engagement Div.,Transfer Payments,525030,Other,19-Mar-2015,2875356-VOUCHER14AB-EDUR006/14PH-EDUR001,"17,000.00",REDACTED - PAYMENT TO INDIVIDUAL
Assistant Chief Executive,Partnerships & Community Engagement Div.,Transfer Payments,525030,Other,19-Mar-2015,2875413-VOUCHER14PH-4TOG001,"10,000.00",CORNFORTH PARTNERSHIP.
Assistant Chief Executive,Partnerships & Community Engagement Div.,Transfer Payments,525030,Other,19-Mar-2015,2875498-VOUCHER14AB-3TWN014/14PH-3TWN001,"21,038.00",JACK DRUM ARTS LTD.
Assistant Chief Executive,Partnerships & Community Engagement Div.,Transfer Payments,525030,Other,19-Mar-2015,2875514-VOUCHER14PH-TEES004,"3,462.00",LEAP IN TEESDALE.
Assistant Chief Executive,Policy & Communications Division,Supplies and Services,312010,Newspapers Books and Periodicals,19-Mar-2015,2875550-270366/0,"1,761.14",NATIONAL LEAFLET CO LTD.
Assistant Chief Executive,Policy & Communications Division,Supplies and Services,312010,Newspapers Books and Periodicals,19-Mar-2015,2875550-270971,"15,264.97",NATIONAL LEAFLET CO LTD.
Assistant Chief Executive,Policy & Communications Division,Supplies and Services,312009,Newspapers Books and Periodicals,20-Mar-2015,2875787-01,594.00,COUNTY DURHAM TALKING NEWSPAPER.
Assistant Chief Executive,Partnerships & Community Engagement Div.,Cap Exp on Grants & Other Financial Assistance (REFCUS),918004,Contributions to other bodies,20-Mar-2015,2875857-VOUCHER14NB-EDUR043,"2,500.00",HORDEN YOUTH & COMMUNITY ASSOCIATION.
Assistant Chief Executive,Partnerships & Community Engagement Div.,Cap Exp on Grants & Other Financial Assistance (REFCUS),918004,Contributions to other bodies,20-Mar-2015,2875962-VOUCHER14AB-GAMP010,"13,146.00",PIONEERING CARE PARTNERSHIP.
Assistant Chief Executive,Partnerships & Community Engagement Div.,Cap Exp on Grants & Other Financial Assistance (REFCUS),918004,Contributions to other bodies,20-Mar-2015,2876001-VOUCHER14NB-DCTY022,"2,012.00",SHERBURN VILLAGE PARISH COUNCIL.
Assistant Chief Executive,Partnerships & Community Engagement Div.,Cap Exp on Grants & Other Financial Assistance (REFCUS),918004,Contributions to other bodies,20-Mar-2015,2876019-VOUCHER12NB-TEES026,"28,380.00",STAINTON GROVE COMMUNITY ASSOCIATION.
Assistant Chief Executive,Partnerships & Community Engagement Div.,Supplies and Services,384085,Miscellaneous Expenses,23-Mar-2015,2876161-HENS14-14MARL15-14,600.00,CHESTER LE STREET CENTRAL RESIDENTS ASSOCIATION.
Assistant Chief Executive,Partnerships & Community Engagement Div.,Transfer Payments,525030,Other,23-Mar-2015,2876216-VOUCHER14AB-STAN012,"7,000.00",DURHAM & DARLINGTON FIRE & RESCUE.
Assistant Chief Executive,Partnerships & Community Engagement Div.,Supplies and Services,384085,Miscellaneous Expenses,23-Mar-2015,2876251-HODM04-14,500.00,FRIENDS OF ANNFIELD PLAIN JUNIOR SCHOOL.
Assistant Chief Executive,Policy & Communications Division,Supplies and Services,384199,Miscellaneous Expenses,23-Mar-2015,2876350-40140142,500.00,LOCAL GOVERNMENT ASSOCIATION.
Assistant Chief Executive,Partnerships & Community Engagement Div.,Transfer Payments,525030,Other,24-Mar-2015,2877267-VOUCHER14WR-DCTY001,"9,592.00",CITIZENS ADVICE COUNTY DURHAM.
Assistant Chief Executive,Partnerships & Community Engagement Div.,Supplies and Services,384085,Miscellaneous Expenses,24-Mar-2015,2877277-WATA18-14TEMO17-14,500.00,CONSETT BRASS.
Assistant Chief Executive,Partnerships & Community Engagement Div.,Supplies and Services,384085,Miscellaneous Expenses,24-Mar-2015,2877356-BELA06-14WILA11-14,620.00,GREAT LUMLEY TODDLER GROUP.
Assistant Chief Executive,Partnerships & Community Engagement Div.,Cap Exp on Grants & Other Financial Assistance (REFCUS),918004,Contributions to other bodies,24-Mar-2015,2877556-VOUCHER14AB-WEAR007,"10,000.00",STANHOPE SWIMMING POOL LTD.
Assistant Chief Executive,Partnerships & Community Engagement Div.,Supplies and Services,384085,Miscellaneous Expenses,24-Mar-2015,2877621-LEEJ08-14,500.00,WOODHOUSE CLOSE CHURCH COMMUNITY CENTRE.
Assistant Chief Executive,Partnerships & Community Engagement Div.,Supplies and Services,384086,Miscellaneous Expenses,25-Mar-2015,2877774-VOUCHER14NB-4TOG015,"5,000.00",ENDEAVOUR WOODCRAFTS.
Assistant Chief Executive,Partnerships & Community Engagement Div.,Supplies and Services,336005,Advertising,25-Mar-2015,2877927-285165/0,"1,298.92",NATIONAL LEAFLET CO LTD.
Assistant Chief Executive,Partnerships & Community Engagement Div.,Supplies and Services,384086,Miscellaneous Expenses,25-Mar-2015,2877961-VOUCHER14NB-CHES028,"6,480.00",PARK VIEW COMMUNITY ASSOCIATION.
Assistant Chief Executive,Partnerships & Community Engagement Div.,Transfer Payments,525030,Other,25-Mar-2015,2877972-12699/15,"17,621.75",PIONEERING CARE PARTNERSHIP.
Assistant Chief Executive,Partnerships & Community Engagement Div.,Transfer Payments,525030,Other,25-Mar-2015,2877972-12778/15,"17,621.75",PIONEERING CARE PARTNERSHIP.
Assistant Chief Executive,ACE Financing,Creditors,952011,Creditors-Government grants,26-Mar-2015,2879665-ACE-03-2051-003,"25,000.00",1338 SEAHAM SQUADRON ATC CIVILION CMT.
Assistant Chief Executive,ACE Financing,Creditors,952011,Creditors-Government grants,26-Mar-2015,2879666-ACE-03-2015-001,"25,000.00",1507 (CHESTER LE STREET) SQUADRON.
Assistant Chief Executive,ACE Financing,Creditors,952011,Creditors-Government grants,26-Mar-2015,2879666-ACE-03-2015-002,"5,000.00",1507 (CHESTER LE STREET) SQUADRON.
Assistant Chief Executive,Partnerships & Community Engagement Div.,Transfer Payments,525030,Other,26-Mar-2015,2879714-VOUCHER14PH-CHES001,"3,644.00",CITIZENS ADVICE COUNTY DURHAM.
Assistant Chief Executive,ACE Financing,Creditors,952011,Creditors-Government grants,26-Mar-2015,2879744-ACE-03-2015-004,"25,000.00",DURHAM ARMY CADET FORCE.
Assistant Chief Executive,Partnerships & Community Engagement Div.,Supplies and Services,384086,Miscellaneous Expenses,26-Mar-2015,2879846-VOUCHER14NB-EDUR034,"2,000.00",PETERLEE AMATEUR SWIMMING CLUB.
Assistant Chief Executive,Partnerships & Community Engagement Div.,Transfer Payments,525030,Other,26-Mar-2015,2879854-12959/15,"17,621.75",PIONEERING CARE PARTNERSHIP.
Assistant Chief Executive,Partnerships & Community Engagement Div.,Transfer Payments,525030,Other,26-Mar-2015,2879854-13022/15,"17,621.75",PIONEERING CARE PARTNERSHIP.
Assistant Chief Executive,Partnerships & Community Engagement Div.,Transfer Payments,525030,Other,26-Mar-2015,2879858-VOUCHERWRAIN7,500.00,RAINTON GATE RAINBOWS & BROWNIES.
Assistant Chief Executive,Partnerships & Community Engagement Div.,Transfer Payments,525030,Other,26-Mar-2015,2879917-VOUCHERWRAIN1,"3,846.05",WEST RAINTON & LEAMSIDE COMMUNITY ASSOCIATION.
Assistant Chief Executive,Partnerships & Community Engagement Div.,Transfer Payments,525030,Other,26-Mar-2015,2879918-VOUCHERWRAIN9,776.00,WEST RAINTON & LEAMSIDE GREEN GROUP.
Assistant Chief Executive,Partnerships & Community Engagement Div.,Transfer Payments,525030,Other,26-Mar-2015,2879919-VOUCHERWRAIN5,"5,000.00",WEST RAINTON & LEAMSIDE HISTORY GROUP.
Assistant Chief Executive,Partnerships & Community Engagement Div.,Transfer Payments,525030,Other,26-Mar-2015,2879920-VOUCHERWRAIN6,"3,400.00",WEST RAINTON PARISH COUNCIL.
Assistant Chief Executive,Partnerships & Community Engagement Div.,Transfer Payments,525030,Other,26-Mar-2015,2879921-VOUCHERWRAIN2,"3,500.00",WEST RAINTON PLAYSCHEME.
Assistant Chief Executive,Partnerships & Community Engagement Div.,Transfer Payments,525030,Other,26-Mar-2015,2879922-VOUCHERWRAIN4,"5,000.00",WEST RAINTON PRIMARY SCHOOL PTA.
Assistant Chief Executive,Partnerships & Community Engagement Div.,Cap Exp on Grants & Other Financial Assistance (REFCUS),918004,Contributions to other bodies,26-Mar-2015,2879926-ACE-03-2015-005,"10,000.00",WHEATLEY HOUSE MOVING FORWARD.
Assistant Chief Executive,Partnerships & Community Engagement Div.,Supplies and Services,384086,Miscellaneous Expenses,26-Mar-2015,2879933-VOUCHER14NB-BASH007,"5,200.00",WOODHOUSE CLOSE CHURCH COMMUNITY CENTRE.
Assistant Chief Executive,Partnerships & Community Engagement Div.,Transfer Payments,525030,Other,27-Mar-2015,2880440-VOUCHERWRAIN8,800.00,WEST RAINTON & LEAMSIDE PARTNERSHIP.
Assistant Chief Executive,Policy & Communications Division,Supplies and Services,332029,Printing Stationery and Gen Off Exps,30-Mar-2015,2880467-50582,"15,133.13",ACORN WEB OFFSET LTD.
Assistant Chief Executive,Partnerships & Community Engagement Div.,Transfer Payments,525030,Other,30-Mar-2015,2880542-VOUCHEROURPLACE1,"3,960.00",CREATIVE YOUTH OPPORTUNITIES.
Assistant Chief Executive,Partnerships & Community Engagement Div.,Transfer Payments,525030,Other,30-Mar-2015,2880550-VOUCHEROURPLACE2,"4,000.00",DAWDON YOUTH & COMMUNITY CENTRE.
Assistant Chief Executive,Partnerships & Community Engagement Div.,Transfer Payments,525030,Other,30-Mar-2015,2880603-VOUCHEROURPLACE3,"2,634.00",HOME START SEAHAM.
Assistant Chief Executive,Partnerships & Community Engagement Div.,Transfer Payments,525030,Other,30-Mar-2015,2880707-VOUCHEROURPLACE4,"4,000.00",PARKSIDE & DISTRICT COMMUNITY ASSOCIATION.
Assistant Chief Executive,Partnerships & Community Engagement Div.,Construction Work,908105,Construction work,30-Mar-2015,2880743-1744,"5,812.48",SAFE STRIP UK LTD.
Assistant Chief Executive,Partnerships & Community Engagement Div.,Transfer Payments,525030,Other,30-Mar-2015,2880745-VOUCHEROURPLACE5,"2,500.00",SEAHAM PARK CRICKET CLUB.
Assistant Chief Executive,Partnerships & Community Engagement Div.,Cap Exp on Grants & Other Financial Assistance (REFCUS),918004,Contributions to other bodies,30-Mar-2015,2880758-VOUCHER14AB-STAN003STANSGF14-24,500.00,STANLEY WOODCRAFT FOLK.
Assistant Chief Executive,Partnerships & Community Engagement Div.,Transfer Payments,525030,Other,30-Mar-2015,2880804-VOUCHER14AB-STAN003STANSGF14-10,"1,989.00",WILLOW BURN HOSPICE.
Assistant Chief Executive,Partnerships & Community Engagement Div.,Cap Exp on Grants & Other Financial Assistance (REFCUS),918004,Contributions to other bodies,31-Mar-2015,2881437-VOUCHER14AB-CHES01CHESPB15-02,"3,000.00",1ST BURNMOOR SCOUTS GROUP.
Assistant Chief Executive,Partnerships & Community Engagement Div.,Cap Exp on Grants & Other Financial Assistance (REFCUS),918004,Contributions to other bodies,31-Mar-2015,2881471-VOUCHER14AB-CHES013CHESPB15-09,"2,540.00",BOURNMOOR CRICKET CLUB.
Assistant Chief Executive,Partnerships & Community Engagement Div.,Cap Exp on Grants & Other Financial Assistance (REFCUS),918004,Contributions to other bodies,31-Mar-2015,2881484-VOUCHER14AB-CHES013CHESPB15-04,"3,000.00",CHESTER LE STREET AMATEUR ROWING CLUB.
Assistant Chief Executive,Partnerships & Community Engagement Div.,Cap Exp on Grants & Other Financial Assistance (REFCUS),918004,Contributions to other bodies,31-Mar-2015,2881485-VOUCHER14AB-CHES013CHESPB15-06,"3,000.00",CHESTER LE STREET COMMUNITY ASSOCIATION.
Assistant Chief Executive,Partnerships & Community Engagement Div.,Cap Exp on Grants & Other Financial Assistance (REFCUS),918004,Contributions to other bodies,31-Mar-2015,2881486-VOUCHER14AB-CHES013CHESPB15-10,"2,500.00",CHESTER LE STREET JUNIOR SCHOOLS FA.
Assistant Chief Executive,Partnerships & Community Engagement Div.,Transfer Payments,525030,Other,31-Mar-2015,2881503-VOUCHER14AB-4TOG007,"8,000.00",CORNFORTH PARTNERSHIP.
Assistant Chief Executive,Partnerships & Community Engagement Div.,Premises,125009,Rents,31-Mar-2015,2881505-ACE-03-2015-010,800.00,COUNDON & LEEHOLME COMMUNITY ASSOCIATION.
Assistant Chief Executive,Partnerships & Community Engagement Div.,Premises,125009,Rents,31-Mar-2015,2881517-ACE-03-2015-009,800.00,DR JOSEPH CHANDY CHARITABLE TRUST.
Assistant Chief Executive,Partnerships & Community Engagement Div.,Supplies and Services,384086,Miscellaneous Expenses,31-Mar-2015,2881539-VOUCHER14NB-4TOG023,"5,500.00",FERRYHILL TOWN COUNCIL.
Assistant Chief Executive,Partnerships & Community Engagement Div.,Cap Exp on Grants & Other Financial Assistance (REFCUS),918004,Contributions to other bodies,31-Mar-2015,2881549-VOUCHER14AB-CHES013CHESPB15-08,"2,468.00",GIRL GUIDING CHESTER LE STREET.
Assistant Chief Executive,Partnerships & Community Engagement Div.,Cap Exp on Grants & Other Financial Assistance (REFCUS),918004,Contributions to other bodies,31-Mar-2015,2881554-VOUCHER14AB-CHES013CHESPB15-05,"3,000.00",GREAT LUMLEY COMMUNITY ASSOCIATION.
Assistant Chief Executive,Partnerships & Community Engagement Div.,Cap Exp on Grants & Other Financial Assistance (REFCUS),918004,Contributions to other bodies,31-Mar-2015,2881570-VOUCHER14AB-CHES013CHESPB15-01,"2,949.00",IF U CARE SHARE.
Assistant Chief Executive,Partnerships & Community Engagement Div.,Cap Exp on Grants & Other Financial Assistance (REFCUS),918004,Contributions to other bodies,31-Mar-2015,2881598-VOUCHER14AB-CHES013CHESPB15-03,"3,000.00",LUMLEY FC.
Assistant Chief Executive,Partnerships & Community Engagement Div.,Cap Exp on Grants & Other Financial Assistance (REFCUS),918004,Contributions to other bodies,31-Mar-2015,2881658-VOUCHER14AB-CHES013CHESPB15-07,"1,700.00",ROYAL BRITISH LEGION NORTHUMBRIA.
Assistant Chief Executive,Partnerships & Community Engagement Div.,Premises,125009,Rents,31-Mar-2015,2881678-ACE-03-2015-008,928.40,STAINTON GROVE COMMUNITY ASSOCIATION.
Assistant Chief Executive,Partnerships & Community Engagement Div.,Transfer Payments,525030,Other,31-Mar-2015,2881696-VOUCHER14AB-STAN011,"5,000.00",THE ACTIVITY DEN.
Children and Adult Services,Central Charges (CYPS),Cap Exp on Grants & Other Financial Assistance (REFCUS),918401,Capital grants,16-Mar-2015,2873533-CAS-03-2015-072,"2,894.00",HAZEL DENE CHILDCARE LTD.
Children and Adult Services,Central Charges (CYPS),Income,740299,Other Income,16-Mar-2015,2873661-10369,500.00,NO WAY TRUST LTD.
Children and Adult Services,Central Charges (CYPS),Supplies and Services,384199,Miscellaneous Expenses,16-Mar-2015,2873831-15594.,610.79,TEESDALE EVENT & SITE SERVICES LTD.
Children and Adult Services,Central Charges (CYPS),Creditors,952132,D.A.S.H.,24-Mar-2015,2877412-1000377,"1,265.50",KING JAMES I ACADEMY.
Children and Adult Services,Central Charges (CYPS),Cap Exp on Grants & Other Financial Assistance (REFCUS),918401,Capital grants,25-Mar-2015,2877883-CAS-03-2015-115,"50,000.00",LITTLE BUNDLES OF MURTON LTD (RIBBON DAYCARE).
Children and Adult Services,Central/Other,Debtors,930133,Debtor IC+ Out of Hours - Home Care,19-Mar-2015,2875486-DOO12,"8,333.33",HOMECARE SUPPORT LTD T/A THE HUMAN SUPPORT GROUP.
Children and Adult Services,Central/Other,Supplies and Services,338099,Services,25-Mar-2015,2877802-102058076,"3,799.89",GATESHEAD COUNCIL.
Children and Adult Services,Central/Other,Debtors,930024,Debtor-free nursing care,26-Mar-2015,2878146-2226952,554.45,BISHOPSGATE LODGE.
Children and Adult Services,Central/Other,Debtors,930024,Debtor-free nursing care,26-Mar-2015,2878149-2226516,554.45,BRANCEPETH COURT.
Children and Adult Services,Central/Other,Debtors,930024,Debtor-free nursing care,26-Mar-2015,2878170-2225958,538.61,DEFOE COURT.
Children and Adult Services,Central/Other,Debtors,930024,Debtor-free nursing care,26-Mar-2015,2878173-2224896,506.92,DEVONSHIRE HOUSE.
Children and Adult Services,Central/Other,Debtors,930024,Debtor-free nursing care,26-Mar-2015,2878173-2225322,"1,751.21",DEVONSHIRE HOUSE.
Children and Adult Services,Central/Other,Debtors,930024,Debtor-free nursing care,26-Mar-2015,2878174-2227178,776.23,DIPTON CARE HOME LTD.
Children and Adult Services,Central/Other,Debtors,930024,Debtor-free nursing care,26-Mar-2015,2878189-2227309,871.28,EMBRACE ALL LTD.
Children and Adult Services,Central/Other,Debtors,930024,Debtor-free nursing care,26-Mar-2015,2878190-2225945,"1,742.55",EMBRACE ALL LTD.
Children and Adult Services,Central/Other,Debtors,930024,Debtor-free nursing care,26-Mar-2015,2878201-2226906,"1,346.52",GAINFORD CARE HOMES LTD.
Children and Adult Services,Central/Other,Debtors,930024,Debtor-free nursing care,26-Mar-2015,2878224-2226288,610.44,KIMBLESWORTH NURSING HOME.
Children and Adult Services,Central/Other,Debtors,930024,Debtor-free nursing care,26-Mar-2015,2878226-2225606,617.81,KINGSWAY CARE HOME LTD.
Children and Adult Services,Central/Other,Debtors,930024,Debtor-free nursing care,26-Mar-2015,2878228-2227422,"1,077.22",LAKESIDE CARE CENTRE.
Children and Adult Services,Central/Other,Debtors,930024,Debtor-free nursing care,26-Mar-2015,2878233-2227152,"1,489.09",LEAZES HALL RESIDENTIAL & NURSING HOME.
Children and Adult Services,Central/Other,Debtors,930024,Debtor-free nursing care,26-Mar-2015,2878245-2227251,"2,376.21",LINDISFARNE.
Children and Adult Services,Central/Other,Debtors,930024,Debtor-free nursing care,26-Mar-2015,2878245-2227379,"1,647.51",LINDISFARNE.
Children and Adult Services,Central/Other,Debtors,930024,Debtor-free nursing care,26-Mar-2015,2878250-2225095,649.50,LYONS COURT CARE HOME.
Children and Adult Services,Central/Other,Debtors,930024,Debtor-free nursing care,26-Mar-2015,2878317-2227381,"1,219.79",PREMIER CARE HOMES LTD.
Children and Adult Services,Central/Other,Debtors,930024,Debtor-free nursing care,26-Mar-2015,2878321-2227142,501.43,RAYSON HOMES LTD.
Children and Adult Services,Central/Other,Debtors,930024,Debtor-free nursing care,26-Mar-2015,2878356-2226606,966.33,ST MARYS NURSING HOME.
Children and Adult Services,Central/Other,Debtors,930024,Debtor-free nursing care,26-Mar-2015,2878361-2225187,966.33,TAMARIS HEALTHCARE LTD.
Children and Adult Services,Central/Other,Debtors,930024,Debtor-free nursing care,26-Mar-2015,2878367-2222841,610.44,TAMARIS HEALTHCARE LTD.
Children and Adult Services,Central/Other,Debtors,930024,Debtor-free nursing care,26-Mar-2015,2878408-2227217,538.61,YODEN HALL NURSING HOME.
Children and Adult Services,Childrens Services,Supplies and Services,384302,Miscellaneous Expenses,02-Mar-2015,2868124,"3,000.00",SEAHAM YOUTH CENTRE.
Children and Adult Services,Childrens Services,Supplies and Services,384638,Miscellaneous Expenses,02-Mar-2015,2868095-0000020275,540.00,NORTH EAST AUTISM SOCIETY.
Children and Adult Services,Childrens Services,Supplies and Services,384638,Miscellaneous Expenses,02-Mar-2015,2868095-0000020276,540.00,NORTH EAST AUTISM SOCIETY.
Children and Adult Services,Childrens Services,Supplies and Services,384638,Miscellaneous Expenses,02-Mar-2015,2868095-0000020281,661.50,NORTH EAST AUTISM SOCIETY.
Children and Adult Services,Childrens Services,Supplies and Services,384638,Miscellaneous Expenses,02-Mar-2015,2868095-0000020285,"1,122.75",NORTH EAST AUTISM SOCIETY.
Children and Adult Services,Childrens Services,Supplies and Services,384638,Miscellaneous Expenses,02-Mar-2015,2868095-0000020328,769.50,NORTH EAST AUTISM SOCIETY.
Children and Adult Services,Childrens Services,Supplies and Services,384638,Miscellaneous Expenses,02-Mar-2015,2868095-0000020338,"3,417.75",NORTH EAST AUTISM SOCIETY.
Children and Adult Services,Childrens Services,Supplies and Services,384638,Miscellaneous Expenses,02-Mar-2015,2868095-0000020339,"1,005.75",NORTH EAST AUTISM SOCIETY.
Children and Adult Services,Childrens Services,Supplies and Services,384638,Miscellaneous Expenses,02-Mar-2015,2868095-0000020341,"1,143.00",NORTH EAST AUTISM SOCIETY.
Children and Adult Services,Childrens Services,Supplies and Services,384638,Miscellaneous Expenses,02-Mar-2015,2868095-0000020347,"1,080.00",NORTH EAST AUTISM SOCIETY.
Children and Adult Services,Childrens Services,Supplies and Services,384638,Miscellaneous Expenses,02-Mar-2015,2868095-0000020348,607.50,NORTH EAST AUTISM SOCIETY.
Children and Adult Services,Childrens Services,Supplies and Services,384638,Miscellaneous Expenses,02-Mar-2015,2868095-0000020350,648.00,NORTH EAST AUTISM SOCIETY.
Children and Adult Services,Childrens Services,Supplies and Services,384638,Miscellaneous Expenses,02-Mar-2015,2868095-0000020351,"1,152.00",NORTH EAST AUTISM SOCIETY.
Children and Adult Services,Childrens Services,Supplies and Services,384638,Miscellaneous Expenses,02-Mar-2015,2868095-0000020453,679.39,NORTH EAST AUTISM SOCIETY.
Children and Adult Services,Childrens Services,Supplies and Services,384638,Miscellaneous Expenses,02-Mar-2015,2868095-0000020457,590.49,NORTH EAST AUTISM SOCIETY.
Children and Adult Services,Childrens Services,Supplies and Services,384302,Miscellaneous Expenses,03-Mar-2015,2869107,"3,000.00",SEAHAM YOUTH CENTRE.
Children and Adult Services,Childrens Services,Third Party Payments,440001,Other Third Party Payments,03-Mar-2015,238516-1010374,766.92,REDACTED - PAYMENT TO INDIVIDUAL
Children and Adult Services,Childrens Services,Third Party Payments,440016,Other Third Party Payments,03-Mar-2015,2868254-1010749,695.29,REDACTED - PAYMENT TO INDIVIDUAL
Children and Adult Services,Childrens Services,Third Party Payments,440015,Other Third Party Payments,03-Mar-2015,2868271-1010687,"1,047.21",REDACTED - PAYMENT TO INDIVIDUAL
Children and Adult Services,Childrens Services,Third Party Payments,440015,Other Third Party Payments,03-Mar-2015,2868271-1010688,992.68,REDACTED - PAYMENT TO INDIVIDUAL
Children and Adult Services,Childrens Services,Third Party Payments,440032,Other Third Party Payments,03-Mar-2015,2868304-1011037,"1,755.92",REDACTED - PAYMENT TO INDIVIDUAL
Children and Adult Services,Childrens Services,Third Party Payments,440031,Other Third Party Payments,03-Mar-2015,2868363-1010902,575.71,REDACTED - PAYMENT TO INDIVIDUAL
Children and Adult Services,Childrens Services,Third Party Payments,440036,Other Third Party Payments,03-Mar-2015,2868373-1010880,769.65,REDACTED - PAYMENT TO INDIVIDUAL
Children and Adult Services,Childrens Services,Third Party Payments,440036,Other Third Party Payments,03-Mar-2015,2868551-1010881,733.00,REDACTED - PAYMENT TO INDIVIDUAL
Children and Adult Services,Childrens Services,Third Party Payments,440036,Other Third Party Payments,03-Mar-2015,2868746-1010882,733.00,REDACTED - PAYMENT TO INDIVIDUAL
Children and Adult Services,Childrens Services,Supplies and Services,338044,Services,03-Mar-2015,2868775-128719,543.00,ALERE TOXICOLOGY PLC.
Children and Adult Services,Childrens Services,Transport,235073,Public Transport,03-Mar-2015,2868785-108497,885.00,ARRIVA NORTH EAST LTD.
Children and Adult Services,Childrens Services,Supplies and Services,338027,Services,03-Mar-2015,2868806-00001,"2,000.00",BRIGHT FUTURES TRUST CIC.
Children and Adult Services,Childrens Services,Employees,080025,Agency Staff,03-Mar-2015,2868823-2302237,"1,697.50",CELSIAN.
Children and Adult Services,Childrens Services,Employees,080025,Agency Staff,03-Mar-2015,2868823-2302642,520.00,CELSIAN.
Children and Adult Services,Childrens Services,Third Party Payments,479101,Purchase of Care,03-Mar-2015,2868833-3980008157,"21,906.37",CO DURHAM & DARLINGTON NHS FOUNDATION TRUST.
Children and Adult Services,Childrens Services,Supplies and Services,332047,Printing Stationery and Gen Off Exps,03-Mar-2015,2868942-2249930,628.60,INSIGHT DIRECT (UK) LTD.
Children and Adult Services,Childrens Services,Premises,108099,Service Repairs and Maintenance,03-Mar-2015,2869137-JE00783/TL/EP,"1,179.71",T MANNERS & SONS LTD.
Children and Adult Services,Childrens Services,Employees,080025,Agency Staff,03-Mar-2015,2869143-979413,758.60,TEACHING PERSONNEL LTD.
Children and Adult Services,Childrens Services,Employees,080025,Agency Staff,03-Mar-2015,2869187-145687,950.00,VISION FOR EDUCATION LTD.
Children and Adult Services,Childrens Services,Supplies and Services,304403,Equipment and Materials,04-Mar-2015,238587-4100465109,500.00,NORTH WEST DURHAM METHODIST CIRCUIT.
Children and Adult Services,Childrens Services,Transport,230007,Contract Hire,04-Mar-2015,238604-NDA/5,"2,042.31",T GILLINGHAM.
Children and Adult Services,Childrens Services,Premises,108099,Service Repairs and Maintenance,04-Mar-2015,238612-AR031834,531.66,VOKES AIR LTD.
Children and Adult Services,Childrens Services,Premises,108135,Service Repairs and Maintenance,04-Mar-2015,2869229-28897195-61,686.00,ADT FIRE & SECURITY PLC.
Children and Adult Services,Childrens Services,Employees,080025,Agency Staff,04-Mar-2015,2869339-325071,"166,892.68",DE POEL MANAGED SERVICES LTD.
Children and Adult Services,Childrens Services,Transport,230007,Contract Hire,04-Mar-2015,2869385-1666,"1,050.00",GEM TRAVEL.
Children and Adult Services,Childrens Services,Premises,125009,Rents,04-Mar-2015,2869399-GH3746,"1,010.59",GROUNDWORK NORTH EAST.
Children and Adult Services,Childrens Services,Premises,125009,Rents,04-Mar-2015,2869399-GH3765,"1,010.59",GROUNDWORK NORTH EAST.
Children and Adult Services,Childrens Services,Supplies and Services,304259,Equipment and Materials,04-Mar-2015,2869400-INV0157525,504.00,GV MULTI MEDIA LTD.
Children and Adult Services,Childrens Services,Transport,230007,Contract Hire,04-Mar-2015,2869409-F1290,"1,198.50",HUNTER BROTHERS (TANTOBIE) LTD.
Children and Adult Services,Childrens Services,Transport,230008,Contract Hire,04-Mar-2015,2869469-20,690.00,LUMLEY TAXIS.
Children and Adult Services,Childrens Services,Supplies and Services,308011,Furniture,04-Mar-2015,2869485-120,"1,375.00",MERIDIAN UPHOLSTERY.
Children and Adult Services,Childrens Services,Supplies and Services,340001,Postages,04-Mar-2015,2869509-CAS-03-2015-004,500.00,NEOPOST LTD.
Children and Adult Services,Childrens Services,Transport,230008,Contract Hire,04-Mar-2015,2869511-SC0006,855.00,NEV`S CABS.
Children and Adult Services,Childrens Services,Third Party Payments,486023,Service Level Agreements,05-Mar-2015,2869808,800.00,DJ EVANS YOUTH CLUB.
Children and Adult Services,Childrens Services,Supplies and Services,336005,Advertising,05-Mar-2015,2869782-SNE010100,"1,433.00",COMMUNICORP UK.
Children and Adult Services,Childrens Services,Supplies and Services,384491,Miscellaneous Expenses,05-Mar-2015,2869788-17896,900.00,CORECARE LTD..
Children and Adult Services,Childrens Services,Third Party Payments,440015,Other Third Party Payments,05-Mar-2015,2869793-CAS-03-2015-002,"2,153.74",CW BOOTH & CO.
Children and Adult Services,Childrens Services,Third Party Payments,486023,Service Level Agreements,05-Mar-2015,2869806-12022015TAS,500.00,DERIC YOUTH BUS PROJECT.
Children and Adult Services,Childrens Services,Transport,230007,Contract Hire,05-Mar-2015,2869949-2053,"1,050.00",MR P & MR N EILLES T/A TRAPPAS TRAVEL.
Children and Adult Services,Childrens Services,Supplies and Services,340001,Postages,05-Mar-2015,2869958-CAS-02-2015-073,"1,000.00",NEOPOST LTD CREDIFON RCB ACCOUNT.
Children and Adult Services,Childrens Services,Supplies and Services,384199,Miscellaneous Expenses,06-Mar-2015,2870213-3980008020,"1,394.44",CO DURHAM & DARLINGTON NHS FOUNDATION TRUST.
Children and Adult Services,Childrens Services,Employees,040149,Recruitment Instruction and Training,06-Mar-2015,2870274-1342,"3,020.00",FIT TRAINING LTD.
Children and Adult Services,Childrens Services,Third Party Payments,425019,Rendered by Voluntary Organisations,06-Mar-2015,2870434-0000018851,"50,631.51",NORTH EAST AUTISM SOCIETY.
Children and Adult Services,Childrens Services,Third Party Payments,425019,Rendered by Voluntary Organisations,06-Mar-2015,2870434-0000019318,"45,568.36",NORTH EAST AUTISM SOCIETY.
Children and Adult Services,Childrens Services,Third Party Payments,425019,Rendered by Voluntary Organisations,06-Mar-2015,2870434-0000019761,"13,608.00",NORTH EAST AUTISM SOCIETY.
Children and Adult Services,Childrens Services,Third Party Payments,425019,Rendered by Voluntary Organisations,06-Mar-2015,2870434-0000019785,"45,568.36",NORTH EAST AUTISM SOCIETY.
Children and Adult Services,Childrens Services,Supplies and Services,384871,Miscellaneous Expenses,06-Mar-2015,2870507-838,"3,500.00",SCHOOL & FAMILY NURTURING PROGRAMME.
Children and Adult Services,Childrens Services,Supplies and Services,384409,Miscellaneous Expenses,06-Mar-2015,2870562-3056,852.60,TANFIELD RAILWAY.
Children and Adult Services,Childrens Services,Supplies and Services,384199,Miscellaneous Expenses,06-Mar-2015,2870573-4100480886,500.00,THE REAL GRAFFITI CO.
Children and Adult Services,Childrens Services,Supplies and Services,384871,Miscellaneous Expenses,06-Mar-2015,2870581-839,"3,500.00",TRAINING LADDER LTD.
Children and Adult Services,Childrens Services,Supplies and Services,336005,Advertising,09-Mar-2015,2870694-SNE010101,"1,000.00",COMMUNICORP UK.
Children and Adult Services,Childrens Services,Transport,235073,Public Transport,09-Mar-2015,2870734-600OP,500.00,EAST DURHAM COMMUNITY TRANSPORT.
Children and Adult Services,Childrens Services,Third Party Payments,440062,Other Third Party Payments,09-Mar-2015,2870797-660,823.25,JIGSAW THERAPY SERVICES.
Children and Adult Services,Childrens Services,Third Party Payments,425019,Rendered by Voluntary Organisations,09-Mar-2015,2870862-0000018862A,"13,608.00",NORTH EAST AUTISM SOCIETY.
Children and Adult Services,Childrens Services,Third Party Payments,425017,Rendered by Voluntary Organisations,09-Mar-2015,2870877-23377,"8,096.00",PERCY HEDLEY FOUNDATION.
Children and Adult Services,Childrens Services,Third Party Payments,440016,Other Third Party Payments,10-Mar-2015,2871102-1011856,785.15,REDACTED - PAYMENT TO INDIVIDUAL
Children and Adult Services,Childrens Services,Third Party Payments,440016,Other Third Party Payments,10-Mar-2015,2871102-1011907,714.63,REDACTED - PAYMENT TO INDIVIDUAL
Children and Adult Services,Childrens Services,Third Party Payments,440016,Other Third Party Payments,10-Mar-2015,2871102-1011908,902.00,REDACTED - PAYMENT TO INDIVIDUAL
Children and Adult Services,Childrens Services,Third Party Payments,440016,Other Third Party Payments,10-Mar-2015,2871299-1011702,924.00,REDACTED - PAYMENT TO INDIVIDUAL
Children and Adult Services,Childrens Services,Supplies and Services,364999,Grants to Voluntary Organisations,10-Mar-2015,2871648-SIN020380,792.50,AWARD SCHEME LTD.
Children and Adult Services,Childrens Services,Third Party Payments,425040,Rendered by Voluntary Organisations,10-Mar-2015,2871653-146505116,"3,972.03",BARNARDOS.
Children and Adult Services,Childrens Services,Premises,108301,Service Repairs and Maintenance,10-Mar-2015,2871688-16382,693.11,CATHEDRAL LOCK & SAFE SERVICES LTD.
Children and Adult Services,Childrens Services,Premises,145050,Cleaning and Domestic Supplies,10-Mar-2015,2871707-3980008017,"1,054.93",CO DURHAM & DARLINGTON NHS FOUNDATION TRUST.
Children and Adult Services,Childrens Services,Third Party Payments,486022,Service Level Agreements,10-Mar-2015,2871777-5046,"4,517.24",FLEXIBLE SUPPORT OPTIONS UK (DOMICILARY) LTD.
Children and Adult Services,Childrens Services,Third Party Payments,425040,Rendered by Voluntary Organisations,10-Mar-2015,2871779-630143543,"3,684.64",FOSTER CARE ASSOCIATES LTD.
Children and Adult Services,Childrens Services,Third Party Payments,425040,Rendered by Voluntary Organisations,10-Mar-2015,2871779-630146232,"4,079.43",FOSTER CARE ASSOCIATES LTD.
Children and Adult Services,Childrens Services,Third Party Payments,425040,Rendered by Voluntary Organisations,10-Mar-2015,2871779-630146511,"4,079.43",FOSTER CARE ASSOCIATES LTD.
Children and Adult Services,Childrens Services,Third Party Payments,425040,Rendered by Voluntary Organisations,10-Mar-2015,2871779-630146565,"4,079.43",FOSTER CARE ASSOCIATES LTD.
Children and Adult Services,Childrens Services,Third Party Payments,425040,Rendered by Voluntary Organisations,10-Mar-2015,2871780-12534,760.00,FOSTER CARES LTD.
Children and Adult Services,Childrens Services,Third Party Payments,425018,Rendered by Voluntary Organisations,10-Mar-2015,2871829-INV-0374,"16,160.92",INTERACT CARE LTD.
Children and Adult Services,Childrens Services,Third Party Payments,425017,Rendered by Voluntary Organisations,10-Mar-2015,2871829-INV-0389,"5,338.71",INTERACT CARE LTD.
Children and Adult Services,Childrens Services,Third Party Payments,425019,Rendered by Voluntary Organisations,10-Mar-2015,2871914-0000019792,"45,674.10",NORTH EAST AUTISM SOCIETY.
Children and Adult Services,Childrens Services,Third Party Payments,425017,Rendered by Voluntary Organisations,10-Mar-2015,2871934-23359,"3,745.40",PERCY HEDLEY FOUNDATION.
Children and Adult Services,Childrens Services,Third Party Payments,486021,Service Level Agreements,10-Mar-2015,2871961-3205,826.35,REACH OUT CARE SUPPORT SERVICES LTD.
Children and Adult Services,Childrens Services,Premises,108099,Service Repairs and Maintenance,10-Mar-2015,2871980-96307389,"1,400.64",SCHNEIDER ELECTRIC LTD.
Children and Adult Services,Childrens Services,Third Party Payments,425017,Rendered by Voluntary Organisations,10-Mar-2015,2872010-1151493,"2,230.00",ST CUTHBERTS CARE.
Children and Adult Services,Childrens Services,Third Party Payments,425017,Rendered by Voluntary Organisations,10-Mar-2015,2872010-1151494,"1,376.00",ST CUTHBERTS CARE.
Children and Adult Services,Childrens Services,Supplies and Services,342051,Computers and Communications,10-Mar-2015,2872054-SIN117829,"47,810.00",TRIBAL EDUCATION LTD.
Children and Adult Services,Childrens Services,Supplies and Services,342051,Computers and Communications,10-Mar-2015,2872054-SIN117831-TEL,"2,095.00",TRIBAL EDUCATION LTD.
Children and Adult Services,Childrens Services,Third Party Payments,425040,Rendered by Voluntary Organisations,11-Mar-2015,2872094-15/1663,"2,800.00",ACORN HOUSE (FOSTERING SERVICES) LTD.
Children and Adult Services,Childrens Services,Third Party Payments,425017,Rendered by Voluntary Organisations,11-Mar-2015,2872148-260/15,960.00,BUTTERWICK HOSPICE RETAIL LTD.
Children and Adult Services,Childrens Services,Third Party Payments,425017,Rendered by Voluntary Organisations,11-Mar-2015,2872148-262/15,"1,200.00",BUTTERWICK HOSPICE RETAIL LTD.
Children and Adult Services,Childrens Services,Third Party Payments,425040,Rendered by Voluntary Organisations,11-Mar-2015,2872165-10922,"2,719.92",CHILDRENS FAMILY TRUST.
Children and Adult Services,Childrens Services,Third Party Payments,425040,Rendered by Voluntary Organisations,11-Mar-2015,2872165-10923,"2,800.00",CHILDRENS FAMILY TRUST.
Children and Adult Services,Childrens Services,Third Party Payments,486044,Service Level Agreements,11-Mar-2015,2872172-3980008875,"2,428.00",CO DURHAM & DARLINGTON NHS FOUNDATION TRUST.
Children and Adult Services,Childrens Services,Supplies and Services,384302,Miscellaneous Expenses,11-Mar-2015,2872195-CAS-03-2015-056,720.00,DAWDON YOUTH & COMMUNITY CENTRE.
Children and Adult Services,Childrens Services,Third Party Payments,486029,Service Level Agreements,11-Mar-2015,2872227-17258,"19,041.67",FAMILY ACTION.
Children and Adult Services,Childrens Services,Third Party Payments,425040,Rendered by Voluntary Organisations,11-Mar-2015,2872239-12433,"1,180.00",FOSTER CARES LTD.
Children and Adult Services,Childrens Services,Third Party Payments,425040,Rendered by Voluntary Organisations,11-Mar-2015,2872239-12440,730.00,FOSTER CARES LTD.
Children and Adult Services,Childrens Services,Third Party Payments,425040,Rendered by Voluntary Organisations,11-Mar-2015,2872239-12451,730.00,FOSTER CARES LTD.
Children and Adult Services,Childrens Services,Third Party Payments,425040,Rendered by Voluntary Organisations,11-Mar-2015,2872239-12459,820.00,FOSTER CARES LTD.
Children and Adult Services,Childrens Services,Third Party Payments,425040,Rendered by Voluntary Organisations,11-Mar-2015,2872239-12460,730.00,FOSTER CARES LTD.
Children and Adult Services,Childrens Services,Third Party Payments,425040,Rendered by Voluntary Organisations,11-Mar-2015,2872239-12481,"1,180.00",FOSTER CARES LTD.
Children and Adult Services,Childrens Services,Third Party Payments,425040,Rendered by Voluntary Organisations,11-Mar-2015,2872239-12488,730.00,FOSTER CARES LTD.
Children and Adult Services,Childrens Services,Third Party Payments,425040,Rendered by Voluntary Organisations,11-Mar-2015,2872239-12499,730.00,FOSTER CARES LTD.
Children and Adult Services,Childrens Services,Third Party Payments,425040,Rendered by Voluntary Organisations,11-Mar-2015,2872239-12507,820.00,FOSTER CARES LTD.
Children and Adult Services,Childrens Services,Third Party Payments,425040,Rendered by Voluntary Organisations,11-Mar-2015,2872239-12508,730.00,FOSTER CARES LTD.
Children and Adult Services,Childrens Services,Supplies and Services,384199,Miscellaneous Expenses,11-Mar-2015,2872322-009,600.00,MARK SHIELDS T/A MAKE MY DAY EVENTS.
Children and Adult Services,Childrens Services,Third Party Payments,425019,Rendered by Voluntary Organisations,11-Mar-2015,2872376-251114,"14,048.40",PEARTREE PROJECTS LTD.
Children and Adult Services,Childrens Services,Third Party Payments,425017,Rendered by Voluntary Organisations,11-Mar-2015,2872377-23701,"3,708.80",PERCY HEDLEY FOUNDATION.
Children and Adult Services,Childrens Services,Third Party Payments,425017,Rendered by Voluntary Organisations,11-Mar-2015,2872377-23702,747.00,PERCY HEDLEY FOUNDATION.
Children and Adult Services,Childrens Services,Third Party Payments,425020,Rendered by Voluntary Organisations,11-Mar-2015,2872377-23704,"1,126.00",PERCY HEDLEY FOUNDATION.
Children and Adult Services,Childrens Services,Third Party Payments,425017,Rendered by Voluntary Organisations,11-Mar-2015,2872377-23707,"7,188.56",PERCY HEDLEY FOUNDATION.
Children and Adult Services,Childrens Services,Third Party Payments,440062,Other Third Party Payments,11-Mar-2015,2872383-12920,"1,514.76",PHYSIOTHERAPY FOR YOU.
Children and Adult Services,Childrens Services,Supplies and Services,352001,Conference Expenses,11-Mar-2015,2872416-868,650.00,SCHOOL & FAMILY NURTURING PROGRAMME.
Children and Adult Services,Childrens Services,Third Party Payments,425040,Rendered by Voluntary Organisations,11-Mar-2015,2872435-1151473,"2,800.00",ST CUTHBERTS CARE.
Children and Adult Services,Childrens Services,Third Party Payments,425040,Rendered by Voluntary Organisations,11-Mar-2015,2872446-159840,910.00,SWIIS FOSTER CARE LTD.
Children and Adult Services,Childrens Services,Third Party Payments,425040,Rendered by Voluntary Organisations,11-Mar-2015,2872446-159842,"1,075.00",SWIIS FOSTER CARE LTD.
Children and Adult Services,Childrens Services,Third Party Payments,425040,Rendered by Voluntary Organisations,11-Mar-2015,2872446-159843,891.90,SWIIS FOSTER CARE LTD.
Children and Adult Services,Childrens Services,Third Party Payments,425040,Rendered by Voluntary Organisations,11-Mar-2015,2872446-159844,"1,069.00",SWIIS FOSTER CARE LTD.
Children and Adult Services,Childrens Services,Third Party Payments,425040,Rendered by Voluntary Organisations,11-Mar-2015,2872446-160140,910.00,SWIIS FOSTER CARE LTD.
Children and Adult Services,Childrens Services,Third Party Payments,425040,Rendered by Voluntary Organisations,11-Mar-2015,2872446-160142,"1,075.00",SWIIS FOSTER CARE LTD.
Children and Adult Services,Childrens Services,Third Party Payments,425040,Rendered by Voluntary Organisations,11-Mar-2015,2872446-160143,891.90,SWIIS FOSTER CARE LTD.
Children and Adult Services,Childrens Services,Third Party Payments,425040,Rendered by Voluntary Organisations,11-Mar-2015,2872446-160144,"1,069.00",SWIIS FOSTER CARE LTD.
Children and Adult Services,Childrens Services,Employees,040149,Recruitment Instruction and Training,12-Mar-2015,2872578-1659,600.00,HSF TRAINING LTD.
Children and Adult Services,Childrens Services,Supplies and Services,304252,Equipment and Materials,12-Mar-2015,2872640-61947472,721.89,PHS GROUP PLC.
Children and Adult Services,Childrens Services,Supplies and Services,338043,Services,12-Mar-2015,2872652-29427,"1,200.00",RICHMOND ANDERSON GOUDIE.
Children and Adult Services,Childrens Services,Third Party Payments,425041,Rendered by Voluntary Organisations,12-Mar-2015,2872677-995760,"2,250.00",ST FRANCIS CHILDRENS SOCIETY.
Children and Adult Services,Childrens Services,Supplies and Services,304516,Equipment and Materials,13-Mar-2015,2872955-33366,"1,120.00",HANDS FREE COMPUTING LTD.
Children and Adult Services,Childrens Services,Third Party Payments,486043,Service Level Agreements,13-Mar-2015,2873111-578,"2,675.00",PAC-UK LTD T/A POST ADOPTION CENTRE.
Children and Adult Services,Childrens Services,Third Party Payments,486043,Service Level Agreements,13-Mar-2015,2873111-579,"2,675.00",PAC-UK LTD T/A POST ADOPTION CENTRE.
Children and Adult Services,Childrens Services,Third Party Payments,486043,Service Level Agreements,13-Mar-2015,2873111-580,"2,675.00",PAC-UK LTD T/A POST ADOPTION CENTRE.
Children and Adult Services,Childrens Services,Third Party Payments,486043,Service Level Agreements,13-Mar-2015,2873111-581,"2,675.00",PAC-UK LTD T/A POST ADOPTION CENTRE.
Children and Adult Services,Childrens Services,Premises,125009,Rents,13-Mar-2015,2873233-GH3793,"1,010.59",THE GREENHOUSE COMPANY (GROUNDWORK) LTD.
Children and Adult Services,Childrens Services,Supplies and Services,384491,Miscellaneous Expenses,16-Mar-2015,2873511,630.00,GIANT STEPS LTD.
Children and Adult Services,Childrens Services,Third Party Payments,486043,Service Level Agreements,16-Mar-2015,2873320-577,"2,675.00",AFTER ADOPTION.
Children and Adult Services,Childrens Services,Supplies and Services,338027,Services,16-Mar-2015,2873328-02,"1,050.00",ALISON SANDERS.
Children and Adult Services,Childrens Services,Premises,108099,Service Repairs and Maintenance,16-Mar-2015,2873389-16454,"1,320.53",CATHEDRAL LOCK & SAFE SERVICES LTD.
Children and Adult Services,Childrens Services,Supplies and Services,352001,Conference Expenses,16-Mar-2015,2873396-918,780.00,CHILDRENS FOUNDATION LTD.
Children and Adult Services,Childrens Services,Supplies and Services,384199,Miscellaneous Expenses,16-Mar-2015,2873466-7020,"2,520.00",EAST DURHAM BUSINESS SERVICE.
Children and Adult Services,Childrens Services,Supplies and Services,384237,Miscellaneous Expenses,16-Mar-2015,2873493-YTH07658,916.67,FLAMINGO LAND LTD.
Children and Adult Services,Childrens Services,Third Party Payments,425040,Rendered by Voluntary Organisations,16-Mar-2015,2873497-12428,730.00,FOSTER CARES LTD.
Children and Adult Services,Childrens Services,Third Party Payments,425040,Rendered by Voluntary Organisations,16-Mar-2015,2873497-12476,730.00,FOSTER CARES LTD.
Children and Adult Services,Childrens Services,Third Party Payments,425040,Rendered by Voluntary Organisations,16-Mar-2015,2873497-12523,730.00,FOSTER CARES LTD.
Children and Adult Services,Childrens Services,Third Party Payments,425019,Rendered by Voluntary Organisations,16-Mar-2015,2873538-WI6642,"20,371.43",HESLEY CARE GROUP LTD.
Children and Adult Services,Childrens Services,Premises,106080,Centrally Controlled Rep and Maint,16-Mar-2015,2873542-7080445706,829.87,HONEYWELL NOVAR SYSTEMS LTD.
Children and Adult Services,Childrens Services,Premises,108099,Service Repairs and Maintenance,16-Mar-2015,2873543-7080445708,"4,755.22",HONEYWELL NOVAR SYSTEMS LTD.
Children and Adult Services,Childrens Services,Premises,108099,Service Repairs and Maintenance,16-Mar-2015,2873543-7080462281,"4,755.22",HONEYWELL NOVAR SYSTEMS LTD.
Children and Adult Services,Childrens Services,Third Party Payments,486022,Service Level Agreements,16-Mar-2015,2873588-KW28060/3,649.00,KINGSWOOD LEARNING & LEISURE (GROUP) LTD.
Children and Adult Services,Childrens Services,Supplies and Services,364305,Grants to Voluntary Organisations,16-Mar-2015,2873604-CAS-03-2015-055,707.28,REDACTED - PAYMENT TO INDIVIDUAL
Children and Adult Services,Childrens Services,Supplies and Services,340001,Postages,16-Mar-2015,2873647-CAS-03-2015-070,"1,000.00",NEOPOST LTD CREDIFON RCB ACCOUNT.
Children and Adult Services,Childrens Services,Supplies and Services,384638,Miscellaneous Expenses,16-Mar-2015,2873665-0000020582,"3,302.11",NORTH EAST AUTISM SOCIETY.
Children and Adult Services,Childrens Services,Supplies and Services,384638,Miscellaneous Expenses,16-Mar-2015,2873665-0000020583,590.49,NORTH EAST AUTISM SOCIETY.
Children and Adult Services,Childrens Services,Supplies and Services,384638,Miscellaneous Expenses,16-Mar-2015,2873665-0000020584,504.03,NORTH EAST AUTISM SOCIETY.
Children and Adult Services,Childrens Services,Supplies and Services,384638,Miscellaneous Expenses,16-Mar-2015,2873665-0000020585,590.49,NORTH EAST AUTISM SOCIETY.
Children and Adult Services,Childrens Services,Supplies and Services,384638,Miscellaneous Expenses,16-Mar-2015,2873665-0000020586,571.95,NORTH EAST AUTISM SOCIETY.
Children and Adult Services,Childrens Services,Supplies and Services,384638,Miscellaneous Expenses,16-Mar-2015,2873665-0000020588,657.00,NORTH EAST AUTISM SOCIETY.
Children and Adult Services,Childrens Services,Supplies and Services,384638,Miscellaneous Expenses,16-Mar-2015,2873665-0000020589,657.00,NORTH EAST AUTISM SOCIETY.
Children and Adult Services,Childrens Services,Supplies and Services,384638,Miscellaneous Expenses,16-Mar-2015,2873665-0000020594,"3,658.50",NORTH EAST AUTISM SOCIETY.
Children and Adult Services,Childrens Services,Supplies and Services,384638,Miscellaneous Expenses,16-Mar-2015,2873665-0000020595,771.75,NORTH EAST AUTISM SOCIETY.
Children and Adult Services,Childrens Services,Supplies and Services,384638,Miscellaneous Expenses,16-Mar-2015,2873665-0000020597,947.25,NORTH EAST AUTISM SOCIETY.
Children and Adult Services,Childrens Services,Supplies and Services,384638,Miscellaneous Expenses,16-Mar-2015,2873665-0000020598,"1,140.75",NORTH EAST AUTISM SOCIETY.
Children and Adult Services,Childrens Services,Supplies and Services,384638,Miscellaneous Expenses,16-Mar-2015,2873665-0000020599,"1,113.75",NORTH EAST AUTISM SOCIETY.
Children and Adult Services,Childrens Services,Supplies and Services,384638,Miscellaneous Expenses,16-Mar-2015,2873665-0000020605,"1,080.00",NORTH EAST AUTISM SOCIETY.
Children and Adult Services,Childrens Services,Supplies and Services,384638,Miscellaneous Expenses,16-Mar-2015,2873665-0000020606,864.00,NORTH EAST AUTISM SOCIETY.
Children and Adult Services,Childrens Services,Supplies and Services,384638,Miscellaneous Expenses,16-Mar-2015,2873665-0000020607,567.00,NORTH EAST AUTISM SOCIETY.
Children and Adult Services,Childrens Services,Third Party Payments,425019,Rendered by Voluntary Organisations,16-Mar-2015,2873717-9012115,"18,352.00",PONTVILLE SCHOOL LTD.
Children and Adult Services,Childrens Services,Third Party Payments,425019,Rendered by Voluntary Organisations,16-Mar-2015,2873717-9012133,"52,257.00",PONTVILLE SCHOOL LTD.
Children and Adult Services,Childrens Services,Supplies and Services,384302,Miscellaneous Expenses,16-Mar-2015,2873734-291,796.49,RAB OUTDOOR EDUCATION LTD.
Children and Adult Services,Childrens Services,Supplies and Services,364352,Grants to Voluntary Organisations,16-Mar-2015,2873809-JT01IC,713.40,STONHAM HOUSING ASSOCIATION LTD.
Children and Adult Services,Childrens Services,Supplies and Services,364352,Grants to Voluntary Organisations,16-Mar-2015,2873809-JT02IC,713.40,STONHAM HOUSING ASSOCIATION LTD.
Children and Adult Services,Childrens Services,Supplies and Services,332047,Printing Stationery and Gen Off Exps,16-Mar-2015,2873813-7301647,789.90,SUPPLIES TEAM LTD.
Children and Adult Services,Childrens Services,Fees,901002,Professional fees,16-Mar-2015,2873880-564129,721.50,WARD HADAWAY.
Children and Adult Services,Childrens Services,Fees,901002,Professional fees,16-Mar-2015,2873880-567459,"1,276.50",WARD HADAWAY.
Children and Adult Services,Childrens Services,Third Party Payments,425019,Rendered by Voluntary Organisations,16-Mar-2015,2873900-1669,"70,609.00",WITHERSLACK CARE & EDUCATION INITIATIVES.
Children and Adult Services,Childrens Services,Supplies and Services,304649,Equipment and Materials,16-Mar-2015,2873909-497434591,512.09,YORKSHIRE PURCHASING ORGANISATION.
Children and Adult Services,Childrens Services,Third Party Payments,486023,Service Level Agreements,17-Mar-2015,2874736,"1,000.00",MID DURHAM PROJECTS CLUB.
Children and Adult Services,Childrens Services,Third Party Payments,440031,Other Third Party Payments,17-Mar-2015,2874134-1013750,568.00,REDACTED - PAYMENT TO INDIVIDUAL
Children and Adult Services,Childrens Services,Third Party Payments,440015,Other Third Party Payments,17-Mar-2015,2874337-1013478,854.07,REDACTED - PAYMENT TO INDIVIDUAL
Children and Adult Services,Childrens Services,Third Party Payments,440015,Other Third Party Payments,17-Mar-2015,2874337-1013479,777.14,REDACTED - PAYMENT TO INDIVIDUAL
Children and Adult Services,Childrens Services,Third Party Payments,425040,Rendered by Voluntary Organisations,17-Mar-2015,2874541-R31INV/00014734,"2,919.84",ACTION FOR CHILDREN.
Children and Adult Services,Childrens Services,Premises,108099,Service Repairs and Maintenance,17-Mar-2015,2874550-40379,721.81,ALARM RADIO MONITORING LTD.
Children and Adult Services,Childrens Services,Supplies and Services,384302,Miscellaneous Expenses,17-Mar-2015,2874600-C/8553,540.00,COCHRANES T/A KELVIN TRAVEL.
Children and Adult Services,Childrens Services,Third Party Payments,425040,Rendered by Voluntary Organisations,17-Mar-2015,2874656-0000054413,"3,232.99",FIVE RIVERS CHILD CARE LTD.
Children and Adult Services,Childrens Services,Third Party Payments,425040,Rendered by Voluntary Organisations,17-Mar-2015,2874660-630145488,"4,180.58",FOSTER CARE ASSOCIATES LTD.
Children and Adult Services,Childrens Services,Third Party Payments,425040,Rendered by Voluntary Organisations,17-Mar-2015,2874660-630145641,"4,079.43",FOSTER CARE ASSOCIATES LTD.
Children and Adult Services,Childrens Services,Third Party Payments,425040,Rendered by Voluntary Organisations,17-Mar-2015,2874660-630145765,"4,079.43",FOSTER CARE ASSOCIATES LTD.
Children and Adult Services,Childrens Services,Third Party Payments,425040,Rendered by Voluntary Organisations,17-Mar-2015,2874660-630146065,"4,079.43",FOSTER CARE ASSOCIATES LTD.
Children and Adult Services,Childrens Services,Third Party Payments,425040,Rendered by Voluntary Organisations,17-Mar-2015,2874660-630146151,"4,079.43",FOSTER CARE ASSOCIATES LTD.
Children and Adult Services,Childrens Services,Third Party Payments,425040,Rendered by Voluntary Organisations,17-Mar-2015,2874660-630146212,"4,079.43",FOSTER CARE ASSOCIATES LTD.
Children and Adult Services,Childrens Services,Third Party Payments,425040,Rendered by Voluntary Organisations,17-Mar-2015,2874660-630146492,"4,079.43",FOSTER CARE ASSOCIATES LTD.
Children and Adult Services,Childrens Services,Supplies and Services,384871,Miscellaneous Expenses,17-Mar-2015,2874820-865,650.00,SCHOOL & FAMILY NURTURING PROGRAMME.
Children and Adult Services,Childrens Services,Supplies and Services,384871,Miscellaneous Expenses,17-Mar-2015,2874820-870,"3,500.00",SCHOOL & FAMILY NURTURING PROGRAMME.
Children and Adult Services,Childrens Services,Third Party Payments,425040,Rendered by Voluntary Organisations,17-Mar-2015,2874847-24231,"2,920.00",TEAM FOSTERING.
Children and Adult Services,Childrens Services,Third Party Payments,425040,Rendered by Voluntary Organisations,17-Mar-2015,2874847-24232,"2,920.00",TEAM FOSTERING.
Children and Adult Services,Childrens Services,Supplies and Services,384302,Miscellaneous Expenses,17-Mar-2015,2874893-497417390,516.94,YORKSHIRE PURCHASING ORGANISATION.
Children and Adult Services,Childrens Services,Supplies and Services,332047,Printing Stationery and Gen Off Exps,17-Mar-2015,2874893-497530644,522.40,YORKSHIRE PURCHASING ORGANISATION.
Children and Adult Services,Childrens Services,Transport,235073,Public Transport,18-Mar-2015,2874906-DEC/JAN2015,504.90,AA & C CHESTER TAXIS.
Children and Adult Services,Childrens Services,Third Party Payments,425040,Rendered by Voluntary Organisations,18-Mar-2015,2875042-630145793,"4,079.43",FOSTER CARE ASSOCIATES LTD.
Children and Adult Services,Childrens Services,Supplies and Services,364353,Grants to Voluntary Organisations,18-Mar-2015,2875044-CAS-03-2015-066,"4,316.04",REDACTED - PAYMENT TO INDIVIDUAL
Children and Adult Services,Childrens Services,Premises,125009,Rents,18-Mar-2015,2875123-IN1503059,"14,687.50",MANDALE INVESTMENTS LTD.
Children and Adult Services,Childrens Services,Supplies and Services,338099,Services,18-Mar-2015,2875168-SEC001,"1,090.47",NEWTON AYCLIFFE YOUTH CENTRE.
Children and Adult Services,Childrens Services,Third Party Payments,486043,Service Level Agreements,18-Mar-2015,2875197-577,"2,675.00",PAC-UK LTD T/A POST ADOPTION CENTRE.
Children and Adult Services,Childrens Services,Supplies and Services,308011,Furniture,18-Mar-2015,2875336-497637479,865.00,YORKSHIRE PURCHASING ORGANISATION.
Children and Adult Services,Childrens Services,Supplies and Services,342513,Computers and Communications,19-Mar-2015,2875350-40425,"1,412.50",ALARM RADIO MONITORING LTD.
Children and Adult Services,Childrens Services,Premises,145050,Cleaning and Domestic Supplies,19-Mar-2015,2875404-3980009123,"1,054.93",CO DURHAM & DARLINGTON NHS FOUNDATION TRUST.
Children and Adult Services,Childrens Services,Supplies and Services,384302,Miscellaneous Expenses,19-Mar-2015,2875567-24723,"1,680.00",OCN NORTH WEST REGION T/A OPEN AWARDS.
Children and Adult Services,Childrens Services,Transport,230005,Contract Hire,20-Mar-2015,2875713-C1/SF,"1,195.00",AABAT TAXIS.
Children and Adult Services,Childrens Services,Transport,230005,Contract Hire,20-Mar-2015,2875713-C18/JC,585.00,AABAT TAXIS.
Children and Adult Services,Childrens Services,Supplies and Services,384302,Miscellaneous Expenses,20-Mar-2015,2875776-INV-0212,"3,000.00",CO DURHAM & DARLINGTON FIRE & RESCUE COMMUNITY INTEREST COMPANY (CIC).
Children and Adult Services,Childrens Services,Supplies and Services,384302,Miscellaneous Expenses,20-Mar-2015,2875776-INV-0213,"3,000.00",CO DURHAM & DARLINGTON FIRE & RESCUE COMMUNITY INTEREST COMPANY (CIC).
Children and Adult Services,Childrens Services,Third Party Payments,425040,Rendered by Voluntary Organisations,20-Mar-2015,2875827-12528,"1,180.00",FOSTER CARES LTD.
Children and Adult Services,Childrens Services,Third Party Payments,425040,Rendered by Voluntary Organisations,20-Mar-2015,2875827-12535,730.00,FOSTER CARES LTD.
Children and Adult Services,Childrens Services,Third Party Payments,425040,Rendered by Voluntary Organisations,20-Mar-2015,2875827-12546,730.00,FOSTER CARES LTD.
Children and Adult Services,Childrens Services,Transport,230005,Contract Hire,20-Mar-2015,2875910-KDC020315,950.00,MJ TIMNEY T/A KDC & C&M TAXIS.
Children and Adult Services,Childrens Services,Transport,230005,Contract Hire,20-Mar-2015,2875912-525,548.00,MOLLYS TAXIS.
Children and Adult Services,Childrens Services,Transport,230005,Contract Hire,20-Mar-2015,2875921-DH01/02/15,693.00,MR M ALLISON T/A MACBETH TAXIS/COACHES.
Children and Adult Services,Childrens Services,Supplies and Services,304403,Equipment and Materials,20-Mar-2015,2875950-21834069,506.00,PARK RETAIL LTD.
Children and Adult Services,Childrens Services,Supplies and Services,338099,Services,20-Mar-2015,2875978-400511,"2,000.00",RESTORATIVE JUSTICE CONSORTIUM.
Children and Adult Services,Childrens Services,Transport,230005,Contract Hire,20-Mar-2015,2875983-316,"1,340.00",ROAD RUNNERS (NE) LTD.
Children and Adult Services,Childrens Services,Supplies and Services,338044,Services,23-Mar-2015,2876085-129621,543.00,ALERE TOXICOLOGY PLC.
Children and Adult Services,Childrens Services,Supplies and Services,384491,Miscellaneous Expenses,23-Mar-2015,2876105-228,"1,392.50",AUCKLAND YOUTH & COMMUNITY ASSOCIATION.
Children and Adult Services,Childrens Services,Third Party Payments,425040,Rendered by Voluntary Organisations,23-Mar-2015,2876107-146505146,"4,129.82",BARNARDOS.
Children and Adult Services,Childrens Services,Supplies and Services,338044,Services,23-Mar-2015,2876214-SC/LS119,785.72,DR SUSAN COOPER.
Children and Adult Services,Childrens Services,Third Party Payments,425040,Rendered by Voluntary Organisations,23-Mar-2015,2876248-2200013940,"1,300.00",FOSTER CARE ASSOCIATES LTD.
Children and Adult Services,Childrens Services,Third Party Payments,425040,Rendered by Voluntary Organisations,23-Mar-2015,2876248-2200014085,780.26,FOSTER CARE ASSOCIATES LTD.
Children and Adult Services,Childrens Services,Third Party Payments,425040,Rendered by Voluntary Organisations,23-Mar-2015,2876248-630142578,"3,877.27",FOSTER CARE ASSOCIATES LTD.
Children and Adult Services,Childrens Services,Third Party Payments,425040,Rendered by Voluntary Organisations,23-Mar-2015,2876248-630145625,"4,292.69",FOSTER CARE ASSOCIATES LTD.
Children and Adult Services,Childrens Services,Third Party Payments,425040,Rendered by Voluntary Organisations,23-Mar-2015,2876248-630145873,"4,079.43",FOSTER CARE ASSOCIATES LTD.
Children and Adult Services,Childrens Services,Third Party Payments,425040,Rendered by Voluntary Organisations,23-Mar-2015,2876249-12533,820.00,FOSTER CARES LTD.
Children and Adult Services,Childrens Services,Third Party Payments,425040,Rendered by Voluntary Organisations,23-Mar-2015,2876249-12549,730.00,FOSTER CARES LTD.
Children and Adult Services,Childrens Services,Third Party Payments,425040,Rendered by Voluntary Organisations,23-Mar-2015,2876249-12555,730.00,FOSTER CARES LTD.
Children and Adult Services,Childrens Services,Third Party Payments,425040,Rendered by Voluntary Organisations,23-Mar-2015,2876249-12613,730.00,FOSTER CARES LTD.
Children and Adult Services,Childrens Services,Third Party Payments,425040,Rendered by Voluntary Organisations,23-Mar-2015,2876249-12618,"1,180.00",FOSTER CARES LTD.
Children and Adult Services,Childrens Services,Third Party Payments,425040,Rendered by Voluntary Organisations,23-Mar-2015,2876249-12623,820.00,FOSTER CARES LTD.
Children and Adult Services,Childrens Services,Third Party Payments,425040,Rendered by Voluntary Organisations,23-Mar-2015,2876249-12624,760.00,FOSTER CARES LTD.
Children and Adult Services,Childrens Services,Third Party Payments,425040,Rendered by Voluntary Organisations,23-Mar-2015,2876249-12625,730.00,FOSTER CARES LTD.
Children and Adult Services,Childrens Services,Third Party Payments,425040,Rendered by Voluntary Organisations,23-Mar-2015,2876249-12636,730.00,FOSTER CARES LTD.
Children and Adult Services,Childrens Services,Third Party Payments,425040,Rendered by Voluntary Organisations,23-Mar-2015,2876249-12639,730.00,FOSTER CARES LTD.
Children and Adult Services,Childrens Services,Third Party Payments,425040,Rendered by Voluntary Organisations,23-Mar-2015,2876249-12644,730.00,FOSTER CARES LTD.
Children and Adult Services,Childrens Services,Third Party Payments,425040,Rendered by Voluntary Organisations,23-Mar-2015,2876249-12647,730.00,FOSTER CARES LTD.
Children and Adult Services,Childrens Services,Supplies and Services,384199,Miscellaneous Expenses,23-Mar-2015,2876269-0000010254,697.00,GROUNDWORK NORTH EAST.
Children and Adult Services,Childrens Services,Supplies and Services,384199,Miscellaneous Expenses,23-Mar-2015,2876269-0000010255,697.00,GROUNDWORK NORTH EAST.
Children and Adult Services,Childrens Services,Supplies and Services,384302,Miscellaneous Expenses,23-Mar-2015,2876290-M02/15,"4,840.00",IMPACT RESOURCES LTD.
Children and Adult Services,Childrens Services,Supplies and Services,308011,Furniture,23-Mar-2015,2876373-134,"1,500.00",MERIDIAN UPHOLSTERY.
Children and Adult Services,Childrens Services,Premises,108099,Service Repairs and Maintenance,23-Mar-2015,2876373-135,"1,640.00",MERIDIAN UPHOLSTERY.
Children and Adult Services,Childrens Services,Supplies and Services,308011,Furniture,23-Mar-2015,2876373-138,820.00,MERIDIAN UPHOLSTERY.
Children and Adult Services,Childrens Services,Third Party Payments,425040,Rendered by Voluntary Organisations,23-Mar-2015,2876392-NFA128478,"2,920.12",NATIONAL FOSTERING AGENCY LTD.
Children and Adult Services,Childrens Services,Third Party Payments,425040,Rendered by Voluntary Organisations,23-Mar-2015,2876392-NFA128479,"2,800.00",NATIONAL FOSTERING AGENCY LTD.
Children and Adult Services,Childrens Services,Third Party Payments,425040,Rendered by Voluntary Organisations,23-Mar-2015,2876392-NFA128480,"2,920.12",NATIONAL FOSTERING AGENCY LTD.
Children and Adult Services,Childrens Services,Third Party Payments,425040,Rendered by Voluntary Organisations,23-Mar-2015,2876392-NFA128481,"1,200.00",NATIONAL FOSTERING AGENCY LTD.
Children and Adult Services,Childrens Services,Third Party Payments,425040,Rendered by Voluntary Organisations,23-Mar-2015,2876392-NFA128483,"1,400.00",NATIONAL FOSTERING AGENCY LTD.
Children and Adult Services,Childrens Services,Supplies and Services,384638,Miscellaneous Expenses,23-Mar-2015,2876408-0000020729,729.00,NORTH EAST AUTISM SOCIETY.
Children and Adult Services,Childrens Services,Supplies and Services,384638,Miscellaneous Expenses,23-Mar-2015,2876408-0000020730,850.50,NORTH EAST AUTISM SOCIETY.
Children and Adult Services,Childrens Services,Supplies and Services,384638,Miscellaneous Expenses,23-Mar-2015,2876408-0000020732,"1,728.00",NORTH EAST AUTISM SOCIETY.
Children and Adult Services,Childrens Services,Supplies and Services,384638,Miscellaneous Expenses,23-Mar-2015,2876408-0000020738,"1,080.00",NORTH EAST AUTISM SOCIETY.
Children and Adult Services,Childrens Services,Supplies and Services,384638,Miscellaneous Expenses,23-Mar-2015,2876408-0000020741,"1,332.00",NORTH EAST AUTISM SOCIETY.
Children and Adult Services,Childrens Services,Third Party Payments,425040,Rendered by Voluntary Organisations,23-Mar-2015,2876420-03491,"2,800.00",ORCHARD CARE (NORTH EAST) LTD.
Children and Adult Services,Childrens Services,Supplies and Services,338078,Services,23-Mar-2015,2876443-4771,"15,135.21",QW SECURITY LTD.
Children and Adult Services,Childrens Services,Third Party Payments,425040,Rendered by Voluntary Organisations,23-Mar-2015,2876514-000144,"6,104.00",THE FOSTERING COMPANY NE LTD.
Children and Adult Services,Childrens Services,Supplies and Services,364305,Grants to Voluntary Organisations,24-Mar-2015,2876612-CAS-03-2015-106,522.45,REDACTED - PAYMENT TO INDIVIDUAL
Children and Adult Services,Childrens Services,Third Party Payments,440005,Other Third Party Payments,24-Mar-2015,2876844-1015149,"1,508.14",REDACTED - PAYMENT TO INDIVIDUAL
Children and Adult Services,Childrens Services,Third Party Payments,440016,Other Third Party Payments,24-Mar-2015,2876957-1015016,619.76,REDACTED - PAYMENT TO INDIVIDUAL
Children and Adult Services,Childrens Services,Third Party Payments,425040,Rendered by Voluntary Organisations,24-Mar-2015,2877337-3548,"3,100.00",FOSTER CARE SOLUTIONS LTD.
Children and Adult Services,Childrens Services,Third Party Payments,425040,Rendered by Voluntary Organisations,24-Mar-2015,2877337-3549,"3,232.68",FOSTER CARE SOLUTIONS LTD.
Children and Adult Services,Childrens Services,Third Party Payments,425040,Rendered by Voluntary Organisations,24-Mar-2015,2877337-3550,"3,232.68",FOSTER CARE SOLUTIONS LTD.
Children and Adult Services,Childrens Services,Third Party Payments,425040,Rendered by Voluntary Organisations,24-Mar-2015,2877337-3551,"3,232.68",FOSTER CARE SOLUTIONS LTD.
Children and Adult Services,Childrens Services,Third Party Payments,425040,Rendered by Voluntary Organisations,24-Mar-2015,2877337-3552,"3,631.34",FOSTER CARE SOLUTIONS LTD.
Children and Adult Services,Childrens Services,Third Party Payments,425040,Rendered by Voluntary Organisations,24-Mar-2015,2877337-3553,"3,232.68",FOSTER CARE SOLUTIONS LTD.
Children and Adult Services,Childrens Services,Third Party Payments,425040,Rendered by Voluntary Organisations,24-Mar-2015,2877337-3554,"3,232.68",FOSTER CARE SOLUTIONS LTD.
Children and Adult Services,Childrens Services,Third Party Payments,425040,Rendered by Voluntary Organisations,24-Mar-2015,2877337-3555,"3,232.68",FOSTER CARE SOLUTIONS LTD.
Children and Adult Services,Childrens Services,Third Party Payments,425040,Rendered by Voluntary Organisations,24-Mar-2015,2877337-3556,"3,365.67",FOSTER CARE SOLUTIONS LTD.
Children and Adult Services,Childrens Services,Third Party Payments,425040,Rendered by Voluntary Organisations,24-Mar-2015,2877337-3557,"3,232.68",FOSTER CARE SOLUTIONS LTD.
Children and Adult Services,Childrens Services,Third Party Payments,425040,Rendered by Voluntary Organisations,24-Mar-2015,2877337-3558,"3,232.68",FOSTER CARE SOLUTIONS LTD.
Children and Adult Services,Childrens Services,Third Party Payments,425040,Rendered by Voluntary Organisations,24-Mar-2015,2877337-3559,"3,232.68",FOSTER CARE SOLUTIONS LTD.
Children and Adult Services,Childrens Services,Third Party Payments,425040,Rendered by Voluntary Organisations,24-Mar-2015,2877338-13377,"3,232.68",FOSTERING OUTCOMES.
Children and Adult Services,Childrens Services,Third Party Payments,425040,Rendered by Voluntary Organisations,24-Mar-2015,2877343-28012,"3,100.00",FUTURES FOR CHILDREN LTD.
Children and Adult Services,Childrens Services,Third Party Payments,425040,Rendered by Voluntary Organisations,24-Mar-2015,2877343-28013,"3,365.67",FUTURES FOR CHILDREN LTD.
Children and Adult Services,Childrens Services,Supplies and Services,384491,Miscellaneous Expenses,24-Mar-2015,2877357-6746,"1,683.00",GREEN LANE NURSERY & CHILDCARE CENTRE.
Children and Adult Services,Childrens Services,Supplies and Services,304259,Equipment and Materials,24-Mar-2015,2877478-CN18948172,792.96,OCS GROUP UK LTD T/A CANNON HYGIENE.
Children and Adult Services,Childrens Services,Premises,145051,Cleaning and Domestic Supplies,24-Mar-2015,2877497-61947461,664.12,PHS GROUP PLC.
Children and Adult Services,Childrens Services,Premises,145051,Cleaning and Domestic Supplies,24-Mar-2015,2877497-61947474,730.54,PHS GROUP PLC.
Children and Adult Services,Childrens Services,Third Party Payments,425040,Rendered by Voluntary Organisations,24-Mar-2015,2877512-1021,"3,365.67",REACH OUT CARE LTD.
Children and Adult Services,Childrens Services,Supplies and Services,384302,Miscellaneous Expenses,24-Mar-2015,2877547-4100481668,"1,390.00",SMARTT NORTH EAST LTD.
Children and Adult Services,Childrens Services,Supplies and Services,384491,Miscellaneous Expenses,24-Mar-2015,2877616-2,"3,220.00",WHEATLEY HILL COMMUNITY NURSERY LTD.
Children and Adult Services,Childrens Services,Supplies and Services,338043,Services,25-Mar-2015,238989-MH/JG/GIL0015.1,808.04,POWER SCOTT SOLICITORS.
Children and Adult Services,Childrens Services,Third Party Payments,486023,Service Level Agreements,25-Mar-2015,2877690-INV0001,"1,000.00",BRANDON CARRSIDE YOUTH & COMMUNITY PROJECT.
Children and Adult Services,Childrens Services,Supplies and Services,344033,Telephones,25-Mar-2015,2877692-NE19493805Q046KB,878.29,BRITISH TELECOMMUNICATIONS PLC.
Children and Adult Services,Childrens Services,Third Party Payments,425020,Rendered by Voluntary Organisations,25-Mar-2015,2877700-INV001989,"21,921.34",CAMBIAN CHILDCARE LTD.
Children and Adult Services,Childrens Services,Third Party Payments,425019,Rendered by Voluntary Organisations,25-Mar-2015,2877700-INV002225,"3,535.70",CAMBIAN CHILDCARE LTD.
Children and Adult Services,Childrens Services,Employees,080025,Agency Staff,25-Mar-2015,2877707-2302867,"1,697.50",CELSIAN.
Children and Adult Services,Childrens Services,Third Party Payments,486044,Service Level Agreements,25-Mar-2015,2877721-3980009334,"2,428.00",CO DURHAM & DARLINGTON NHS FOUNDATION TRUST.
Children and Adult Services,Childrens Services,Supplies and Services,324500,Provisions,25-Mar-2015,2877732-13988,"12,267.34",CREATIVE MANAGEMENT SERVICES LTD.
Children and Adult Services,Childrens Services,Supplies and Services,384491,Miscellaneous Expenses,25-Mar-2015,2877773-15C/WL/235,876.00,EMERALD NURSERY.
Children and Adult Services,Childrens Services,Supplies and Services,384491,Miscellaneous Expenses,25-Mar-2015,2877773-15C/WL/236,"1,056.00",EMERALD NURSERY.
Children and Adult Services,Childrens Services,Supplies and Services,384491,Miscellaneous Expenses,25-Mar-2015,2877773-15C/WL/244,696.00,EMERALD NURSERY.
Children and Adult Services,Childrens Services,Supplies and Services,384199,Miscellaneous Expenses,25-Mar-2015,2877865-00623,980.00,KEITH THOMPSON T/A DECORE DESIGN & MORE.
Children and Adult Services,Childrens Services,Transport,230005,Contract Hire,25-Mar-2015,2877887-2033,"1,512.00",LOCAL TRANSPORT LTD.
Children and Adult Services,Childrens Services,Third Party Payments,486023,Service Level Agreements,25-Mar-2015,2877964-0001,"1,000.00",PELTON COMMUNITY CENTRE.
Children and Adult Services,Childrens Services,Third Party Payments,486023,Service Level Agreements,25-Mar-2015,2877964-0002,"1,000.00",PELTON COMMUNITY CENTRE.
Children and Adult Services,Childrens Services,Third Party Payments,425040,Rendered by Voluntary Organisations,25-Mar-2015,2878049-160528,910.00,SWIIS FOSTER CARE LTD.
Children and Adult Services,Childrens Services,Third Party Payments,425040,Rendered by Voluntary Organisations,25-Mar-2015,2878049-160530,"1,075.00",SWIIS FOSTER CARE LTD.
Children and Adult Services,Childrens Services,Third Party Payments,425040,Rendered by Voluntary Organisations,25-Mar-2015,2878049-160531,891.89,SWIIS FOSTER CARE LTD.
Children and Adult Services,Childrens Services,Third Party Payments,425040,Rendered by Voluntary Organisations,25-Mar-2015,2878049-160532,"1,069.00",SWIIS FOSTER CARE LTD.
Children and Adult Services,Childrens Services,Third Party Payments,425040,Rendered by Voluntary Organisations,25-Mar-2015,2878061-24356,"3,631.43",TEAM FOSTERING.
Children and Adult Services,Childrens Services,Third Party Payments,425040,Rendered by Voluntary Organisations,25-Mar-2015,2878061-24360,"3,232.86",TEAM FOSTERING.
Children and Adult Services,Childrens Services,Third Party Payments,425040,Rendered by Voluntary Organisations,25-Mar-2015,2878061-24381,"3,232.86",TEAM FOSTERING.
Children and Adult Services,Childrens Services,Third Party Payments,425040,Rendered by Voluntary Organisations,25-Mar-2015,2878061-24382,"3,232.86",TEAM FOSTERING.
Children and Adult Services,Childrens Services,Third Party Payments,425040,Rendered by Voluntary Organisations,25-Mar-2015,2878061-24384,"6,332.86",TEAM FOSTERING.
Children and Adult Services,Childrens Services,Third Party Payments,425040,Rendered by Voluntary Organisations,25-Mar-2015,2878061-24389,"2,920.00",TEAM FOSTERING.
Children and Adult Services,Childrens Services,Third Party Payments,425040,Rendered by Voluntary Organisations,25-Mar-2015,2878061-24414,"3,631.43",TEAM FOSTERING.
Children and Adult Services,Childrens Services,Third Party Payments,425040,Rendered by Voluntary Organisations,25-Mar-2015,2878061-24439,"3,280.00",TEAM FOSTERING.
Children and Adult Services,Childrens Services,Third Party Payments,425040,Rendered by Voluntary Organisations,25-Mar-2015,2878061-24442,"3,232.68",TEAM FOSTERING.
Children and Adult Services,Childrens Services,Third Party Payments,425040,Rendered by Voluntary Organisations,25-Mar-2015,2878061-24445,"3,232.86",TEAM FOSTERING.
Children and Adult Services,Childrens Services,Third Party Payments,425040,Rendered by Voluntary Organisations,25-Mar-2015,2878061-24446,"3,232.68",TEAM FOSTERING.
Children and Adult Services,Childrens Services,Third Party Payments,425040,Rendered by Voluntary Organisations,25-Mar-2015,2878061-24459,"3,100.00",TEAM FOSTERING.
Children and Adult Services,Childrens Services,Employees,080025,Agency Staff,25-Mar-2015,2878090-143061,760.00,VISION FOR EDUCATION LTD.
Children and Adult Services,Childrens Services,Employees,080025,Agency Staff,25-Mar-2015,2878090-147113,855.00,VISION FOR EDUCATION LTD.
Children and Adult Services,Childrens Services,Transport,235073,Public Transport,25-Mar-2015,2878094-130,"1,100.00",WE AR CABS.
Children and Adult Services,Childrens Services,Transfer Payments,515201,Social Services Clients,26-Mar-2015,2878413-1504319H,"1,232.00",REDACTED - PAYMENT TO INDIVIDUAL
Children and Adult Services,Childrens Services,Transfer Payments,515201,Social Services Clients,26-Mar-2015,2878423-1506426H,859.86,REDACTED - PAYMENT TO INDIVIDUAL
Children and Adult Services,Childrens Services,Transfer Payments,515201,Social Services Clients,26-Mar-2015,2878430-1506619H,540.00,REDACTED - PAYMENT TO INDIVIDUAL
Children and Adult Services,Childrens Services,Transfer Payments,515201,Social Services Clients,26-Mar-2015,2878455-1505008H,"1,980.00",REDACTED - PAYMENT TO INDIVIDUAL
Children and Adult Services,Childrens Services,Transfer Payments,515201,Social Services Clients,26-Mar-2015,2878464-1505360H,632.00,REDACTED - PAYMENT TO INDIVIDUAL
Children and Adult Services,Childrens Services,Transfer Payments,515201,Social Services Clients,26-Mar-2015,2878480-1503599H,"1,485.00",REDACTED - PAYMENT TO INDIVIDUAL
Children and Adult Services,Childrens Services,Transfer Payments,515201,Social Services Clients,26-Mar-2015,2878485-1505015H,"2,048.00",REDACTED - PAYMENT TO INDIVIDUAL
Children and Adult Services,Childrens Services,Transfer Payments,515201,Social Services Clients,26-Mar-2015,2878489-1503747H,978.00,REDACTED - PAYMENT TO INDIVIDUAL
Children and Adult Services,Childrens Services,Transfer Payments,515201,Social Services Clients,26-Mar-2015,2878504-1505308H,630.00,REDACTED - PAYMENT TO INDIVIDUAL
Children and Adult Services,Childrens Services,Transfer Payments,515201,Social Services Clients,26-Mar-2015,2878509-1505959H,900.00,REDACTED - PAYMENT TO INDIVIDUAL
Children and Adult Services,Childrens Services,Transfer Payments,515201,Social Services Clients,26-Mar-2015,2878510-1506400H,"1,038.00",REDACTED - PAYMENT TO INDIVIDUAL
Children and Adult Services,Childrens Services,Transfer Payments,515201,Social Services Clients,26-Mar-2015,2878550-1504840H,572.00,REDACTED - PAYMENT TO INDIVIDUAL
Children and Adult Services,Childrens Services,Transfer Payments,515201,Social Services Clients,26-Mar-2015,2878552-1504337H,572.00,REDACTED - PAYMENT TO INDIVIDUAL
Children and Adult Services,Childrens Services,Transfer Payments,515201,Social Services Clients,26-Mar-2015,2878608-1506243H,"1,410.00",REDACTED - PAYMENT TO INDIVIDUAL
Children and Adult Services,Childrens Services,Transfer Payments,515201,Social Services Clients,26-Mar-2015,2878627-1503789H,720.00,REDACTED - PAYMENT TO INDIVIDUAL
Children and Adult Services,Childrens Services,Transfer Payments,515201,Social Services Clients,26-Mar-2015,2878675-1503839H,"1,260.00",REDACTED - PAYMENT TO INDIVIDUAL
Children and Adult Services,Childrens Services,Transfer Payments,515201,Social Services Clients,26-Mar-2015,2878691-1504908H,664.00,REDACTED - PAYMENT TO INDIVIDUAL
Children and Adult Services,Childrens Services,Transfer Payments,515201,Social Services Clients,26-Mar-2015,2878720-1503686H,960.00,REDACTED - PAYMENT TO INDIVIDUAL
Children and Adult Services,Childrens Services,Transfer Payments,515201,Social Services Clients,26-Mar-2015,2878726-1503984H,525.00,REDACTED - PAYMENT TO INDIVIDUAL
Children and Adult Services,Childrens Services,Transfer Payments,515201,Social Services Clients,26-Mar-2015,2878740-1506285H,"4,200.00",REDACTED - PAYMENT TO INDIVIDUAL
Children and Adult Services,Childrens Services,Transfer Payments,515201,Social Services Clients,26-Mar-2015,2878774-1503781H,540.00,REDACTED - PAYMENT TO INDIVIDUAL
Children and Adult Services,Childrens Services,Transfer Payments,515201,Social Services Clients,26-Mar-2015,2878796-1503843H,960.00,REDACTED - PAYMENT TO INDIVIDUAL
Children and Adult Services,Childrens Services,Transfer Payments,515201,Social Services Clients,26-Mar-2015,2878865-1502991H,510.00,REDACTED - PAYMENT TO INDIVIDUAL
Children and Adult Services,Childrens Services,Transfer Payments,515201,Social Services Clients,26-Mar-2015,2878865-1502992H,996.00,REDACTED - PAYMENT TO INDIVIDUAL
Children and Adult Services,Childrens Services,Transfer Payments,515201,Social Services Clients,26-Mar-2015,2878905-1504413H,736.00,REDACTED - PAYMENT TO INDIVIDUAL
Children and Adult Services,Childrens Services,Transfer Payments,515201,Social Services Clients,26-Mar-2015,2878925-1504965H,"1,200.00",REDACTED - PAYMENT TO INDIVIDUAL
Children and Adult Services,Childrens Services,Transfer Payments,515201,Social Services Clients,26-Mar-2015,2878927-1503993H,"1,920.00",REDACTED - PAYMENT TO INDIVIDUAL
Children and Adult Services,Childrens Services,Transfer Payments,515201,Social Services Clients,26-Mar-2015,2878948-1504522H,"5,340.00",REDACTED - PAYMENT TO INDIVIDUAL
Children and Adult Services,Childrens Services,Transfer Payments,515201,Social Services Clients,26-Mar-2015,2878956-1505526H,792.00,REDACTED - PAYMENT TO INDIVIDUAL
Children and Adult Services,Childrens Services,Third Party Payments,440062,Other Third Party Payments,26-Mar-2015,2878972-1502993H,"1,560.79",COMFORT CALL LTD.
Children and Adult Services,Childrens Services,Third Party Payments,440062,Other Third Party Payments,26-Mar-2015,2878972-1503349H,900.00,COMFORT CALL LTD.
Children and Adult Services,Childrens Services,Third Party Payments,440062,Other Third Party Payments,26-Mar-2015,2878972-1503350H,882.18,COMFORT CALL LTD.
Children and Adult Services,Childrens Services,Third Party Payments,440062,Other Third Party Payments,26-Mar-2015,2878972-1503476H,"1,945.32",COMFORT CALL LTD.
Children and Adult Services,Childrens Services,Third Party Payments,440062,Other Third Party Payments,26-Mar-2015,2878972-1506237H,"1,303.48",COMFORT CALL LTD.
Children and Adult Services,Childrens Services,Third Party Payments,440062,Other Third Party Payments,26-Mar-2015,2878980-1503089H,622.60,DALE CARE LTD.
Children and Adult Services,Childrens Services,Third Party Payments,440062,Other Third Party Payments,26-Mar-2015,2878980-1504444H,769.08,DALE CARE LTD.
Children and Adult Services,Childrens Services,Third Party Payments,440062,Other Third Party Payments,26-Mar-2015,2878980-1504758H,995.28,DALE CARE LTD.
Children and Adult Services,Childrens Services,Transfer Payments,515202,Social Services Clients,26-Mar-2015,2878987-1504101H,664.00,REDACTED - PAYMENT TO INDIVIDUAL
Children and Adult Services,Childrens Services,Transfer Payments,515201,Social Services Clients,26-Mar-2015,2878996-1503798H,784.00,REDACTED - PAYMENT TO INDIVIDUAL
Children and Adult Services,Childrens Services,Transfer Payments,515201,Social Services Clients,26-Mar-2015,2879073-1503500H,"1,144.00",REDACTED - PAYMENT TO INDIVIDUAL
Children and Adult Services,Childrens Services,Transfer Payments,515201,Social Services Clients,26-Mar-2015,2879108-1505380H,"1,656.00",REDACTED - PAYMENT TO INDIVIDUAL
Children and Adult Services,Childrens Services,Transfer Payments,515201,Social Services Clients,26-Mar-2015,2879153-1504243H,600.00,REDACTED - PAYMENT TO INDIVIDUAL
Children and Adult Services,Childrens Services,Transfer Payments,515201,Social Services Clients,26-Mar-2015,2879159-1504953H,600.00,REDACTED - PAYMENT TO INDIVIDUAL
Children and Adult Services,Childrens Services,Transfer Payments,515201,Social Services Clients,26-Mar-2015,2879228-1503665H,600.00,REDACTED - PAYMENT TO INDIVIDUAL
Children and Adult Services,Childrens Services,Transfer Payments,515201,Social Services Clients,26-Mar-2015,2879237-1504985H,630.00,REDACTED - PAYMENT TO INDIVIDUAL
Children and Adult Services,Childrens Services,Transfer Payments,515201,Social Services Clients,26-Mar-2015,2879253-1503670H,555.00,REDACTED - PAYMENT TO INDIVIDUAL
Children and Adult Services,Childrens Services,Transfer Payments,515201,Social Services Clients,26-Mar-2015,2879279-1505273H,"1,920.00",REDACTED - PAYMENT TO INDIVIDUAL
Children and Adult Services,Childrens Services,Transfer Payments,515201,Social Services Clients,26-Mar-2015,2879363-1504534H,"1,800.00",REDACTED - PAYMENT TO INDIVIDUAL
Children and Adult Services,Childrens Services,Transfer Payments,515201,Social Services Clients,26-Mar-2015,2879403-1503899H,"1,038.00",REDACTED - PAYMENT TO INDIVIDUAL
Children and Adult Services,Childrens Services,Transfer Payments,515202,Social Services Clients,26-Mar-2015,2879425-1503551H,918.00,REDACTED - PAYMENT TO INDIVIDUAL
Children and Adult Services,Childrens Services,Transfer Payments,515201,Social Services Clients,26-Mar-2015,2879427-1503171H,"1,338.00",REDACTED - PAYMENT TO INDIVIDUAL
Children and Adult Services,Childrens Services,Transfer Payments,515201,Social Services Clients,26-Mar-2015,2879480-1503927H,"3,132.00",REDACTED - PAYMENT TO INDIVIDUAL
Children and Adult Services,Childrens Services,Transfer Payments,515201,Social Services Clients,26-Mar-2015,2879519-1504381H,542.00,REDACTED - PAYMENT TO INDIVIDUAL
Children and Adult Services,Childrens Services,Transfer Payments,515201,Social Services Clients,26-Mar-2015,2879550-1504332H,600.00,REDACTED - PAYMENT TO INDIVIDUAL
Children and Adult Services,Childrens Services,Transfer Payments,515201,Social Services Clients,26-Mar-2015,2879565-1503873H,632.00,REDACTED - PAYMENT TO INDIVIDUAL
Children and Adult Services,Childrens Services,Third Party Payments,440062,Other Third Party Payments,26-Mar-2015,2879575-1503629H,791.70,SOCIAL RESOURCE CENTRE LTD.
Children and Adult Services,Childrens Services,Transfer Payments,515201,Social Services Clients,26-Mar-2015,2879656-1503418H,692.00,REDACTED - PAYMENT TO INDIVIDUAL
Children and Adult Services,Childrens Services,Third Party Payments,425040,Rendered by Voluntary Organisations,26-Mar-2015,2879679-146505277,"3,740.15",BARNARDOS.
Children and Adult Services,Childrens Services,Supplies and Services,384302,Miscellaneous Expenses,26-Mar-2015,2879819-116,886.50,MOUNTAIN ACTIVITY CO.
Children and Adult Services,Childrens Services,Supplies and Services,338066,Services,26-Mar-2015,2879827-DCC-2104-0315-NL,"4,478.46",NEPRO LTD.
Children and Adult Services,Childrens Services,Supplies and Services,384302,Miscellaneous Expenses,26-Mar-2015,2879832-SIN000280,"2,517.00",NORTH MUSIC TRUST.
Children and Adult Services,Childrens Services,Supplies and Services,384491,Miscellaneous Expenses,27-Mar-2015,2880100,960.00,EMERALD NURSERY.
Children and Adult Services,Childrens Services,Third Party Payments,425040,Rendered by Voluntary Organisations,27-Mar-2015,2879948-R31INV/00014898,"3,232.68",ACTION FOR CHILDREN.
Children and Adult Services,Childrens Services,Supplies and Services,338044,Services,27-Mar-2015,2879957-129683,803.00,ALERE TOXICOLOGY PLC.
Children and Adult Services,Childrens Services,Supplies and Services,384491,Miscellaneous Expenses,27-Mar-2015,2880039-RH-6/2-20/3/15,684.00,CLEVER CLOGS DAY NURSERIES LTD.
Children and Adult Services,Childrens Services,Employees,080025,Agency Staff,27-Mar-2015,2880071-325159,"118,501.51",DE POEL MANAGED SERVICES LTD.
Children and Adult Services,Childrens Services,Employees,080025,Agency Staff,27-Mar-2015,2880071-325247,"152,547.28",DE POEL MANAGED SERVICES LTD.
Children and Adult Services,Childrens Services,Supplies and Services,308011,Furniture,27-Mar-2015,2880215-139,"1,160.00",MERIDIAN UPHOLSTERY.
Children and Adult Services,Childrens Services,Third Party Payments,440001,Other Third Party Payments,27-Mar-2015,2880334-CAS-03-2015-137,"1,000.00",REDACTED - PAYMENT TO INDIVIDUAL
Children and Adult Services,Childrens Services,Employees,080025,Agency Staff,27-Mar-2015,2880386-982816,784.00,TEACHING PERSONNEL LTD.
Children and Adult Services,Childrens Services,Supplies and Services,338044,Services,30-Mar-2015,2880474-129739,543.00,ALERE TOXICOLOGY PLC.
Children and Adult Services,Childrens Services,Third Party Payments,425017,Rendered by Voluntary Organisations,30-Mar-2015,2880511-289/15,960.00,BUTTERWICK HOSPICE RETAIL LTD.
Children and Adult Services,Childrens Services,Third Party Payments,425017,Rendered by Voluntary Organisations,30-Mar-2015,2880511-292/15,720.00,BUTTERWICK HOSPICE RETAIL LTD.
Children and Adult Services,Childrens Services,Third Party Payments,425040,Rendered by Voluntary Organisations,30-Mar-2015,2880528-11158,"3,011.34",CHILDRENS FAMILY TRUST.
Children and Adult Services,Childrens Services,Third Party Payments,425040,Rendered by Voluntary Organisations,30-Mar-2015,2880528-11159,"2,500.00",CHILDRENS FAMILY TRUST.
Children and Adult Services,Childrens Services,Third Party Payments,425040,Rendered by Voluntary Organisations,30-Mar-2015,2880528-11160,625.74,CHILDRENS FAMILY TRUST.
Children and Adult Services,Childrens Services,Supplies and Services,338099,Services,30-Mar-2015,2880532-00200,780.00,CLARE HODGSON T/A DEBUTOTS EARLY YEARS DRAMA.
Children and Adult Services,Childrens Services,Third Party Payments,479101,Purchase of Care,30-Mar-2015,2880534-3980009597,986.96,CO DURHAM & DARLINGTON NHS FOUNDATION TRUST.
Children and Adult Services,Childrens Services,Supplies and Services,338099,Services,30-Mar-2015,2880668-011,600.00,MARK SHIELDS T/A MAKE MY DAY EVENTS.
Children and Adult Services,Childrens Services,Third Party Payments,425019,Rendered by Voluntary Organisations,30-Mar-2015,2880708-22900,"16,841.72",PERCY HEDLEY FOUNDATION.
Children and Adult Services,Childrens Services,Third Party Payments,425019,Rendered by Voluntary Organisations,30-Mar-2015,2880708-22901,"16,841.72",PERCY HEDLEY FOUNDATION.
Children and Adult Services,Childrens Services,Third Party Payments,425019,Rendered by Voluntary Organisations,30-Mar-2015,2880708-22902,"16,841.72",PERCY HEDLEY FOUNDATION.
Children and Adult Services,Childrens Services,Third Party Payments,425019,Rendered by Voluntary Organisations,30-Mar-2015,2880708-22903,"16,841.72",PERCY HEDLEY FOUNDATION.
Children and Adult Services,Childrens Services,Third Party Payments,425040,Rendered by Voluntary Organisations,30-Mar-2015,2880757-1151641,"3,100.00",ST CUTHBERTS CARE.
Children and Adult Services,Childrens Services,Third Party Payments,425040,Rendered by Voluntary Organisations,30-Mar-2015,2880770-24437,"3,232.86",TEAM FOSTERING.
Children and Adult Services,Childrens Services,Transport,235073,Public Transport,30-Mar-2015,2880800-131,"1,603.00",WE AR CABS.
Children and Adult Services,Childrens Services,Third Party Payments,486023,Service Level Agreements,31-Mar-2015,2881607,500.00,MID DURHAM PROJECTS CLUB.
Children and Adult Services,Childrens Services,Third Party Payments,440001,Other Third Party Payments,31-Mar-2015,239016-1015907,636.92,REDACTED - PAYMENT TO INDIVIDUAL
Children and Adult Services,Childrens Services,Third Party Payments,440024,Other Third Party Payments,31-Mar-2015,2880813-1016557,865.15,REDACTED - PAYMENT TO INDIVIDUAL
Children and Adult Services,Childrens Services,Third Party Payments,440005,Other Third Party Payments,31-Mar-2015,2880881-1015783,911.71,REDACTED - PAYMENT TO INDIVIDUAL
Children and Adult Services,Childrens Services,Third Party Payments,440005,Other Third Party Payments,31-Mar-2015,2881070-1015673,"2,389.52",REDACTED - PAYMENT TO INDIVIDUAL
Children and Adult Services,Childrens Services,Third Party Payments,440005,Other Third Party Payments,31-Mar-2015,2881070-1015674,"2,535.47",REDACTED - PAYMENT TO INDIVIDUAL
Children and Adult Services,Childrens Services,Third Party Payments,440005,Other Third Party Payments,31-Mar-2015,2881070-1015675,"2,535.47",REDACTED - PAYMENT TO INDIVIDUAL
Children and Adult Services,Childrens Services,Third Party Payments,440016,Other Third Party Payments,31-Mar-2015,2881330-1016222,650.76,REDACTED - PAYMENT TO INDIVIDUAL
Children and Adult Services,Childrens Services,Transport,235073,Public Transport,31-Mar-2015,2881450-20-28/2/15,643.50,ABLE NOVAK TAXIS.
Children and Adult Services,Childrens Services,Third Party Payments,486023,Service Level Agreements,31-Mar-2015,2881465-SIN019790,"1,360.65",BEAMISH MUSEUM LTD.
Children and Adult Services,Childrens Services,Employees,080025,Agency Staff,31-Mar-2015,2881483-2303426,"1,567.50",CELSIAN.
Children and Adult Services,Childrens Services,Transport,230005,Contract Hire,31-Mar-2015,2881509-5246,"1,009.20",CROFT BUSINESS SERVICES (UK) LTD T/A CROFT TAXIS.
Children and Adult Services,Childrens Services,Supplies and Services,338099,Services,31-Mar-2015,2881518-SIN005278,"10,000.00",DUKE OF EDINBURGHS AWARD.
Children and Adult Services,Childrens Services,Third Party Payments,425040,Rendered by Voluntary Organisations,31-Mar-2015,2881545-27836,"2,800.00",FUTURES FOR CHILDREN LTD.
Children and Adult Services,Childrens Services,Supplies and Services,336005,Advertising,31-Mar-2015,2881565-0797,615.00,HOLLIDAY CREATIVE MARKETING.
Children and Adult Services,Childrens Services,Transport,230005,Contract Hire,31-Mar-2015,2881594-2028,504.00,LOCAL TRANSPORT LTD.
Children and Adult Services,Childrens Services,Transport,230005,Contract Hire,31-Mar-2015,2881594-2038,"1,294.00",LOCAL TRANSPORT LTD.
Children and Adult Services,Childrens Services,Transport,230007,Contract Hire,31-Mar-2015,2881602-1503,559.50,MACS TAXIS DURHAM LTD.
Children and Adult Services,Childrens Services,Transport,230005,Contract Hire,31-Mar-2015,2881619-05/12/14-09/01/2015,675.00,MR S BALL T/A ABBIE`S TAXIS..
Children and Adult Services,Childrens Services,Third Party Payments,486021,Service Level Agreements,31-Mar-2015,2881650-3246,837.73,REACH OUT CARE SUPPORT SERVICES LTD.
Children and Adult Services,Childrens Services,Transport,230005,Contract Hire,31-Mar-2015,2881679-12772,910.00,STANLEY TRAVEL (NORTH EAST) LTD.
Children and Adult Services,Childrens Services,Supplies and Services,364358,Grants to Voluntary Organisations,31-Mar-2015,2881713-101,993.33,U STUDENT (SUNDERLAND) LTD.
Children and Adult Services,Commissioning inc Supporting People,Supplies and Services,384700,Miscellaneous Expenses,05-Mar-2015,2869731-CAS-02-2015-109,"8,020.00",BEAMISH MUSEUM LTD.
Children and Adult Services,Commissioning inc Supporting People,Supplies and Services,384700,Miscellaneous Expenses,05-Mar-2015,2870113-CAS-03-2015-003,"2,651.00",WINGATE & STATION TOWN FAMILY CENTRE.
Children and Adult Services,Commissioning inc Supporting People,Third Party Payments,472112,Purchase of Care,11-Mar-2015,2872265-DRE12,"8,464.31",HOMECARE SUPPORT LTD T/A THE HUMAN SUPPORT GROUP.
Children and Adult Services,Commissioning inc Supporting People,Third Party Payments,479111,Purchase of Care,13-Mar-2015,2872816-2404,"2,615.89",CARERS FEDERATION LTD.
Children and Adult Services,Commissioning inc Supporting People,Third Party Payments,470111,Purchase of Care,13-Mar-2015,2873020-RINVTP/00349596,"3,655.56",LEONARD CHESHIRE DISABILITY.
Children and Adult Services,Commissioning inc Supporting People,Third Party Payments,470111,Purchase of Care,13-Mar-2015,2873020-RINVTP/00349608,"3,655.56",LEONARD CHESHIRE DISABILITY.
Children and Adult Services,Commissioning inc Supporting People,Third Party Payments,479111,Purchase of Care,13-Mar-2015,2873234-8160,"1,250.00",THE HOSPITAL OF GOD AT GREATHAM.
Children and Adult Services,Commissioning inc Supporting People,Supplies and Services,384540,Miscellaneous Expenses,16-Mar-2015,2873409-0101822130,"2,070.00",CLEAR CHANNEL UK LTD.
Children and Adult Services,Commissioning inc Supporting People,Third Party Payments,479101,Purchase of Care,16-Mar-2015,2873616-5603,"7,897.12",MAIN - TAKING AUTISM PERSONALLY.
Children and Adult Services,Commissioning inc Supporting People,Third Party Payments,479101,Purchase of Care,16-Mar-2015,2873830-4810004444,"4,169.33",TEES ESK & WEAR VALLEYS NHS FOUNDATION TRUST.
Children and Adult Services,Commissioning inc Supporting People,Third Party Payments,479101,Purchase of Care,16-Mar-2015,2873830-4810004445,"4,427.24",TEES ESK & WEAR VALLEYS NHS FOUNDATION TRUST.
Children and Adult Services,Commissioning inc Supporting People,Supplies and Services,384700,Miscellaneous Expenses,17-Mar-2015,2874809-CAS-03-2015-052,"10,000.00",RT COMMUNITY PROJECTS LTD.
Children and Adult Services,Commissioning inc Supporting People,Third Party Payments,479101,Purchase of Care,18-Mar-2015,2875003-219/15/1218,"10,500.00",DISC LTD.
Children and Adult Services,Commissioning inc Supporting People,Third Party Payments,442002,Supporting People,19-Mar-2015,2875376-1961656,"16,746.00",BID SERVICES WITH DEAF PEOPLE.
Children and Adult Services,Commissioning inc Supporting People,Third Party Payments,442002,Supporting People,19-Mar-2015,2875415-1961667,"19,868.48",CREATIVE SUPPORT LTD.
Children and Adult Services,Commissioning inc Supporting People,Third Party Payments,442002,Supporting People,19-Mar-2015,2875426-1961669,"27,885.68",DISC LTD.
Children and Adult Services,Commissioning inc Supporting People,Third Party Payments,442002,Supporting People,19-Mar-2015,2875426-1961670,"5,668.48",DISC LTD.
Children and Adult Services,Commissioning inc Supporting People,Third Party Payments,443001,Supporting People,19-Mar-2015,2875429-1961661,"2,951.84",DURHAM ACTION ON SINGLE HOUSING.
Children and Adult Services,Commissioning inc Supporting People,Third Party Payments,443001,Supporting People,19-Mar-2015,2875429-1961665,"1,475.92",DURHAM ACTION ON SINGLE HOUSING.
Children and Adult Services,Commissioning inc Supporting People,Third Party Payments,441001,Supporting People,19-Mar-2015,2875429-1961668,"20,819.76",DURHAM ACTION ON SINGLE HOUSING.
Children and Adult Services,Commissioning inc Supporting People,Third Party Payments,441001,Supporting People,19-Mar-2015,2875432-1961675,"5,483.40",EAST DURHAM COMMUNITY INITIATIVES LTD.
Children and Adult Services,Commissioning inc Supporting People,Third Party Payments,441001,Supporting People,19-Mar-2015,2875443-1961431,"8,540.94",FABRICK HOUSING GROUP LTD.
Children and Adult Services,Commissioning inc Supporting People,Third Party Payments,442002,Supporting People,19-Mar-2015,2875443-1961566,"3,166.53",FABRICK HOUSING GROUP LTD.
Children and Adult Services,Commissioning inc Supporting People,Third Party Payments,442002,Supporting People,19-Mar-2015,2875450-1961676,"30,071.20",FOUNDATION.
Children and Adult Services,Commissioning inc Supporting People,Third Party Payments,442002,Supporting People,19-Mar-2015,2875475-1961658,"5,995.44",HANOVER HOUSING ASSOCIATION.
Children and Adult Services,Commissioning inc Supporting People,Third Party Payments,441001,Supporting People,19-Mar-2015,2875476-1961677,"15,143.62",HARBOUR SUPPORT SERVICES.
Children and Adult Services,Commissioning inc Supporting People,Third Party Payments,442002,Supporting People,19-Mar-2015,2875524-1961655,"5,469.72",MENTAL HEALTH MATTERS.
Children and Adult Services,Commissioning inc Supporting People,Third Party Payments,442002,Supporting People,19-Mar-2015,2875532-1961678,"5,240.36",MOVING ON.
Children and Adult Services,Commissioning inc Supporting People,Third Party Payments,442002,Supporting People,19-Mar-2015,2875606-1961679,"7,356.72",RICHMOND FELLOWSHIP.
Children and Adult Services,Commissioning inc Supporting People,Third Party Payments,441001,Supporting People,19-Mar-2015,2875606-1961680,"9,423.88",RICHMOND FELLOWSHIP.
Children and Adult Services,Commissioning inc Supporting People,Third Party Payments,444002,Supporting People,19-Mar-2015,2875606-1961682,"4,068.24",RICHMOND FELLOWSHIP.
Children and Adult Services,Commissioning inc Supporting People,Third Party Payments,442002,Supporting People,19-Mar-2015,2875626-1961694,"9,044.36",SHAID.
Children and Adult Services,Commissioning inc Supporting People,Third Party Payments,442002,Supporting People,19-Mar-2015,2875650-1961557,"32,463.48",STONHAM HOUSING ASSOCIATION LTD.
Children and Adult Services,Commissioning inc Supporting People,Third Party Payments,443001,Supporting People,19-Mar-2015,2875650-1961725,"8,305.23",STONHAM HOUSING ASSOCIATION LTD.
Children and Adult Services,Commissioning inc Supporting People,Third Party Payments,442002,Supporting People,19-Mar-2015,2875650-1961737,"145,778.32",STONHAM HOUSING ASSOCIATION LTD.
Children and Adult Services,Commissioning inc Supporting People,Third Party Payments,441001,Supporting People,19-Mar-2015,2875650-1961739,"68,538.62",STONHAM HOUSING ASSOCIATION LTD.
Children and Adult Services,Commissioning inc Supporting People,Third Party Payments,442002,Supporting People,19-Mar-2015,2875650-1961759,"29,343.52",STONHAM HOUSING ASSOCIATION LTD.
Children and Adult Services,Commissioning inc Supporting People,Third Party Payments,443001,Supporting People,19-Mar-2015,2875650-1961760,"14,368.64",STONHAM HOUSING ASSOCIATION LTD.
Children and Adult Services,Commissioning inc Supporting People,Third Party Payments,443001,Supporting People,19-Mar-2015,2875650-1961770,"11,715.88",STONHAM HOUSING ASSOCIATION LTD.
Children and Adult Services,Commissioning inc Supporting People,Third Party Payments,443001,Supporting People,19-Mar-2015,2875650-1961786,742.05,STONHAM HOUSING ASSOCIATION LTD.
Children and Adult Services,Commissioning inc Supporting People,Third Party Payments,441001,Supporting People,19-Mar-2015,2875666-1961657,"19,231.20",THE CYRENIANS LTD.
Children and Adult Services,Commissioning inc Supporting People,Third Party Payments,441001,Supporting People,19-Mar-2015,2875669-1961704,"18,030.90",THIRTEEN CARE & SUPPORT.
Children and Adult Services,Commissioning inc Supporting People,Third Party Payments,441001,Supporting People,19-Mar-2015,2875669-1961841,"7,791.04",THIRTEEN CARE & SUPPORT.
Children and Adult Services,Commissioning inc Supporting People,Third Party Payments,441001,Supporting People,19-Mar-2015,2875669-1961842,"10,205.64",THIRTEEN CARE & SUPPORT.
Children and Adult Services,Commissioning inc Supporting People,Third Party Payments,442002,Supporting People,19-Mar-2015,2875669-1961843,"1,800.52",THIRTEEN CARE & SUPPORT.
Children and Adult Services,Commissioning inc Supporting People,Third Party Payments,442002,Supporting People,19-Mar-2015,2875669-1961844,"6,684.91",THIRTEEN CARE & SUPPORT.
Children and Adult Services,Commissioning inc Supporting People,Third Party Payments,442002,Supporting People,19-Mar-2015,2875670-1961592,"36,446.00",THREE RIVERS HOUSING ASSOCIATION LTD.
Children and Adult Services,Commissioning inc Supporting People,Third Party Payments,441001,Supporting People,19-Mar-2015,2875670-1961600,"3,022.30",THREE RIVERS HOUSING ASSOCIATION LTD.
Children and Adult Services,Commissioning inc Supporting People,Third Party Payments,442002,Supporting People,19-Mar-2015,2875670-1961610,"1,108.92",THREE RIVERS HOUSING ASSOCIATION LTD.
Children and Adult Services,Commissioning inc Supporting People,Third Party Payments,441001,Supporting People,19-Mar-2015,2875693-1961681,"1,183.60",WADDINGTON STREET CENTRE LTD.
Children and Adult Services,Commissioning inc Supporting People,Third Party Payments,443001,Supporting People,19-Mar-2015,2875693-1961695,"1,395.12",WADDINGTON STREET CENTRE LTD.
Children and Adult Services,Commissioning inc Supporting People,Third Party Payments,441001,Supporting People,19-Mar-2015,2875697-1961702,"7,157.00",WEAR VALLEY WOMENS AID.
Children and Adult Services,Commissioning inc Supporting People,Employees,080025,Agency Staff,23-Mar-2015,2876453-DACT002/15,"1,816.67",RJH DEVELOPMENT DURHAM.
Children and Adult Services,Commissioning inc Supporting People,Debtors,930138,Debtor IC+ Residential Care Voids - CCG,25-Mar-2015,2877770-CAS-03-2015-089,"1,242.19",EMBRACE ALL LTD.
Children and Adult Services,Commissioning inc Supporting People,Debtors,930138,Debtor IC+ Residential Care Voids - CCG,25-Mar-2015,2877771-CAS-03-2015-088,"3,450.51",EMBRACE ALL LTD.
Children and Adult Services,Commissioning inc Supporting People,Debtors,930138,Debtor IC+ Residential Care Voids - CCG,25-Mar-2015,2877966-CAS-03-2015-091,"3,243.47",PERFECT CARE LTD T/A BELMONT GRANGE CARE HOME.
Children and Adult Services,Commissioning inc Supporting People,Transfer Payments,515210,Social Services Clients,26-Mar-2015,2878421-1502749H,"3,342.12",REDACTED - PAYMENT TO INDIVIDUAL
Children and Adult Services,Commissioning inc Supporting People,Transfer Payments,515210,Social Services Clients,26-Mar-2015,2878517-1506091H,"1,429.68",REDACTED - PAYMENT TO INDIVIDUAL
Children and Adult Services,Commissioning inc Supporting People,Transfer Payments,515210,Social Services Clients,26-Mar-2015,2878638-1503282H,"1,920.00",REDACTED - PAYMENT TO INDIVIDUAL
Children and Adult Services,Commissioning inc Supporting People,Transfer Payments,515210,Social Services Clients,26-Mar-2015,2878680-1506169H,"1,962.00",REDACTED - PAYMENT TO INDIVIDUAL
Children and Adult Services,Commissioning inc Supporting People,Transfer Payments,515210,Social Services Clients,26-Mar-2015,2878694-1504006H,"2,311.48",REDACTED - PAYMENT TO INDIVIDUAL
Children and Adult Services,Commissioning inc Supporting People,Transfer Payments,515210,Social Services Clients,26-Mar-2015,2878712-1500712H,"6,855.40",REDACTED - PAYMENT TO INDIVIDUAL
Children and Adult Services,Commissioning inc Supporting People,Transfer Payments,515210,Social Services Clients,26-Mar-2015,2878734-1504436H,"3,444.00",REDACTED - PAYMENT TO INDIVIDUAL
Children and Adult Services,Commissioning inc Supporting People,Transfer Payments,515210,Social Services Clients,26-Mar-2015,2878802-1504515H,776.28,REDACTED - PAYMENT TO INDIVIDUAL
Children and Adult Services,Commissioning inc Supporting People,Transfer Payments,515210,Social Services Clients,26-Mar-2015,2878908-1503556H,"3,381.68",REDACTED - PAYMENT TO INDIVIDUAL
Children and Adult Services,Commissioning inc Supporting People,Third Party Payments,472113,Purchase of Care,26-Mar-2015,2878980-1500314H,"1,104.26",DALE CARE LTD.
Children and Adult Services,Commissioning inc Supporting People,Third Party Payments,472113,Purchase of Care,26-Mar-2015,2878980-1503808H,936.33,DALE CARE LTD.
Children and Adult Services,Commissioning inc Supporting People,Third Party Payments,472113,Purchase of Care,26-Mar-2015,2878980-1504496H,"1,342.51",DALE CARE LTD.
Children and Adult Services,Commissioning inc Supporting People,Transfer Payments,515210,Social Services Clients,26-Mar-2015,2879052-1501571H,520.06,REDACTED - PAYMENT TO INDIVIDUAL
Children and Adult Services,Commissioning inc Supporting People,Transfer Payments,515210,Social Services Clients,26-Mar-2015,2879259-1501736H,"5,266.40",REDACTED - PAYMENT TO INDIVIDUAL
Children and Adult Services,Commissioning inc Supporting People,Transfer Payments,515210,Social Services Clients,26-Mar-2015,2879351-1502886H,"7,098.00",REDACTED - PAYMENT TO INDIVIDUAL
Children and Adult Services,Commissioning inc Supporting People,Third Party Payments,479101,Purchase of Care,27-Mar-2015,2880002-650072119,"9,250.00",BRITISH RED CROSS SOCIETY.
Children and Adult Services,Commissioning inc Supporting People,Third Party Payments,479102,Purchase of Care,30-Mar-2015,2880577-SITRH/0006644,"29,565.00",FOUR HOUSING GROUP.
Children and Adult Services,Commissioning inc Supporting People,Third Party Payments,479111,Purchase of Care,30-Mar-2015,2880675-555/03354,"14,830.50",MENTAL HEALTH MATTERS.
Dedicated Schools Grant,Dedicated Schools Grant,Supplies and Services,338091,Services,02-Mar-2015,2868138-876759,"2,447.15",TEACHING PERSONNEL LTD.
Dedicated Schools Grant,Dedicated Schools Grant,Supplies and Services,338091,Services,02-Mar-2015,2868138-973951,"2,647.15",TEACHING PERSONNEL LTD.
Dedicated Schools Grant,Dedicated Schools Grant,Supplies and Services,338091,Services,02-Mar-2015,2868146-144118,575.00,VISION FOR EDUCATION LTD.
Dedicated Schools Grant,Dedicated Schools Grant,Supplies and Services,352001,Conference Expenses,03-Mar-2015,2869022-50061904,"2,400.00",NEW COLLEGE DURHAM.
Dedicated Schools Grant,Dedicated Schools Grant,Third Party Payments,440080,Other Third Party Payments,03-Mar-2015,2869058-23675,"2,842.84",PERCY HEDLEY CENTRE.
Dedicated Schools Grant,Dedicated Schools Grant,Third Party Payments,440080,Other Third Party Payments,03-Mar-2015,2869138-180,615.38,TALBOT HOUSE SCHOOL.
Dedicated Schools Grant,Dedicated Schools Grant,Transport,230010,Contract Hire,04-Mar-2015,2869411-PRU032,"1,120.00",IAN SOULSBY.
Dedicated Schools Grant,Dedicated Schools Grant,Transport,230010,Contract Hire,04-Mar-2015,2869425-L0026F,825.00,JAFFAS TAXIS.
Dedicated Schools Grant,Dedicated Schools Grant,Transport,230010,Contract Hire,04-Mar-2015,2869429-2014/33,756.00,JM HUMBLE COACH HIRE.
Dedicated Schools Grant,Dedicated Schools Grant,Third Party Payments,425005,Rendered by Voluntary Organisations,04-Mar-2015,2869474-1000902,"4,615.38",MARCHBANK FREE SCHOOL.
Dedicated Schools Grant,Dedicated Schools Grant,Transport,230010,Contract Hire,04-Mar-2015,2869475-021504,"1,575.00",MARK & JOHN CHISHOLM T/A (CHEVRON).
Dedicated Schools Grant,Dedicated Schools Grant,Transport,230010,Contract Hire,04-Mar-2015,2869475-021508,"1,425.00",MARK & JOHN CHISHOLM T/A (CHEVRON).
Dedicated Schools Grant,Dedicated Schools Grant,Transport,230005,Contract Hire,04-Mar-2015,2869486-INV-70,700.00,MICHAEL COBB (T/A HAIL TAXIS).
Dedicated Schools Grant,Dedicated Schools Grant,Transport,230010,Contract Hire,04-Mar-2015,2869502-47,770.00,REDACTED - PAYMENT TO INDIVIDUAL
Dedicated Schools Grant,Dedicated Schools Grant,Transport,230010,Contract Hire,04-Mar-2015,2869556-150238,904.00,PRATTS TAXIS.
Dedicated Schools Grant,Dedicated Schools Grant,Transport,230010,Contract Hire,04-Mar-2015,2869577-309,645.00,ROAD RUNNERS (NE) LTD.
Dedicated Schools Grant,Dedicated Schools Grant,Transport,230010,Contract Hire,05-Mar-2015,2869726-L094WP/2,728.00,B&C YELLOWCAB TAXI`S.
Dedicated Schools Grant,Dedicated Schools Grant,Transport,230005,Contract Hire,05-Mar-2015,2869812-DCT06-15,750.00,DUNCAN G CUMMINGS T/A DC TAXIS.
Dedicated Schools Grant,Dedicated Schools Grant,Transport,230010,Contract Hire,05-Mar-2015,2870046-008,822.00,STEPHEN REED T/A STEVE`S TAXIS.
Dedicated Schools Grant,Dedicated Schools Grant,Transport,230010,Contract Hire,05-Mar-2015,2870059-DCC/2015/08,"1,115.00",TAYLOR`S TAXIS.
Dedicated Schools Grant,Dedicated Schools Grant,Transport,230010,Contract Hire,05-Mar-2015,2870059-DCC/2015/7,"1,092.00",TAYLOR`S TAXIS.
Dedicated Schools Grant,Dedicated Schools Grant,Transport,230010,Contract Hire,05-Mar-2015,2870082-14006,784.00,TRAVEL 6.
Dedicated Schools Grant,Dedicated Schools Grant,Transport,230010,Contract Hire,05-Mar-2015,2870082-15006,660.00,TRAVEL 6.
Dedicated Schools Grant,Dedicated Schools Grant,Transport,230005,Contract Hire,05-Mar-2015,2870085-66,"2,830.00",TRIDENT TAXIS.
Dedicated Schools Grant,Dedicated Schools Grant,Transport,230010,Contract Hire,05-Mar-2015,2870109-487831,720.00,WENDYS` TAXIS.
Dedicated Schools Grant,Dedicated Schools Grant,Third Party Payments,410037,Rendered by Other Local Authorities,06-Mar-2015,2870314-1000137,"2,250.00",HORIZONS SPECIALIST ACADEMY TRUST.
Dedicated Schools Grant,Dedicated Schools Grant,Transport,230010,Contract Hire,06-Mar-2015,2870535-267,870.00,SODA TAXIS.
Dedicated Schools Grant,Dedicated Schools Grant,Transport,230010,Contract Hire,09-Mar-2015,2870765-GT016,980.00,GORDON`S TAXIS.
Dedicated Schools Grant,Dedicated Schools Grant,Transport,230010,Contract Hire,09-Mar-2015,2870810-00599,"1,060.00",KENNAS CABS.
Dedicated Schools Grant,Dedicated Schools Grant,Transport,230010,Contract Hire,09-Mar-2015,2870845-06,545.00,MR KJB BOWERY T/A KJB TAXIS.
Dedicated Schools Grant,Dedicated Schools Grant,Third Party Payments,425005,Rendered by Voluntary Organisations,09-Mar-2015,2870862-0000018842,"13,991.40",NORTH EAST AUTISM SOCIETY.
Dedicated Schools Grant,Dedicated Schools Grant,Third Party Payments,425005,Rendered by Voluntary Organisations,09-Mar-2015,2870862-0000018854,"15,670.90",NORTH EAST AUTISM SOCIETY.
Dedicated Schools Grant,Dedicated Schools Grant,Third Party Payments,425005,Rendered by Voluntary Organisations,09-Mar-2015,2870862-0000018855,"23,928.89",NORTH EAST AUTISM SOCIETY.
Dedicated Schools Grant,Dedicated Schools Grant,Third Party Payments,440080,Other Third Party Payments,09-Mar-2015,2870877-23266,"16,841.72",PERCY HEDLEY FOUNDATION.
Dedicated Schools Grant,Dedicated Schools Grant,Third Party Payments,440080,Other Third Party Payments,09-Mar-2015,2870877-23549,"16,841.72",PERCY HEDLEY FOUNDATION.
Dedicated Schools Grant,Dedicated Schools Grant,Supplies and Services,338091,Services,09-Mar-2015,2870980-140229,525.00,VISION FOR EDUCATION LTD.
Dedicated Schools Grant,Dedicated Schools Grant,Third Party Payments,440080,Other Third Party Payments,10-Mar-2015,2871913-0000020618,"1,056.04",NORTH EAST AUTISM SOCIETY.
Dedicated Schools Grant,Dedicated Schools Grant,Third Party Payments,440080,Other Third Party Payments,10-Mar-2015,2871913-0000020628,"1,611.03",NORTH EAST AUTISM SOCIETY.
Dedicated Schools Grant,Dedicated Schools Grant,Third Party Payments,440080,Other Third Party Payments,10-Mar-2015,2871913-0000020630,"1,056.04",NORTH EAST AUTISM SOCIETY.
Dedicated Schools Grant,Dedicated Schools Grant,Third Party Payments,425005,Rendered by Voluntary Organisations,10-Mar-2015,2871914-0000018846,"11,752.79",NORTH EAST AUTISM SOCIETY.
Dedicated Schools Grant,Dedicated Schools Grant,Third Party Payments,425005,Rendered by Voluntary Organisations,10-Mar-2015,2871934-23337,"7,366.67",PERCY HEDLEY FOUNDATION.
Dedicated Schools Grant,Dedicated Schools Grant,Transport,230010,Contract Hire,10-Mar-2015,2872024-22902A,802.50,T MOORE & SON.
Dedicated Schools Grant,Dedicated Schools Grant,Third Party Payments,425005,Rendered by Voluntary Organisations,11-Mar-2015,2872377-23285,"64,361.36",PERCY HEDLEY FOUNDATION.
Dedicated Schools Grant,Dedicated Schools Grant,Third Party Payments,440080,Other Third Party Payments,11-Mar-2015,2872377-23677,"16,841.72",PERCY HEDLEY FOUNDATION.
Dedicated Schools Grant,Dedicated Schools Grant,Transport,230010,Contract Hire,12-Mar-2015,2872601-KW369,770.00,KWIK CABS.
Dedicated Schools Grant,Dedicated Schools Grant,Transport,230010,Contract Hire,12-Mar-2015,2872602-2A-28/2/15,"1,064.00",L & R PRIVATE HIRE.
Dedicated Schools Grant,Dedicated Schools Grant,Transport,230010,Contract Hire,12-Mar-2015,2872602-49,888.00,L & R PRIVATE HIRE.
Dedicated Schools Grant,Dedicated Schools Grant,Transport,230010,Contract Hire,12-Mar-2015,2872701-TS14S-28,"1,120.00",TOP STAR TRAVEL.
Dedicated Schools Grant,Dedicated Schools Grant,Transport,230010,Contract Hire,13-Mar-2015,2872740-C12/SW,648.00,AABAT TAXIS.
Dedicated Schools Grant,Dedicated Schools Grant,Transport,230010,Contract Hire,13-Mar-2015,2872780-02/2015/0002,980.00,BILL SCOTT (BILL SCOTT TAXIS).
Dedicated Schools Grant,Dedicated Schools Grant,Transport,230010,Contract Hire,13-Mar-2015,2872811-P04806S,680.00,C & R TAXIS.
Dedicated Schools Grant,Dedicated Schools Grant,Transport,230010,Contract Hire,13-Mar-2015,2873035-021411,900.00,MARK & JOHN CHISHOLM T/A (CHEVRON).
Dedicated Schools Grant,Dedicated Schools Grant,Transport,230010,Contract Hire,13-Mar-2015,2873035-021502,"1,248.00",MARK & JOHN CHISHOLM T/A (CHEVRON).
Dedicated Schools Grant,Dedicated Schools Grant,Supplies and Services,338091,Services,13-Mar-2015,2873151-1219,768.00,RIGHT TRAX LTD.
Dedicated Schools Grant,Dedicated Schools Grant,Supplies and Services,312075,Newspapers Books and Periodicals,16-Mar-2015,2873301-2340983,"1,657.50",(CGP) COORDINATION GROUP PUBLICATIONS
Dedicated Schools Grant,Dedicated Schools Grant,Third Party Payments,440080,Other Third Party Payments,16-Mar-2015,2873403-I0022408,"2,241.95",CITY OF SUNDERLAND COLLEGE.
Dedicated Schools Grant,Dedicated Schools Grant,Supplies and Services,304259,Equipment and Materials,16-Mar-2015,2873570-00118226,"1,981.00",JENX LTD.
Dedicated Schools Grant,Dedicated Schools Grant,Third Party Payments,440080,Other Third Party Payments,16-Mar-2015,2873664-0000020644,"1,658.41",NORTH EAST AUTISM SOCIETY.
Dedicated Schools Grant,Dedicated Schools Grant,Third Party Payments,440080,Other Third Party Payments,16-Mar-2015,2873664-0000020645,"1,658.41",NORTH EAST AUTISM SOCIETY.
Dedicated Schools Grant,Dedicated Schools Grant,Employees,080025,Agency Staff,16-Mar-2015,2873826-982873,"2,647.15",TEACHING PERSONNEL LTD.
Dedicated Schools Grant,Dedicated Schools Grant,Transport,230008,Contract Hire,17-Mar-2015,2874615-5168,585.00,CROFT BUSINESS SERVICES (UK) LTD T/A CROFT TAXIS.
Dedicated Schools Grant,Dedicated Schools Grant,Transport,230010,Contract Hire,17-Mar-2015,2874721-1038,"1,872.00",LD TAXIS.
Dedicated Schools Grant,Dedicated Schools Grant,Transport,230010,Contract Hire,17-Mar-2015,2874724-3142,"1,212.50",LINCAB TAXIS.
Dedicated Schools Grant,Dedicated Schools Grant,Third Party Payments,425005,Rendered by Voluntary Organisations,17-Mar-2015,2874784-22914,"64,361.36",PERCY HEDLEY FOUNDATION.
Dedicated Schools Grant,Dedicated Schools Grant,Transport,230010,Contract Hire,18-Mar-2015,238818-P060E,660.00,REDACTED - PAYMENT TO INDIVIDUAL
Dedicated Schools Grant,Dedicated Schools Grant,Transport,230010,Contract Hire,18-Mar-2015,2874993-5167,"1,481.40",CROFT BUSINESS SERVICES (UK) LTD T/A CROFT TAXIS.
Dedicated Schools Grant,Dedicated Schools Grant,Transport,230010,Contract Hire,18-Mar-2015,2875121-3,540.00,MACS TAXIS DURHAM LTD.
Dedicated Schools Grant,Dedicated Schools Grant,Supplies and Services,324093,Provisions,18-Mar-2015,2875206-HH38616019,952.75,PETER`S FOOD SERVICE LTD.
Dedicated Schools Grant,Dedicated Schools Grant,Third Party Payments,425005,Rendered by Voluntary Organisations,20-Mar-2015,2875769-14684,"3,801.50",CHORISTER SCHOOL.
Dedicated Schools Grant,Dedicated Schools Grant,Third Party Payments,425005,Rendered by Voluntary Organisations,20-Mar-2015,2875769-14913,"5,611.22",CHORISTER SCHOOL.
Dedicated Schools Grant,Dedicated Schools Grant,Transport,230010,Contract Hire,20-Mar-2015,2875891-3146,924.00,LINCAB TAXIS.
Dedicated Schools Grant,Dedicated Schools Grant,Third Party Payments,425005,Rendered by Voluntary Organisations,20-Mar-2015,2875956-21368,"7,208.00",PERCY HEDLEY FOUNDATION.
Dedicated Schools Grant,Dedicated Schools Grant,Transfer Payments,510034,School Children,20-Mar-2015,2876015-RES-03-2015-075,560.00,SOUTHMOOR ACADEMY.
Dedicated Schools Grant,Dedicated Schools Grant,Supplies and Services,384199,Miscellaneous Expenses,23-Mar-2015,2876300-0822014,533.61,INVESTING IN CHILDREN CIC.
Dedicated Schools Grant,Dedicated Schools Grant,Transport,230010,Contract Hire,24-Mar-2015,2877290-5173,549.80,CROFT BUSINESS SERVICES (UK) LTD T/A CROFT TAXIS.
Dedicated Schools Grant,Dedicated Schools Grant,Third Party Payments,440080,Other Third Party Payments,24-Mar-2015,2877318-0000035136,"119,215.44",EAST DURHAM COLLEGE.
Dedicated Schools Grant,Dedicated Schools Grant,Central Support and Capital,689997,Unclassified,24-Mar-2015,2877352-CAS-03-2015-099,"38,481.50",GLENDENE ARTS ACADEMY.
Dedicated Schools Grant,Dedicated Schools Grant,Transfer Payments,510032,School Children,24-Mar-2015,2877367-CAS-03-2015-109,551.70,REDACTED - PAYMENT TO INDIVIDUAL
Dedicated Schools Grant,Dedicated Schools Grant,Central Support and Capital,689997,Unclassified,24-Mar-2015,2877412-CAS-03-2015-111,"7,062.83",KING JAMES I ACADEMY.
Dedicated Schools Grant,Dedicated Schools Grant,Transfer Payments,510032,School Children,24-Mar-2015,2877454-CAS-03-2015-108,967.54,REDACTED - PAYMENT TO INDIVIDUAL
Dedicated Schools Grant,Dedicated Schools Grant,Supplies and Services,338091,Services,24-Mar-2015,2877459-I/N327,"1,680.00",MR LIAM P DINEEN T/A BOX CLEVER.
Dedicated Schools Grant,Dedicated Schools Grant,Third Party Payments,440080,Other Third Party Payments,24-Mar-2015,2877472-100690,"3,624.99",NISAI VIRTUAL ACADEMY.
Dedicated Schools Grant,Dedicated Schools Grant,Third Party Payments,440080,Other Third Party Payments,24-Mar-2015,2877472-100691,"2,874.99",NISAI VIRTUAL ACADEMY.
Dedicated Schools Grant,Dedicated Schools Grant,Employees,080025,Agency Staff,24-Mar-2015,2877577-971131,"2,477.72",TEACHING PERSONNEL LTD.
Dedicated Schools Grant,Dedicated Schools Grant,Transfer Payments,510032,School Children,25-Mar-2015,238950-CAS-03-2015-085,569.64,REDACTED - PAYMENT TO INDIVIDUAL
Dedicated Schools Grant,Dedicated Schools Grant,Third Party Payments,425005,Rendered by Voluntary Organisations,25-Mar-2015,2877965-20897,"43,248.00",PERCY HEDLEY FOUNDATION.
Dedicated Schools Grant,Dedicated Schools Grant,Third Party Payments,440080,Other Third Party Payments,25-Mar-2015,2877965-23676,"3,725.13",PERCY HEDLEY FOUNDATION.
Dedicated Schools Grant,Dedicated Schools Grant,Employees,080025,Agency Staff,25-Mar-2015,2878090-141452,575.00,VISION FOR EDUCATION LTD.
Dedicated Schools Grant,Dedicated Schools Grant,Transfer Payments,510032,School Children,26-Mar-2015,2879796-CAS-03-2015-127,800.00,REDACTED - PAYMENT TO INDIVIDUAL
Dedicated Schools Grant,Dedicated Schools Grant,Third Party Payments,425005,Rendered by Voluntary Organisations,26-Mar-2015,2879845-23309,"191,293.19",PERCY HEDLEY FOUNDATION.
Dedicated Schools Grant,Dedicated Schools Grant,Transfer Payments,510034,School Children,27-Mar-2015,2880132-RED-03-2015-104,550.00,GLENDENE ARTS ACADEMY.
Dedicated Schools Grant,Dedicated Schools Grant,Third Party Payments,425005,Rendered by Voluntary Organisations,30-Mar-2015,2880560-953,"18,400.00",DURHAM SCHOOL.
Dedicated Schools Grant,Dedicated Schools Grant,Third Party Payments,425005,Rendered by Voluntary Organisations,30-Mar-2015,2880561-775,"2,155.00",DURHAM SCHOOL.
Dedicated Schools Grant,Dedicated Schools Grant,Third Party Payments,425005,Rendered by Voluntary Organisations,30-Mar-2015,2880561-842,"5,280.00",DURHAM SCHOOL.
Dedicated Schools Grant,Dedicated Schools Grant,Third Party Payments,440080,Other Third Party Payments,30-Mar-2015,2880688-100621,"1,916.68",NISAI VIRTUAL ACADEMY.
Dedicated Schools Grant,Dedicated Schools Grant,Third Party Payments,440080,Other Third Party Payments,30-Mar-2015,2880688-100622,"1,416.68",NISAI VIRTUAL ACADEMY.
Dedicated Schools Grant,Dedicated Schools Grant,Third Party Payments,425005,Rendered by Voluntary Organisations,31-Mar-2015,2881522-775ADDITTPYMNT,"2,155.00",DURHAM SCHOOL.
Dedicated Schools Grant,Dedicated Schools Grant,Third Party Payments,425005,Rendered by Voluntary Organisations,31-Mar-2015,2881522-842ADDITTPYMNT,"27,604.64",DURHAM SCHOOL.
Dedicated Schools Grant,Dedicated Schools Grant,Supplies and Services,338027,Services,31-Mar-2015,2881574-DURH/0605,"109,755.00",INSPIREDSPACES DURHAM LTD.
Dedicated Schools Grant,Dedicated Schools Grant,Transfer Payments,510032,School Children,31-Mar-2015,2881651-CAS-03-2015-149,600.00,REBECCA BOND T/A LITTLE BEANS CHILDMINDING.
Dedicated Schools Grant,Dedicated Schools Grant,Transfer Payments,510032,School Children,31-Mar-2015,2881716-CAS-03-2015-147,600.00,REDACTED - PAYMENT TO INDIVIDUAL
Children and Adult Services,Education,Construction Work,908105,Construction work,02-Mar-2015,2868057-DURH/0596,"194,937.99",INSPIREDSPACES DURHAM LTD.
Children and Adult Services,Education,Construction Work,908105,Construction work,02-Mar-2015,2868057-DURH/0599,"70,814.00",INSPIREDSPACES DURHAM LTD.
Children and Adult Services,Education,Construction Work,908105,Construction work,02-Mar-2015,2868057-DURH/0600,"72,310.42",INSPIREDSPACES DURHAM LTD.
Children and Adult Services,Education,Construction Work,908105,Construction work,02-Mar-2015,2868057-DURH/0601,"171,389.24",INSPIREDSPACES DURHAM LTD.
Children and Adult Services,Education,Transport,230008,Contract Hire,03-Mar-2015,2869032-M00066072027,"1,520.00",NORTH TYNESIDE COUNCIL.
Children and Adult Services,Education,Supplies and Services,384199,Miscellaneous Expenses,03-Mar-2015,2869158-VIA500906,"5,000.00",THE VIA PARTNERSHIP LTD.
Children and Adult Services,Education,Transport,230007,Contract Hire,04-Mar-2015,2869223-41,812.00,AALPHA TAXIS.
Children and Adult Services,Education,Transport,230006,Contract Hire,04-Mar-2015,2869224-570,720.00,AC TAXIS.
Children and Adult Services,Education,Transport,230006,Contract Hire,04-Mar-2015,2869228-FEB02-27-2014,"1,160.00",PAUL ROSE T/A PAUL`S TAXIS.
Children and Adult Services,Education,Transport,230008,Contract Hire,04-Mar-2015,2869230-24/14,"1,040.00",ADVANCE TRAVEL.
Children and Adult Services,Education,Transport,230007,Contract Hire,04-Mar-2015,2869236-040,"1,120.00",ALANS TAXIS BARNARD CASTLE.
Children and Adult Services,Education,Transport,230007,Contract Hire,04-Mar-2015,2869236-041,"1,100.00",ALANS TAXIS BARNARD CASTLE.
Children and Adult Services,Education,Supplies and Services,312011,Newspapers Books and Periodicals,04-Mar-2015,2869242-4582241,762.89,ASKEWS & HOLTS LIBRARY SERVICES LTD.
Children and Adult Services,Education,Transport,230008,Contract Hire,04-Mar-2015,2869246-DCC6FEB15,"2,432.00",ATLAS TAXIS BISHOP AUCKLAND.
Children and Adult Services,Education,Transport,230008,Contract Hire,04-Mar-2015,2869257-41,"1,485.00",BEELINE TAXIS.
Children and Adult Services,Education,Transport,230008,Contract Hire,04-Mar-2015,2869260-111,960.00,BG TAXIS.
Children and Adult Services,Education,Transport,230008,Contract Hire,04-Mar-2015,2869264-5,525.00,BL TAXIS.
Children and Adult Services,Education,Transport,230008,Contract Hire,04-Mar-2015,2869276-BZ00140,"1,170.00",BREZ`S TAXIS.
Children and Adult Services,Education,Transport,230008,Contract Hire,04-Mar-2015,2869276-BZ00141,732.00,BREZ`S TAXIS.
Children and Adult Services,Education,Transport,230008,Contract Hire,04-Mar-2015,2869310-FEB1982,825.00,CM TAXIS.
Children and Adult Services,Education,Transport,230007,Contract Hire,04-Mar-2015,2869325-DCC/4029/FEB15,"1,485.00",COUNTY COACHES.
Children and Adult Services,Education,Transport,230008,Contract Hire,04-Mar-2015,2869331-1382,900.00,DA TAXIS.
Children and Adult Services,Education,Transport,230008,Contract Hire,04-Mar-2015,2869332-107,945.00,DA TRAVEL.
Children and Adult Services,Education,Transport,230008,Contract Hire,04-Mar-2015,2869332-108,825.00,DA TRAVEL.
Children and Adult Services,Education,Transport,230008,Contract Hire,04-Mar-2015,2869332-111,"1,005.00",DA TRAVEL.
Children and Adult Services,Education,Transport,230008,Contract Hire,04-Mar-2015,2869338-0215/001,"1,050.00",DCM TAXIS.
Children and Adult Services,Education,Supplies and Services,338094,Services,04-Mar-2015,2869342-030,570.00,DERWENTSIDE TRUST.
Children and Adult Services,Education,Transport,230007,Contract Hire,04-Mar-2015,2869363-0638,675.00,EN ROUTE TRAVEL.
Children and Adult Services,Education,Transport,230007,Contract Hire,04-Mar-2015,2869363-0639,"1,200.00",EN ROUTE TRAVEL.
Children and Adult Services,Education,Transport,230007,Contract Hire,04-Mar-2015,2869376-0324,540.00,FMR SILVA PITA.
Children and Adult Services,Education,Transport,230007,Contract Hire,04-Mar-2015,2869382-17044,"2,085.00",GARNETTS LTD (COACHES).
Children and Adult Services,Education,Transport,230007,Contract Hire,04-Mar-2015,2869382-17046,"8,925.00",GARNETTS LTD (COACHES).
Children and Adult Services,Education,Transport,230007,Contract Hire,04-Mar-2015,2869382-17047,"5,805.00",GARNETTS LTD (COACHES).
Children and Adult Services,Education,Transport,230007,Contract Hire,04-Mar-2015,2869382-17049,"1,935.00",GARNETTS LTD (COACHES).
Children and Adult Services,Education,Transport,230007,Contract Hire,04-Mar-2015,2869382-17050,"2,385.00",GARNETTS LTD (COACHES).
Children and Adult Services,Education,Transport,230008,Contract Hire,04-Mar-2015,2869390-W082/028,"1,176.00",GMC TAXIS NORTH EAST.
Children and Adult Services,Education,Transport,230008,Contract Hire,04-Mar-2015,2869390-W084/028,"1,320.00",GMC TAXIS NORTH EAST.
Children and Adult Services,Education,Transport,230007,Contract Hire,04-Mar-2015,2869403-HT159,"1,500.00",HARRY`S TAXI`S.
Children and Adult Services,Education,Transport,230008,Contract Hire,04-Mar-2015,2869403-HT160,"1,200.00",HARRY`S TAXI`S.
Children and Adult Services,Education,Transport,230007,Contract Hire,04-Mar-2015,2869403-HT161,600.00,HARRY`S TAXI`S.
Children and Adult Services,Education,Transport,230008,Contract Hire,04-Mar-2015,2869403-HT162,"1,980.00",HARRY`S TAXI`S.
Children and Adult Services,Education,Transport,230008,Contract Hire,04-Mar-2015,2869406-28,"1,120.00",HENRYS TAXIS.
Children and Adult Services,Education,Transport,230008,Contract Hire,04-Mar-2015,2869408-INV59,"1,190.00",HORNDALE AJ`S TAXIS.
Children and Adult Services,Education,Transport,230007,Contract Hire,04-Mar-2015,2869408-INV63,900.00,HORNDALE AJ`S TAXIS.
Children and Adult Services,Education,Transport,230007,Contract Hire,04-Mar-2015,2869409-F1288,577.20,HUNTER BROTHERS (TANTOBIE) LTD.
Children and Adult Services,Education,Transport,230008,Contract Hire,04-Mar-2015,2869423-0006,825.00,JA SHORT.
Children and Adult Services,Education,Transport,230006,Contract Hire,04-Mar-2015,2869433-0008,770.00,JOHN WARE T/A J & K TAXIS.
Children and Adult Services,Education,Transport,230008,Contract Hire,04-Mar-2015,2869434-75,"1,665.00",JOHNS TAXIS (CHESTER LE STREET).
Children and Adult Services,Education,Transport,230008,Contract Hire,04-Mar-2015,2869437-M0366,735.00,JOVIAL PRIVATE HIRE.
Children and Adult Services,Education,Transport,230008,Contract Hire,04-Mar-2015,2869437-N0306,"1,245.00",JOVIAL PRIVATE HIRE.
Children and Adult Services,Education,Transport,230007,Contract Hire,04-Mar-2015,2869437-SJPS12,930.00,JOVIAL PRIVATE HIRE.
Children and Adult Services,Education,Transport,230007,Contract Hire,04-Mar-2015,2869441-1186-27/2/15,975.00,K & R TAXIS.
Children and Adult Services,Education,Transport,230008,Contract Hire,04-Mar-2015,2869450-6,"1,110.00",KT TAXIS.
Children and Adult Services,Education,Transport,230006,Contract Hire,04-Mar-2015,2869454-1039,"1,110.00",LD TAXIS.
Children and Adult Services,Education,Transport,230008,Contract Hire,04-Mar-2015,2869475-021501,"1,800.00",MARK & JOHN CHISHOLM T/A (CHEVRON).
Children and Adult Services,Education,Transport,230008,Contract Hire,04-Mar-2015,2869475-021503,"1,162.00",MARK & JOHN CHISHOLM T/A (CHEVRON).
Children and Adult Services,Education,Transport,230008,Contract Hire,04-Mar-2015,2869475-021505,870.00,MARK & JOHN CHISHOLM T/A (CHEVRON).
Children and Adult Services,Education,Transport,230008,Contract Hire,04-Mar-2015,2869475-021506,712.50,MARK & JOHN CHISHOLM T/A (CHEVRON).
Children and Adult Services,Education,Transport,230008,Contract Hire,04-Mar-2015,2869477-380215,"1,020.00",MARK MUSGROVE T/A MARKS TAXIS.
Children and Adult Services,Education,Transport,230008,Contract Hire,04-Mar-2015,2869477-480215,690.00,MARK MUSGROVE T/A MARKS TAXIS.
Children and Adult Services,Education,Transport,230008,Contract Hire,04-Mar-2015,2869483-07-28/2/15,"1,050.00",MAURICE & SONS.
Children and Adult Services,Education,Transport,230008,Contract Hire,04-Mar-2015,2869483-11,"1,275.00",MAURICE & SONS.
Children and Adult Services,Education,Transport,230008,Contract Hire,04-Mar-2015,2869488-KDC010215,"1,862.00",MJ TIMNEY T/A KDC & C&M TAXIS.
Children and Adult Services,Education,Transport,230007,Contract Hire,04-Mar-2015,2869492-005,643.50,MR A MILLWARD T/A SWISS CABS PRIVATE HIRE.
Children and Adult Services,Education,Transport,230007,Contract Hire,04-Mar-2015,2869494-6,600.00,MR BW YOUNG T/A ESH TAXIS.
Children and Adult Services,Education,Transport,230008,Contract Hire,04-Mar-2015,2869498-DSR/02/15,900.00,MR J AGAR T/A PARK TAXIS.
Children and Adult Services,Education,Transport,230008,Contract Hire,04-Mar-2015,2869501-AA303,"2,025.00",MR T GUNN.
Children and Adult Services,Education,Construction Work,908201,Capital - Public Utilities - Electricity Services,04-Mar-2015,2869523-NNO7NJJ4,817.84,NPOWER.
Children and Adult Services,Education,Transport,230008,Contract Hire,04-Mar-2015,2869544-482,960.00,PETERLEE EXECUTIVE CARS.
Children and Adult Services,Education,Transport,230008,Contract Hire,04-Mar-2015,2869544-484,"1,080.00",PETERLEE EXECUTIVE CARS.
Children and Adult Services,Education,Transport,230008,Contract Hire,04-Mar-2015,2869556-150235,840.00,PRATTS TAXIS.
Children and Adult Services,Education,Transport,230008,Contract Hire,04-Mar-2015,2869556-150237,"1,200.00",PRATTS TAXIS.
Children and Adult Services,Education,Transport,230007,Contract Hire,04-Mar-2015,2869557-286,896.00,PREMIER PRIVATE HIRE.
Children and Adult Services,Education,Transport,230008,Contract Hire,04-Mar-2015,2869568-079,975.00,REDZ PRIVATE HIRE.
Children and Adult Services,Education,Transport,230008,Contract Hire,04-Mar-2015,2869570-2175,"1,171.50",RICHIES TAXIS.
Children and Adult Services,Education,Transport,230008,Contract Hire,04-Mar-2015,2869577-306,"1,140.00",ROAD RUNNERS (NE) LTD.
Children and Adult Services,Education,Transport,230008,Contract Hire,04-Mar-2015,2869577-308,975.00,ROAD RUNNERS (NE) LTD.
Children and Adult Services,Education,Transport,230007,Contract Hire,04-Mar-2015,2869579-140272,"4,633.50",ROBERTS TOURS.
Children and Adult Services,Education,Transport,230008,Contract Hire,04-Mar-2015,2869582-016,"1,275.00",RONS TAXI.
Children and Adult Services,Education,Transport,230008,Contract Hire,04-Mar-2015,2869583-1610,"1,526.25",RONS TAXIS.
Children and Adult Services,Education,Transport,230008,Contract Hire,04-Mar-2015,2869583-1611,"1,725.00",RONS TAXIS.
Children and Adult Services,Education,Transport,230008,Contract Hire,04-Mar-2015,2869584-5-27/2/15,600.00,ROUTE 1.
Children and Adult Services,Education,Construction Work,908105,Construction work,04-Mar-2015,2869585-15676,"1,050.00",RUSSELL TELECOM LTD.
Children and Adult Services,Education,Construction Work,908105,Construction work,04-Mar-2015,2869589-1716,"1,973.12",SAFE STRIP UK LTD.
Children and Adult Services,Education,Transport,230007,Contract Hire,04-Mar-2015,2869599-71661,750.00,SHOTTON PRIVATE HIRE.
Children and Adult Services,Education,Transport,230008,Contract Hire,04-Mar-2015,2869599-71662,621.60,SHOTTON PRIVATE HIRE.
Children and Adult Services,Education,Transport,230008,Contract Hire,04-Mar-2015,2869599-71663,"1,800.00",SHOTTON PRIVATE HIRE.
Children and Adult Services,Education,Transport,230008,Contract Hire,04-Mar-2015,2869599-71664,"1,650.00",SHOTTON PRIVATE HIRE.
Children and Adult Services,Education,Transport,230008,Contract Hire,04-Mar-2015,2869603-80-27/2/15,"1,207.50",SIMONS TAXIS.
Children and Adult Services,Education,Transport,230007,Contract Hire,04-Mar-2015,2869617-284,"1,497.00",STEPHEN MAUDE LTD T/A MAUDES COACHES.
Children and Adult Services,Education,Transport,230008,Contract Hire,04-Mar-2015,2869620-00032,720.00,STEVES TAXIS.
Children and Adult Services,Education,Supplies and Services,338027,Services,04-Mar-2015,2869623-23,"2,118.00",SUE SMITH..
Children and Adult Services,Education,Premises,125009,Rents,04-Mar-2015,2869644-3460,700.00,THE WORK PLACE (AYCLIFFE) LTD.
Children and Adult Services,Education,Transport,230008,Contract Hire,04-Mar-2015,2869658-049-28/2/15,715.00,TRUDY`S.
Children and Adult Services,Education,Transport,230007,Contract Hire,04-Mar-2015,2869658-052,600.00,TRUDY`S.
Children and Adult Services,Education,Transport,230008,Contract Hire,05-Mar-2015,2869733,825.00,BEELINE PRIVATE HIRE.
Children and Adult Services,Education,Transport,230008,Contract Hire,05-Mar-2015,2869694-15,900.00,A & P TAXIS.
Children and Adult Services,Education,Transport,230008,Contract Hire,05-Mar-2015,2869696-02022015,885.00,ABA TAXIS.
Children and Adult Services,Education,Transport,230008,Contract Hire,05-Mar-2015,2869697-0232,855.00,ABC & OUSTON CABS.
Children and Adult Services,Education,Transport,230006,Contract Hire,05-Mar-2015,2869707-388031,570.00,ALAN SOUTHERN T/A ALANS TAXIS PELTON FELL.
Children and Adult Services,Education,Transport,230008,Contract Hire,05-Mar-2015,2869707-388131,600.00,ALAN SOUTHERN T/A ALANS TAXIS PELTON FELL.
Children and Adult Services,Education,Transport,230008,Contract Hire,05-Mar-2015,2869707-388231,"1,117.50",ALAN SOUTHERN T/A ALANS TAXIS PELTON FELL.
Children and Adult Services,Education,Transport,230008,Contract Hire,05-Mar-2015,2869721-27215,825.00,AVALON TAXIS.
Children and Adult Services,Education,Transport,230008,Contract Hire,05-Mar-2015,2869732-464,"1,164.00",BEELINE MINI BUSES.
Children and Adult Services,Education,Transport,230008,Contract Hire,05-Mar-2015,2869732-465,"1,125.00",BEELINE MINI BUSES.
Children and Adult Services,Education,Transport,230008,Contract Hire,05-Mar-2015,2869738-1373,"1,935.00",BOBBY DOVE.
Children and Adult Services,Education,Transport,230008,Contract Hire,05-Mar-2015,2869738-1374,"1,260.00",BOBBY DOVE.
Children and Adult Services,Education,Transport,230008,Contract Hire,05-Mar-2015,2869752-BIL0054,"1,200.00",CA MUSGROVE.
Children and Adult Services,Education,Supplies and Services,338027,Services,05-Mar-2015,2869760-SI-591,"1,150.50",CASA SAFETY TRAINING SERVICES LTD.
Children and Adult Services,Education,Transport,230008,Contract Hire,05-Mar-2015,2869804-0009,"1,020.00",DAVID WALKER TAXIS.
Children and Adult Services,Education,Supplies and Services,352001,Conference Expenses,05-Mar-2015,2869817-EE1502044,500.00,EARLY EDUCATION.
Children and Adult Services,Education,Supplies and Services,372009,Subscriptions,05-Mar-2015,2869825-EDU13425,"4,999.00",EDUFOCUS LTD.
Children and Adult Services,Education,Transport,230007,Contract Hire,05-Mar-2015,2869845-17048,"12,446.00",GARNETTS LTD (COACHES).
Children and Adult Services,Education,Supplies and Services,338027,Services,05-Mar-2015,2869868-INV000090,"4,000.00",HERMITAGE ACADEMY.
Children and Adult Services,Education,Transport,230006,Contract Hire,05-Mar-2015,2869872-INV62,504.00,HORNDALE AJ`S TAXIS.
Children and Adult Services,Education,Transport,230007,Contract Hire,05-Mar-2015,2869874-F1289,"1,485.00",HUNTER BROTHERS (TANTOBIE) LTD.
Children and Adult Services,Education,Transport,230008,Contract Hire,05-Mar-2015,2869877-17,900.00,IAN SHEPLEY T/A SHEPPA`S TAXIS.
Children and Adult Services,Education,Transport,230008,Contract Hire,05-Mar-2015,2869886-81,750.00,JACK`S TAXIS.
Children and Adult Services,Education,Transport,230008,Contract Hire,05-Mar-2015,2869894-2014/34,672.00,JM HUMBLE COACH HIRE.
Children and Adult Services,Education,Supplies and Services,338094,Services,05-Mar-2015,2869910-SI-002632,"1,806.00",LEISUREWORKS.
Children and Adult Services,Education,Transport,230008,Contract Hire,05-Mar-2015,2869915-2057,"1,270.00",LOCAL TRANSPORT LTD.
Children and Adult Services,Education,Transport,230008,Contract Hire,05-Mar-2015,2869915-2058,"1,140.00",LOCAL TRANSPORT LTD.
Children and Adult Services,Education,Transport,230008,Contract Hire,05-Mar-2015,2869915-2059,600.00,LOCAL TRANSPORT LTD.
Children and Adult Services,Education,Transport,230008,Contract Hire,05-Mar-2015,2869935-16,"1,120.00",MEDAL TAXI`S.
Children and Adult Services,Education,Transport,230008,Contract Hire,05-Mar-2015,2869945-518,"1,414.00",MOLLYS TAXIS.
Children and Adult Services,Education,Transport,230008,Contract Hire,05-Mar-2015,2869945-521,"1,260.00",MOLLYS TAXIS.
Children and Adult Services,Education,Transport,230008,Contract Hire,05-Mar-2015,2869945-522,"1,680.00",MOLLYS TAXIS.
Children and Adult Services,Education,Transport,230008,Contract Hire,05-Mar-2015,2869945-523,"1,650.00",MOLLYS TAXIS.
Children and Adult Services,Education,Transport,230008,Contract Hire,05-Mar-2015,2869945-526,"1,260.00",MOLLYS TAXIS.
Children and Adult Services,Education,Transport,230007,Contract Hire,05-Mar-2015,2869949-2052,"1,200.00",MR P & MR N EILLES T/A TRAPPAS TRAVEL.
Children and Adult Services,Education,Transport,230008,Contract Hire,05-Mar-2015,2869955-6,560.00,NEIL PASSMOOR T/A NEIL`S TAXI.
Children and Adult Services,Education,Transport,230008,Contract Hire,05-Mar-2015,2869983-SC-032,"1,200.00",PAUL BURRELL T/A PAUL BURRELL TAXIS.
Children and Adult Services,Education,Transport,230007,Contract Hire,05-Mar-2015,2869984-1407,756.00,PAUL WATSON TRAVEL.
Children and Adult Services,Education,Transport,230007,Contract Hire,05-Mar-2015,2869984-1408,"1,820.00",PAUL WATSON TRAVEL.
Children and Adult Services,Education,Transport,230007,Contract Hire,05-Mar-2015,2869984-1409,"1,680.00",PAUL WATSON TRAVEL.
Children and Adult Services,Education,Transport,230008,Contract Hire,05-Mar-2015,2869986-DCC24,"1,200.00",PAUL`S TAXIS..
Children and Adult Services,Education,Transport,230008,Contract Hire,05-Mar-2015,2869997-B06,"1,180.00",PRESTYS HACKNEY & PRIVATE HIRE TAXIS.
Children and Adult Services,Education,Transport,230008,Contract Hire,05-Mar-2015,2869997-G59,690.00,PRESTYS HACKNEY & PRIVATE HIRE TAXIS.
Children and Adult Services,Education,Transport,230007,Contract Hire,05-Mar-2015,2870005-28A,960.00,RAYNERS COACHES.
Children and Adult Services,Education,Transport,230008,Contract Hire,05-Mar-2015,2870029-71660,"1,350.00",SHOTTON PRIVATE HIRE.
Children and Adult Services,Education,Transport,230008,Contract Hire,05-Mar-2015,2870034-122A,"1,125.00",SJ MACKENZIE T/A SCOTTS TAXIS.
Children and Adult Services,Education,Transport,230008,Contract Hire,05-Mar-2015,2870034-125A,"1,815.00",SJ MACKENZIE T/A SCOTTS TAXIS.
Children and Adult Services,Education,Transport,230008,Contract Hire,05-Mar-2015,2870037-131,690.00,SODA TAXIS.
Children and Adult Services,Education,Transport,230008,Contract Hire,05-Mar-2015,2870037-310,805.00,SODA TAXIS.
Children and Adult Services,Education,Transport,230007,Contract Hire,05-Mar-2015,2870045-285,"1,647.00",STEPHEN MAUDE LTD T/A MAUDES COACHES.
Children and Adult Services,Education,Transport,230007,Contract Hire,05-Mar-2015,2870045-286,"1,344.00",STEPHEN MAUDE LTD T/A MAUDES COACHES.
Children and Adult Services,Education,Transport,230007,Contract Hire,05-Mar-2015,2870045-287,997.50,STEPHEN MAUDE LTD T/A MAUDES COACHES.
Children and Adult Services,Education,Transport,230008,Contract Hire,05-Mar-2015,2870059-DCC/2015/09,"1,104.00",TAYLOR`S TAXIS.
Children and Adult Services,Education,Transport,230008,Contract Hire,05-Mar-2015,2870059-DCC/2015/10,900.00,TAYLOR`S TAXIS.
Children and Adult Services,Education,Transport,230006,Contract Hire,05-Mar-2015,2870059-DCC/2015/6,816.00,TAYLOR`S TAXIS.
Children and Adult Services,Education,Transport,230008,Contract Hire,05-Mar-2015,2870072-147,"1,200.00",THE TAXI COMPANY (MURTON) LTD.
Children and Adult Services,Education,Transport,230007,Contract Hire,05-Mar-2015,2870077-2548,"1,920.00",TM TRAVEL.
Children and Adult Services,Education,Transport,230007,Contract Hire,05-Mar-2015,2870077-2549,"1,770.00",TM TRAVEL.
Children and Adult Services,Education,Transport,230007,Contract Hire,05-Mar-2015,2870077-2550,"1,770.00",TM TRAVEL.
Children and Adult Services,Education,Transport,230007,Contract Hire,05-Mar-2015,2870077-2551,"6,270.00",TM TRAVEL.
Children and Adult Services,Education,Transport,230007,Contract Hire,05-Mar-2015,2870077-2552,"1,340.00",TM TRAVEL.
Children and Adult Services,Education,Transport,230007,Contract Hire,05-Mar-2015,2870077-2553,"1,035.00",TM TRAVEL.
Children and Adult Services,Education,Transport,230007,Contract Hire,05-Mar-2015,2870077-2554,"1,425.00",TM TRAVEL.
Children and Adult Services,Education,Transport,230008,Contract Hire,05-Mar-2015,2870085-002-27/02/2015,630.00,TRIDENT TAXIS.
Children and Adult Services,Education,Transport,230008,Contract Hire,05-Mar-2015,2870087-28,"1,215.00",TT TAXIS.
Children and Adult Services,Education,Transport,230008,Contract Hire,05-Mar-2015,2870105-000857,"1,320.00",WATSON OF SPENNYMOOR.
Children and Adult Services,Education,Transport,230007,Contract Hire,05-Mar-2015,2870107-02-27/02/2015,825.00,WE AR CABS.
Children and Adult Services,Education,Transport,230007,Contract Hire,05-Mar-2015,2870108-CONS/FEB/15/3,"4,410.00",WEARDALE MOTOR SERVICES LTD.
Children and Adult Services,Education,Transport,230006,Contract Hire,05-Mar-2015,2870109-429931,630.00,WENDYS` TAXIS.
Children and Adult Services,Education,Transport,230006,Contract Hire,05-Mar-2015,2870110-0215,"1,610.00",WEST AUCKLAND TOWN TRAVEL (WATT).
Children and Adult Services,Education,Transport,230008,Contract Hire,06-Mar-2015,2870172,"1,200.00",BEELINE PRIVATE HIRE.
Children and Adult Services,Education,Transport,230008,Contract Hire,06-Mar-2015,2870145-0234,"1,643.00",ABC & OUSTON CABS.
Children and Adult Services,Education,Transport,230008,Contract Hire,06-Mar-2015,2870145-0235,"1,380.00",ABC & OUSTON CABS.
Children and Adult Services,Education,Supplies and Services,312011,Newspapers Books and Periodicals,06-Mar-2015,2870159-4588661,604.07,ASKEWS & HOLTS LIBRARY SERVICES LTD.
Children and Adult Services,Education,Transport,230007,Contract Hire,06-Mar-2015,2870162-03255,607.00,ATLAS TAXIS CONSETT.
Children and Adult Services,Education,Transport,230006,Contract Hire,06-Mar-2015,2870162-03257,738.40,ATLAS TAXIS CONSETT.
Children and Adult Services,Education,Transport,230007,Contract Hire,06-Mar-2015,2870162-03258,660.00,ATLAS TAXIS CONSETT.
Children and Adult Services,Education,Transfer Payments,510028,School Children,06-Mar-2015,2870190-CAS-03-2015-007,"1,147.20",BUDDIES CHILDCARE CENTRE.
Children and Adult Services,Education,Transfer Payments,510028,School Children,06-Mar-2015,2870195-CAS-03-2015-009,"1,900.80",BUTTERCUP NURSERIES LTD.
Children and Adult Services,Education,Transfer Payments,510028,School Children,06-Mar-2015,2870196-CAS-03-2015-008,957.00,BUTTERCUP NURSERIES LTD.
Children and Adult Services,Education,Transfer Payments,510028,School Children,06-Mar-2015,2870197-CAS-03-2015-010,"1,186.80",BYERLEY ROAD PRE SCHOOL.
Children and Adult Services,Education,Transfer Payments,510028,School Children,06-Mar-2015,2870240-CAS-03-2015-012,"1,023.00",DAYPARK LTD T/A YELLOW WELLIES.
Children and Adult Services,Education,Transport,230007,Contract Hire,06-Mar-2015,2870280-4293A,862.50,FONACAB.
Children and Adult Services,Education,Transfer Payments,510028,School Children,06-Mar-2015,2870292-CAS-03-2015-025,594.00,GIANT STEPS LTD.
Children and Adult Services,Education,Transfer Payments,510028,School Children,06-Mar-2015,2870293-CAS-03-2015-015,971.40,GIANT STEPS LTD.
Children and Adult Services,Education,Transfer Payments,510028,School Children,06-Mar-2015,2870294-CAS-03-2015-014,"1,392.00",GIANT STEPS LTD.
Children and Adult Services,Education,Transfer Payments,510028,School Children,06-Mar-2015,2870298-CAS-03-2015-017,"1,243.00",GREEN LANE NURSERY & CHILDCARE CENTRE.
Children and Adult Services,Education,Transfer Payments,510028,School Children,06-Mar-2015,2870309-CAS-03-2015-018,"1,030.20",HIPPITOTS LTD.
Children and Adult Services,Education,Transport,230008,Contract Hire,06-Mar-2015,2870334-899,780.00,J YOUNG T/A VIP TAXIS.
Children and Adult Services,Education,Transport,230007,Contract Hire,06-Mar-2015,2870334-903,562.50,J YOUNG T/A VIP TAXIS.
Children and Adult Services,Education,Transport,230008,Contract Hire,06-Mar-2015,2870334-907,900.00,J YOUNG T/A VIP TAXIS.
Children and Adult Services,Education,Transport,230007,Contract Hire,06-Mar-2015,2870334-909,870.00,J YOUNG T/A VIP TAXIS.
Children and Adult Services,Education,Transport,230008,Contract Hire,06-Mar-2015,2870334-913,"1,170.00",J YOUNG T/A VIP TAXIS.
Children and Adult Services,Education,Third Party Payments,440999,Other Third Party Payments,06-Mar-2015,2870336-JD/DCC/1245,"6,243.52",JACK DRUM ARTS LTD.
Children and Adult Services,Education,Third Party Payments,440999,Other Third Party Payments,06-Mar-2015,2870336-JD/DCC/1248,"4,694.04",JACK DRUM ARTS LTD.
Children and Adult Services,Education,Transport,230008,Contract Hire,06-Mar-2015,2870363-0046,675.00,KEN CHAMBERS T/A SHILDON TRANSPORT LTD.
Children and Adult Services,Education,Transfer Payments,510028,School Children,06-Mar-2015,2870369-CAS-03-2015-020,552.20,KIRKLANDS DAY NURSERY.
Children and Adult Services,Education,Transfer Payments,510028,School Children,06-Mar-2015,2870375-CAS-03-2015-021,699.60,LEISUREWORKS.
Children and Adult Services,Education,Supplies and Services,384302,Miscellaneous Expenses,06-Mar-2015,2870376-101385-1A,"1,120.00",LIGHTWATER VALLEY ATTRACTIONS.
Children and Adult Services,Education,Third Party Payments,440999,Other Third Party Payments,06-Mar-2015,2870439-260221,"5,040.00",NOVA PAYROLL MANAGEMENT SERVICES LTD T/A PIN POINT RECRUITMENT.
Children and Adult Services,Education,Transfer Payments,510028,School Children,06-Mar-2015,2870479-CAS-03-2015-023,"2,211.00",RAINBOW NURSERY LTD (MIDDLESTONE MOOR).
Children and Adult Services,Education,Transport,230008,Contract Hire,06-Mar-2015,2870489-133,"1,425.00",ROBBIE`S PRIVATE HIRE.
Children and Adult Services,Education,Transport,230008,Contract Hire,06-Mar-2015,2870498-SA048,710.50,S & A TAXIS.
Children and Adult Services,Education,Transport,230007,Contract Hire,06-Mar-2015,2870499-3080/09,"1,200.00",S & S TRAVEL LTD.
Children and Adult Services,Education,Transport,230007,Contract Hire,06-Mar-2015,2870499-4079/09,975.00,S & S TRAVEL LTD.
Children and Adult Services,Education,Transport,230008,Contract Hire,06-Mar-2015,2870499-SO11/28,"1,350.00",S & S TRAVEL LTD.
Children and Adult Services,Education,Transport,230008,Contract Hire,06-Mar-2015,2870499-W075/28,"1,260.00",S & S TRAVEL LTD.
Children and Adult Services,Education,Transport,230008,Contract Hire,06-Mar-2015,2870499-WO43/06,"2,025.00",S & S TRAVEL LTD.
Children and Adult Services,Education,Transport,230008,Contract Hire,06-Mar-2015,2870499-WO52/17,"1,725.00",S & S TRAVEL LTD.
Children and Adult Services,Education,Transfer Payments,510028,School Children,06-Mar-2015,2870512-CAS-03-2015-024,"1,155.00",SEAHAM HOUSE DAY NURSERY.
Children and Adult Services,Education,Transport,230008,Contract Hire,06-Mar-2015,2870518-014-27/2/15,"1,020.00",SHOEY`S TAXIS.
Children and Adult Services,Education,Transfer Payments,510028,School Children,06-Mar-2015,2870519-CAS-03-2015-026,"1,023.00",SHOTLEY BRIDGE NURSERY SCHOOL LTD.
Children and Adult Services,Education,Transport,230008,Contract Hire,06-Mar-2015,2870530-123A,975.00,SJ MACKENZIE T/A SCOTTS TAXIS.
Children and Adult Services,Education,Transport,230008,Contract Hire,06-Mar-2015,2870530-126A,"1,800.00",SJ MACKENZIE T/A SCOTTS TAXIS.
Children and Adult Services,Education,Transport,230008,Contract Hire,06-Mar-2015,2870530-127A,"2,042.00",SJ MACKENZIE T/A SCOTTS TAXIS.
Children and Adult Services,Education,Transport,230007,Contract Hire,06-Mar-2015,2870560-23802A,"2,534.40",T MOORE & SON.
Children and Adult Services,Education,Transfer Payments,510028,School Children,06-Mar-2015,2870588-CAS-03-2015-013,"1,106.40",UNIVERSITY OF DURHAM DAY NURSERY.
Children and Adult Services,Education,Transport,230008,Contract Hire,06-Mar-2015,2870598-958,"1,350.00",WAYNE`S TAXIS.
Children and Adult Services,Education,Transport,230008,Contract Hire,06-Mar-2015,2870598-959,"1,500.00",WAYNE`S TAXIS.
Children and Adult Services,Education,Transport,230008,Contract Hire,06-Mar-2015,2870598-960,"1,320.00",WAYNE`S TAXIS.
Children and Adult Services,Education,Transport,230008,Contract Hire,06-Mar-2015,2870600-PH/FEB/15,"3,745.50",WEARDALE MOTOR SERVICES LTD.
Children and Adult Services,Education,Transport,230006,Contract Hire,09-Mar-2015,2870618-6,548.00,A HJ JOBLING T/A CASTLE TAXIS.
Children and Adult Services,Education,Transport,230008,Contract Hire,09-Mar-2015,2870624-6MO,510.00,AJ ADAMSON (TONY`S TAXIS).
Children and Adult Services,Education,Transport,230008,Contract Hire,09-Mar-2015,2870642-DCC4FEB15,"1,575.00",ATLAS TAXIS BISHOP AUCKLAND.
Children and Adult Services,Education,Transport,230008,Contract Hire,09-Mar-2015,2870642-DCC7FEB15,"1,275.00",ATLAS TAXIS BISHOP AUCKLAND.
Children and Adult Services,Education,Transport,230006,Contract Hire,09-Mar-2015,2870643-03259,"1,077.00",ATLAS TAXIS CONSETT.
Children and Adult Services,Education,Transport,230008,Contract Hire,09-Mar-2015,2870666-PS097,948.00,BURNDALE PRIVATE HIRE.
Children and Adult Services,Education,Transport,230006,Contract Hire,09-Mar-2015,2870667-F56806-27/2/15,528.00,C & R TAXIS.
Children and Adult Services,Education,Transport,230008,Contract Hire,09-Mar-2015,2870667-W01106,735.00,C & R TAXIS.
Children and Adult Services,Education,Transport,230008,Contract Hire,09-Mar-2015,2870676-90,"1,050.00",CASTLE CARS.
Children and Adult Services,Education,Transport,230008,Contract Hire,09-Mar-2015,2870680-6,589.14,CHEAPLINE TAXIS.
Children and Adult Services,Education,Transport,230008,Contract Hire,09-Mar-2015,2870681-KJ027,"1,302.00",CHIPPERS TAXIS.
Children and Adult Services,Education,Transport,230007,Contract Hire,09-Mar-2015,2870684-44757,"1,335.00",CJ GRIERSON.
Children and Adult Services,Education,Transport,230007,Contract Hire,09-Mar-2015,2870684-44758,"1,485.00",CJ GRIERSON.
Children and Adult Services,Education,Transport,230008,Contract Hire,09-Mar-2015,2870688-15-SC02,980.00,CLUBMAN CABS.
Children and Adult Services,Education,Transport,230007,Contract Hire,09-Mar-2015,2870690-C/8543,"4,755.00",COCHRANES T/A KELVIN TRAVEL.
Children and Adult Services,Education,Transport,230007,Contract Hire,09-Mar-2015,2870690-C/8544,"1,927.50",COCHRANES T/A KELVIN TRAVEL.
Children and Adult Services,Education,Transport,230007,Contract Hire,09-Mar-2015,2870690-C/8545,"2,077.50",COCHRANES T/A KELVIN TRAVEL.
Children and Adult Services,Education,Transport,230007,Contract Hire,09-Mar-2015,2870690-C/8546,"3,720.00",COCHRANES T/A KELVIN TRAVEL.
Children and Adult Services,Education,Transport,230008,Contract Hire,09-Mar-2015,2870691-E0420215,"1,785.00",COLIN FRANKS T/A FRANKS COACHES.
Children and Adult Services,Education,Transport,230008,Contract Hire,09-Mar-2015,2870692-238,885.00,COLIN HOLMES.
Children and Adult Services,Education,Transport,230008,Contract Hire,09-Mar-2015,2870696-552,"1,248.00",CONNORS MINI BUSES.
Children and Adult Services,Education,Transport,230008,Contract Hire,09-Mar-2015,2870696-553,990.00,CONNORS MINI BUSES.
Children and Adult Services,Education,Transport,230008,Contract Hire,09-Mar-2015,2870696-554,"1,288.00",CONNORS MINI BUSES.
Children and Adult Services,Education,Transport,230008,Contract Hire,09-Mar-2015,2870696-555,"1,110.00",CONNORS MINI BUSES.
Children and Adult Services,Education,Transport,230008,Contract Hire,09-Mar-2015,2870708-8,630.00,CUTHBERT CABS.
Children and Adult Services,Education,Transport,230008,Contract Hire,09-Mar-2015,2870712-55,900.00,D CROOK T/A CK TAXIS.
Children and Adult Services,Education,Transport,230008,Contract Hire,09-Mar-2015,2870714-G/HEAD002,"1,125.00",D IRVING T/A BJ TAXIS.
Children and Adult Services,Education,Transport,230008,Contract Hire,09-Mar-2015,2870714-MEAD006,675.00,D IRVING T/A BJ TAXIS.
Children and Adult Services,Education,Transport,230008,Contract Hire,09-Mar-2015,2870716-1383,885.00,DA TAXIS.
Children and Adult Services,Education,Transport,230008,Contract Hire,09-Mar-2015,2870716-1384,825.00,DA TAXIS.
Children and Adult Services,Education,Transport,230008,Contract Hire,09-Mar-2015,2870716-1385,"1,245.00",DA TAXIS.
Children and Adult Services,Education,Transport,230008,Contract Hire,09-Mar-2015,2870716-1386,720.00,DA TAXIS.
Children and Adult Services,Education,Transport,230008,Contract Hire,09-Mar-2015,2870719-ITSFEB1501,"1,500.00",DALELINK PRIVATE HIRE.
Children and Adult Services,Education,Transport,230008,Contract Hire,09-Mar-2015,2870721-2423,720.00,DAVES MINIBUSES.
Children and Adult Services,Education,Transport,230007,Contract Hire,09-Mar-2015,2870731-20487,"1,942.50",DURHAM CITY COACHES.
Children and Adult Services,Education,Transport,230008,Contract Hire,09-Mar-2015,2870741-A072/0215,720.00,ELLIOTTS OF TRIMDON.
Children and Adult Services,Education,Transport,230008,Contract Hire,09-Mar-2015,2870741-N0E052/0215,870.00,ELLIOTTS OF TRIMDON.
Children and Adult Services,Education,Transport,230006,Contract Hire,09-Mar-2015,2870745-057,914.00,EXTREME TAXI`S.
Children and Adult Services,Education,Transport,230006,Contract Hire,09-Mar-2015,2870758-006,615.00,GAIL MADDISON T/A CENTRAL TAXIS.
Children and Adult Services,Education,Transport,230007,Contract Hire,09-Mar-2015,2870759-17093,"19,270.49",GARNETTS LTD (COACHES).
Children and Adult Services,Education,Transport,230008,Contract Hire,09-Mar-2015,2870779-0144,"1,632.40",I CLYDESDALE T/A BURNOPFIELD TAXIS.
Children and Adult Services,Education,Transport,230008,Contract Hire,09-Mar-2015,2870779-0147,"1,050.00",I CLYDESDALE T/A BURNOPFIELD TAXIS.
Children and Adult Services,Education,Vehicles Equipment Furniture and Fittings,912701,Computer equipment,09-Mar-2015,2870786-DURH/0570A,"20,791.90",INSPIREDSPACES DURHAM LTD.
Children and Adult Services,Education,Transport,230008,Contract Hire,09-Mar-2015,2870808-W131006,652.50,KEITH HAMMOND T/A FERRYHILL VILLAGE TRAVEL.
Children and Adult Services,Education,Transport,230008,Contract Hire,09-Mar-2015,2870809-0047,"1,120.00",KEN CHAMBERS T/A SHILDON TRANSPORT LTD.
Children and Adult Services,Education,Supplies and Services,384199,Miscellaneous Expenses,09-Mar-2015,2870818-21674,"4,487.00",LEE`S COACHES LTD.
Children and Adult Services,Education,Transport,230008,Contract Hire,09-Mar-2015,2870821-92-27/2/15,"1,245.00",LORRAINES TAXIS.
Children and Adult Services,Education,Transport,230008,Contract Hire,09-Mar-2015,2870822-75,"1,760.00",M BUTCHER T/A KIDDI CABS.
Children and Adult Services,Education,Transport,230008,Contract Hire,09-Mar-2015,2870826-6,980.00,MALCOLM CARR T/A CARLY CABS.
Children and Adult Services,Education,Transport,230008,Contract Hire,09-Mar-2015,2870839-E046006,"1,680.00",MISS KA SUTHERLAND T/A FERRYHILL TRAVEL TAXI & MINIBUS HIRE.
Children and Adult Services,Education,Transport,230008,Contract Hire,09-Mar-2015,2870839-N071017.,"2,174.25",MISS KA SUTHERLAND T/A FERRYHILL TRAVEL TAXI & MINIBUS HIRE.
Children and Adult Services,Education,Transport,230008,Contract Hire,09-Mar-2015,2870842-60,"2,307.90",MR CT WALKER T/A COLIN`S TAXIS.
Children and Adult Services,Education,Transport,230008,Contract Hire,09-Mar-2015,2870842-63A,"1,710.00",MR CT WALKER T/A COLIN`S TAXIS.
Children and Adult Services,Education,Transport,230008,Contract Hire,09-Mar-2015,2870842-74,"1,798.20",MR CT WALKER T/A COLIN`S TAXIS.
Children and Adult Services,Education,Transport,230006,Contract Hire,09-Mar-2015,2870842-F608,"1,149.00",MR CT WALKER T/A COLIN`S TAXIS.
Children and Adult Services,Education,Transport,230008,Contract Hire,09-Mar-2015,2870842-MEAD02-15,"1,657.50",MR CT WALKER T/A COLIN`S TAXIS.
Children and Adult Services,Education,Transport,230008,Contract Hire,09-Mar-2015,2870843-052A,"1,287.00",MR GN ROBBINS T/A GNR MINIBUS HIRE.
Children and Adult Services,Education,Transport,230008,Contract Hire,09-Mar-2015,2870843-053A,"1,563.75",MR GN ROBBINS T/A GNR MINIBUS HIRE.
Children and Adult Services,Education,Transport,230008,Contract Hire,09-Mar-2015,2870846-254,"1,001.00",MR LEE ANDERSON.
Children and Adult Services,Education,Transport,230008,Contract Hire,09-Mar-2015,2870848-0104,"2,560.00",MR P CAHILL T/A KILEYS TAXIS.
Children and Adult Services,Education,Transport,230008,Contract Hire,09-Mar-2015,2870848-0105,"1,920.00",MR P CAHILL T/A KILEYS TAXIS.
Children and Adult Services,Education,Transport,230008,Contract Hire,09-Mar-2015,2870849-642,615.00,MR PETER YOUNG.
Children and Adult Services,Education,Transport,230008,Contract Hire,09-Mar-2015,2870850-6A,"1,056.00",MR RAYMOND RENWICK.
Children and Adult Services,Education,Transport,230008,Contract Hire,09-Mar-2015,2870850-6B-27/2/15,795.00,MR RAYMOND RENWICK.
Children and Adult Services,Education,Transport,230008,Contract Hire,09-Mar-2015,2870852-M0006,"1,350.00",MR S BOWERS.
Children and Adult Services,Education,Transport,230008,Contract Hire,09-Mar-2015,2870852-M0008,"1,140.00",MR S BOWERS.
Children and Adult Services,Education,Transport,230008,Contract Hire,09-Mar-2015,2870852-MO27,750.00,MR S BOWERS.
Children and Adult Services,Education,Transport,230007,Contract Hire,09-Mar-2015,2870854-162,540.00,N FORBES.
Children and Adult Services,Education,Transport,230008,Contract Hire,09-Mar-2015,2870876-6,750.00,PEPPA`S CABS.
Children and Adult Services,Education,Transport,230007,Contract Hire,09-Mar-2015,2870878-24A,600.00,PETER HOLMES T/A PETERS TAXIS.
Children and Adult Services,Education,Transport,230008,Contract Hire,09-Mar-2015,2870880-0357,"1,350.00",PETER`S PRIVATE HIRE/PETER BEST.
Children and Adult Services,Education,Transport,230008,Contract Hire,09-Mar-2015,2870880-0358,840.00,PETER`S PRIVATE HIRE/PETER BEST.
Children and Adult Services,Education,Supplies and Services,342007,Computers and Communications,09-Mar-2015,2870923-4566,"4,246.00",SGA SYSTEMS LTD.
Children and Adult Services,Education,Transport,230006,Contract Hire,09-Mar-2015,2870928-F536-02-15,"1,188.00",SIMON ELLIFF.
Children and Adult Services,Education,Transport,230008,Contract Hire,09-Mar-2015,2870928-S027-02-15,"1,503.45",SIMON ELLIFF.
Children and Adult Services,Education,Transport,230008,Contract Hire,09-Mar-2015,2870928-W102-02-15,810.00,SIMON ELLIFF.
Children and Adult Services,Education,Transport,230008,Contract Hire,09-Mar-2015,2870936-417,840.00,SODA TAXIS.
Children and Adult Services,Education,Transfer Payments,510028,School Children,09-Mar-2015,2870937-CAS-03-2015-027,"1,493.30",ST OSWALD`S PRE SCHOOL LEARNING CENTRE.
Children and Adult Services,Education,Transport,230008,Contract Hire,09-Mar-2015,2870941-005/A032,"1,620.00",STEPHEN COXON.
Children and Adult Services,Education,Transport,230008,Contract Hire,09-Mar-2015,2870941-006/A035,"1,288.00",STEPHEN COXON.
Children and Adult Services,Education,Transport,230007,Contract Hire,09-Mar-2015,2870942-6,675.00,STEVEN DODDS T/A SD TAXIS.
Children and Adult Services,Education,Transfer Payments,510028,School Children,09-Mar-2015,2870945-CAS-03-2015-028,844.20,SUNSHINE DAY NURSERY.
Children and Adult Services,Education,Transfer Payments,510028,School Children,09-Mar-2015,2870946-CAS-03-2015-029,"1,254.00",SUNSHINE DAY NURSERY.
Children and Adult Services,Education,Transport,230008,Contract Hire,09-Mar-2015,2870951-1177,"1,875.00",TAILORMADE TRAVEL.
Children and Adult Services,Education,Transport,230008,Contract Hire,09-Mar-2015,2870954-02/2015/008,"1,095.00",TARNS TAXIS LTD.
Children and Adult Services,Education,Transport,230008,Contract Hire,09-Mar-2015,2870954-02/2015/009,"1,020.00",TARNS TAXIS LTD.
Children and Adult Services,Education,Transport,230007,Contract Hire,09-Mar-2015,2870957-5008SA06,"1,320.00",TED WILFORD COACHES.
Children and Adult Services,Education,Transport,230007,Contract Hire,09-Mar-2015,2870957-5030-28/2/15,"2,850.00",TED WILFORD COACHES.
Children and Adult Services,Education,Transport,230007,Contract Hire,09-Mar-2015,2870957-5037TO17,"1,725.00",TED WILFORD COACHES.
Children and Adult Services,Education,Transport,230007,Contract Hire,09-Mar-2015,2870957-6032H05,"1,350.00",TED WILFORD COACHES.
Children and Adult Services,Education,Transport,230007,Contract Hire,09-Mar-2015,2870969-60.14,510.00,TRANSPORT.ADVENTURE.XI.
Children and Adult Services,Education,Transfer Payments,510028,School Children,09-Mar-2015,2870975-CAS-03-2015-030,"1,516.80",USHAW MOOR PRE SCHOOL.
Children and Adult Services,Education,Transport,230008,Contract Hire,09-Mar-2015,2870985-041,570.00,WAYSIDE TAXIS.
Children and Adult Services,Education,Transport,230008,Contract Hire,09-Mar-2015,2870985-042,930.00,WAYSIDE TAXIS.
Children and Adult Services,Education,Transport,230007,Contract Hire,09-Mar-2015,2870985-044,660.00,WAYSIDE TAXIS.
Children and Adult Services,Education,Transport,230008,Contract Hire,09-Mar-2015,2870985-046,810.00,WAYSIDE TAXIS.
Children and Adult Services,Education,Transport,230008,Contract Hire,09-Mar-2015,2870985-047,"1,575.00",WAYSIDE TAXIS.
Children and Adult Services,Education,Transport,230008,Contract Hire,09-Mar-2015,2870985-049,550.00,WAYSIDE TAXIS.
Children and Adult Services,Education,Transport,230008,Contract Hire,09-Mar-2015,2870985-050,"1,190.00",WAYSIDE TAXIS.
Children and Adult Services,Education,Transport,230007,Contract Hire,09-Mar-2015,2870987-5162,576.00,WEARDALE PRIVATE HIRE.
Children and Adult Services,Education,Transport,230007,Contract Hire,09-Mar-2015,2870987-5163,"2,895.00",WEARDALE PRIVATE HIRE.
Children and Adult Services,Education,Transport,230007,Contract Hire,09-Mar-2015,2870987-5164,"2,759.85",WEARDALE PRIVATE HIRE.
Children and Adult Services,Education,Transport,230008,Contract Hire,09-Mar-2015,2870990-WESTLEA27022015,825.00,WESTLEA TAXIS.
Children and Adult Services,Education,Transport,230008,Contract Hire,09-Mar-2015,2870992-27215,630.00,WIL TRAVEL.
Children and Adult Services,Education,Supplies and Services,338045,Services,10-Mar-2015,2871890,"4,350.00",MR SAM HEALY.
Children and Adult Services,Education,Transport,230008,Contract Hire,10-Mar-2015,2871616-21502,"1,400.00",24/7 TAXI SERVICES LTD.
Children and Adult Services,Education,Transport,230008,Contract Hire,10-Mar-2015,2871616-21503,"1,095.00",24/7 TAXI SERVICES LTD.
Children and Adult Services,Education,Transport,230008,Contract Hire,10-Mar-2015,2871616-21504,675.00,24/7 TAXI SERVICES LTD.
Children and Adult Services,Education,Transport,230006,Contract Hire,10-Mar-2015,2871616-21506,708.00,24/7 TAXI SERVICES LTD.
Children and Adult Services,Education,Transport,230008,Contract Hire,10-Mar-2015,2871616-21507,855.00,24/7 TAXI SERVICES LTD.
Children and Adult Services,Education,Transport,230008,Contract Hire,10-Mar-2015,2871616-21508,"1,207.50",24/7 TAXI SERVICES LTD.
Children and Adult Services,Education,Fees,901002,Professional fees,10-Mar-2015,2871646-14052561,"2,599.25",ATKINS GLOBAL.
Children and Adult Services,Education,Fees,901002,Professional fees,10-Mar-2015,2871646-14052586,"5,082.00",ATKINS GLOBAL.
Children and Adult Services,Education,Transport,230008,Contract Hire,10-Mar-2015,2871731-2424,"1,500.00",DAVES MINIBUSES.
Children and Adult Services,Education,Transport,230008,Contract Hire,10-Mar-2015,2871731-2425,"1,125.00",DAVES MINIBUSES.
Children and Adult Services,Education,Transport,230008,Contract Hire,10-Mar-2015,2871731-2427,"1,140.00",DAVES MINIBUSES.
Children and Adult Services,Education,Transport,230008,Contract Hire,10-Mar-2015,2871731-2429,"1,275.00",DAVES MINIBUSES.
Children and Adult Services,Education,Transport,230008,Contract Hire,10-Mar-2015,2871731-2430,637.50,DAVES MINIBUSES.
Children and Adult Services,Education,Transport,230008,Contract Hire,10-Mar-2015,2871851-S007028,"1,505.00",KEITH HAMMOND T/A FERRYHILL VILLAGE TRAVEL.
Children and Adult Services,Education,Transport,230008,Contract Hire,10-Mar-2015,2871860-104,"1,175.00",LEE`S TAXIS.
Children and Adult Services,Education,Transport,230008,Contract Hire,10-Mar-2015,2871860-105,"1,218.00",LEE`S TAXIS.
Children and Adult Services,Education,Supplies and Services,338094,Services,10-Mar-2015,2871861-13251,731.25,LEISUREWORKS.
Children and Adult Services,Education,Transport,230008,Contract Hire,10-Mar-2015,2871935-670,"2,415.00",PG TRIPS.
Children and Adult Services,Education,Transport,230008,Contract Hire,10-Mar-2015,2871936-01195,"1,050.00",PHILLIPS TAXI GROUP LTD.
Children and Adult Services,Education,Transport,230007,Contract Hire,10-Mar-2015,2871943-1058,635.00,PODA LTD.
Children and Adult Services,Education,Transport,230008,Contract Hire,10-Mar-2015,2871943-1059,"1,267.50",PODA LTD.
Children and Adult Services,Education,Transport,230007,Contract Hire,10-Mar-2015,2871952-282,"7,650.00",PYGALL COACH HIRE.
Children and Adult Services,Education,Transport,230007,Contract Hire,10-Mar-2015,2871952-283,"2,250.00",PYGALL COACH HIRE.
Children and Adult Services,Education,Transport,230007,Contract Hire,10-Mar-2015,2871952-284,"1,875.00",PYGALL COACH HIRE.
Children and Adult Services,Education,Transport,230007,Contract Hire,10-Mar-2015,2871952-285,"1,770.00",PYGALL COACH HIRE.
Children and Adult Services,Education,Transport,230007,Contract Hire,10-Mar-2015,2871958-28C,"4,500.00",RAYNERS COACHES.
Children and Adult Services,Education,Supplies and Services,338027,Services,10-Mar-2015,2871979-086,"1,200.00",SAM JACKSON.
Children and Adult Services,Education,Supplies and Services,338027,Services,10-Mar-2015,2872015-24,"2,566.60",SUE SMITH..
Children and Adult Services,Education,Employees,040001,Recruitment Instruction and Training,10-Mar-2015,2872036-TARINV/15354317,710.10,TES GLOBAL LTD.
Children and Adult Services,Education,Employees,040001,Recruitment Instruction and Training,10-Mar-2015,2872036-TARINV/15355731,710.10,TES GLOBAL LTD.
Children and Adult Services,Education,Premises,125009,Rents,10-Mar-2015,2872044-3464,"1,233.30",THE WORK PLACE (AYCLIFFE) LTD.
Children and Adult Services,Education,Supplies and Services,338045,Services,11-Mar-2015,238628-CAS-03-2015-051,"1,600.00",ASKEWS SOLICITORS.
Children and Adult Services,Education,Transport,230008,Contract Hire,11-Mar-2015,238633-MO47/17,"1,125.00",C STEWART.
Children and Adult Services,Education,Transport,230008,Contract Hire,11-Mar-2015,238644-15/002,"1,125.00",EDDIE BURROWS.
Children and Adult Services,Education,Transport,230008,Contract Hire,11-Mar-2015,2872090-A220761,"1,140.00",A MURRAY TRAVEL.
Children and Adult Services,Education,Third Party Payments,440999,Other Third Party Payments,11-Mar-2015,2872154-017,"9,438.08",CAPITAL 4 TRAINING LTD
Children and Adult Services,Education,Supplies and Services,304649,Equipment and Materials,11-Mar-2015,2872181-79772,"1,064.16",CORPORATE COMPUTER SUPPLIES LTD.
Children and Adult Services,Education,Transport,230007,Contract Hire,11-Mar-2015,2872208-7326,"16,251.40",DURHAM CITY COACHES.
Children and Adult Services,Education,Transport,230008,Contract Hire,11-Mar-2015,2872240-0215,900.00,FRANK ATKINSON T/A FJ MINIBUS TRAVEL.
Children and Adult Services,Education,Transport,230008,Contract Hire,11-Mar-2015,2872264-FEB15,715.00,HIPPY`S TAXI.
Children and Adult Services,Education,Transport,230008,Contract Hire,11-Mar-2015,2872267-IR1502002,"2,100.00",I & R EXECUTIVE TRAVEL.
Children and Adult Services,Education,Transport,230008,Contract Hire,11-Mar-2015,2872267-IR1502004,"1,200.00",I & R EXECUTIVE TRAVEL.
Children and Adult Services,Education,Transport,230008,Contract Hire,11-Mar-2015,2872281-FEB2015,870.00,JAMY`S TAXIS.
Children and Adult Services,Education,Transport,230008,Contract Hire,11-Mar-2015,2872284-666,"1,200.00",JDS PRIVATE HIRE DURHAM.
Children and Adult Services,Education,Transport,230008,Contract Hire,11-Mar-2015,2872284-667,"1,140.00",JDS PRIVATE HIRE DURHAM.
Children and Adult Services,Education,Transport,230008,Contract Hire,11-Mar-2015,2872284-668,960.00,JDS PRIVATE HIRE DURHAM.
Children and Adult Services,Education,Transport,230008,Contract Hire,11-Mar-2015,2872284-669,"1,071.00",JDS PRIVATE HIRE DURHAM.
Children and Adult Services,Education,Transport,230008,Contract Hire,11-Mar-2015,2872284-670,780.00,JDS PRIVATE HIRE DURHAM.
Children and Adult Services,Education,Transport,230008,Contract Hire,11-Mar-2015,2872284-672,"1,820.00",JDS PRIVATE HIRE DURHAM.
Children and Adult Services,Education,Transport,230009,Contract Hire,11-Mar-2015,2872284-673,840.00,JDS PRIVATE HIRE DURHAM.
Children and Adult Services,Education,Transport,230008,Contract Hire,11-Mar-2015,2872284-674,945.00,JDS PRIVATE HIRE DURHAM.
Children and Adult Services,Education,Transport,230008,Contract Hire,11-Mar-2015,2872284-676,"1,750.00",JDS PRIVATE HIRE DURHAM.
Children and Adult Services,Education,Transport,230008,Contract Hire,11-Mar-2015,2872284-678,750.00,JDS PRIVATE HIRE DURHAM.
Children and Adult Services,Education,Transport,230008,Contract Hire,11-Mar-2015,2872285-2353,"1,682.28",JEFF ANDERSON COACHES LTD.
Children and Adult Services,Education,Transport,230008,Contract Hire,11-Mar-2015,2872285-2354,"1,738.28",JEFF ANDERSON COACHES LTD.
Children and Adult Services,Education,Transport,230008,Contract Hire,11-Mar-2015,2872285-2361,"1,401.90",JEFF ANDERSON COACHES LTD.
Children and Adult Services,Education,Transport,230008,Contract Hire,11-Mar-2015,2872285-2362,"1,499.90",JEFF ANDERSON COACHES LTD.
Children and Adult Services,Education,Transport,230008,Contract Hire,11-Mar-2015,2872286-JK160A,"1,305.00",JK TAXIS.
Children and Adult Services,Education,Supplies and Services,304259,Equipment and Materials,11-Mar-2015,2872288-0000093773,"2,720.00",JOHN PACKER LTD.
Children and Adult Services,Education,Transport,230007,Contract Hire,11-Mar-2015,2872303-21688,"9,302.20",LEE`S COACHES LTD.
Children and Adult Services,Education,Transport,230007,Contract Hire,11-Mar-2015,2872306-3143,832.50,LINCAB TAXIS.
Children and Adult Services,Education,Transport,230008,Contract Hire,11-Mar-2015,2872317-AKTAS6,"1,350.00",MA BODDY.
Children and Adult Services,Education,Transport,230008,Contract Hire,11-Mar-2015,2872317-FEB-15,"1,328.25",MA BODDY.
Children and Adult Services,Education,Transport,230008,Contract Hire,11-Mar-2015,2872327-MCD2042,"1,591.00",MCDONALD TRAVEL.
Children and Adult Services,Education,Transport,230008,Contract Hire,11-Mar-2015,2872329-02/2015,700.00,MICHAEL PUNTON.
Children and Adult Services,Education,Transport,230008,Contract Hire,11-Mar-2015,2872330-00715,"1,350.00",MICHAELS TRAVEL.
Children and Adult Services,Education,Transport,230007,Contract Hire,11-Mar-2015,2872334-3268,510.00,MOOR PRIVATE HIRE.
Children and Adult Services,Education,Transport,230008,Contract Hire,11-Mar-2015,2872334-A031,"1,190.00",MOOR PRIVATE HIRE.
Children and Adult Services,Education,Transport,230008,Contract Hire,11-Mar-2015,2872336-2014-71,"1,305.00",MR D KEMP T/A ACE EXECUTIVE.
Children and Adult Services,Education,Transport,230006,Contract Hire,11-Mar-2015,2872337-074,"1,150.00",MR DAVID CULLEN.
Children and Adult Services,Education,Transport,230006,Contract Hire,11-Mar-2015,2872338-00215,570.00,MR DEREK HENDERSON.
Children and Adult Services,Education,Transport,230008,Contract Hire,11-Mar-2015,2872339-35A,"1,575.00",MR G FREELAND T/A HUNWICK CARS.
Children and Adult Services,Education,Transport,230008,Contract Hire,11-Mar-2015,2872339-35B,"1,320.00",MR G FREELAND T/A HUNWICK CARS.
Children and Adult Services,Education,Transport,230008,Contract Hire,11-Mar-2015,2872341-A057/02/15,771.40,MR M ALLISON T/A MACBETH TAXIS/COACHES.
Children and Adult Services,Education,Transport,230008,Contract Hire,11-Mar-2015,2872341-N053/2/15,"1,290.00",MR M ALLISON T/A MACBETH TAXIS/COACHES.
Children and Adult Services,Education,Transport,230008,Contract Hire,11-Mar-2015,2872341-N059/02/15,"1,200.00",MR M ALLISON T/A MACBETH TAXIS/COACHES.
Children and Adult Services,Education,Transport,230007,Contract Hire,11-Mar-2015,2872397-28B,"1,620.00",RAYNERS COACHES.
Children and Adult Services,Education,Transport,230008,Contract Hire,11-Mar-2015,2872420-30,"1,120.00",SHARON`S TAXI.
Children and Adult Services,Education,Third Party Payments,440999,Other Third Party Payments,11-Mar-2015,2872427-201008,"11,221.60",SKILLSHARE NORTH EAST LTD.
Children and Adult Services,Education,Transport,230008,Contract Hire,11-Mar-2015,2872430-0314,"1,275.00",SPENNYMOOR TAXIS.
Children and Adult Services,Education,Transport,230008,Contract Hire,11-Mar-2015,2872430-04156,840.00,SPENNYMOOR TAXIS.
Children and Adult Services,Education,Transport,230008,Contract Hire,11-Mar-2015,2872430-3141,900.00,SPENNYMOOR TAXIS.
Children and Adult Services,Education,Transport,230008,Contract Hire,11-Mar-2015,2872430-4144,"1,157.50",SPENNYMOOR TAXIS.
Children and Adult Services,Education,Supplies and Services,338027,Services,11-Mar-2015,2872434-0000000185,"7,664.28",ST BEDES CATHOLIC ACADEMY (LANCHESTER).
Children and Adult Services,Education,Transport,230008,Contract Hire,11-Mar-2015,2872437-1936,540.00,STAR CABS.
Children and Adult Services,Education,Transport,230008,Contract Hire,11-Mar-2015,2872437-1939,"1,420.80",STAR CABS.
Children and Adult Services,Education,Transport,230008,Contract Hire,11-Mar-2015,2872449-23402F,"1,237.50",T MOORE & SON.
Children and Adult Services,Education,Transport,230007,Contract Hire,11-Mar-2015,2872449-23502G,540.00,T MOORE & SON.
Children and Adult Services,Education,Transport,230008,Contract Hire,11-Mar-2015,2872452-1-1/3/15,"1,001.56",TALLA`S TAXIS.
Children and Adult Services,Education,Transport,230006,Contract Hire,12-Mar-2015,2872500-21505,"1,491.00",24/7 TAXI SERVICES LTD.
Children and Adult Services,Education,Supplies and Services,384199,Miscellaneous Expenses,12-Mar-2015,2872502-0215D,660.00,AAA SPORTS.
Children and Adult Services,Education,Transport,230008,Contract Hire,12-Mar-2015,2872503-14-27/2/15,"1,800.00",ABLE NOVAK TAXIS.
Children and Adult Services,Education,Third Party Payments,440999,Other Third Party Payments,12-Mar-2015,2872504-INV02009,"6,048.00",ACUMEN COMMUNITY ENTERPRISE DEVELOPMENT TRUST LTD.
Children and Adult Services,Education,Third Party Payments,440999,Other Third Party Payments,12-Mar-2015,2872504-INV02010,"2,160.00",ACUMEN COMMUNITY ENTERPRISE DEVELOPMENT TRUST LTD.
Children and Adult Services,Education,Transport,230008,Contract Hire,12-Mar-2015,2872512-460,968.80,AT TAXIS LTD.
Children and Adult Services,Education,Transport,230008,Contract Hire,12-Mar-2015,2872567-W082/027,"1,512.00",GMC TAXIS NORTH EAST.
Children and Adult Services,Education,Transport,230007,Contract Hire,12-Mar-2015,2872575-012157,"2,430.00",HODGSONS COACH OPERATORS LTD.
Children and Adult Services,Education,Transport,230006,Contract Hire,12-Mar-2015,2872575-012158,570.00,HODGSONS COACH OPERATORS LTD.
Children and Adult Services,Education,Transport,230006,Contract Hire,12-Mar-2015,2872575-012158A,684.00,HODGSONS COACH OPERATORS LTD.
Children and Adult Services,Education,Transport,230006,Contract Hire,12-Mar-2015,2872575-012162,600.00,HODGSONS COACH OPERATORS LTD.
Children and Adult Services,Education,Transport,230008,Contract Hire,12-Mar-2015,2872584-902,570.00,J YOUNG T/A VIP TAXIS.
Children and Adult Services,Education,Transport,230008,Contract Hire,12-Mar-2015,2872584-904,750.00,J YOUNG T/A VIP TAXIS.
Children and Adult Services,Education,Transport,230009,Contract Hire,12-Mar-2015,2872584-905,840.00,J YOUNG T/A VIP TAXIS.
Children and Adult Services,Education,Transport,230008,Contract Hire,12-Mar-2015,2872586-0101,555.00,JACKSON`S TAXI.
Children and Adult Services,Education,Transport,230007,Contract Hire,12-Mar-2015,2872587-2363,"1,417.35",JEFF ANDERSON COACHES LTD.
Children and Adult Services,Education,Transport,230008,Contract Hire,12-Mar-2015,2872597-6/15,"2,100.00",KD TAXIS.
Children and Adult Services,Education,Transport,230008,Contract Hire,12-Mar-2015,2872599-010215,900.00,KEVIN EDMUNDSON.
Children and Adult Services,Education,Transport,230008,Contract Hire,12-Mar-2015,2872601-KW360,742.50,KWIK CABS.
Children and Adult Services,Education,Transport,230008,Contract Hire,12-Mar-2015,2872601-KW361,900.00,KWIK CABS.
Children and Adult Services,Education,Transport,230008,Contract Hire,12-Mar-2015,2872601-KW362,525.00,KWIK CABS.
Children and Adult Services,Education,Transport,230008,Contract Hire,12-Mar-2015,2872601-KW363,825.00,KWIK CABS.
Children and Adult Services,Education,Transport,230008,Contract Hire,12-Mar-2015,2872601-KW364,525.00,KWIK CABS.
Children and Adult Services,Education,Transport,230008,Contract Hire,12-Mar-2015,2872601-KW365,750.00,KWIK CABS.
Children and Adult Services,Education,Transport,230007,Contract Hire,12-Mar-2015,2872603-21665,"1,800.00",LEE`S COACHES LTD.
Children and Adult Services,Education,Transport,230007,Contract Hire,12-Mar-2015,2872620-TN017,630.00,MR THOMAS G GRIFFITHS T/A TNL TAXIS.
Children and Adult Services,Education,Transport,230008,Contract Hire,12-Mar-2015,2872648-15019,"1,485.00",RAPID MINIBUSES.
Children and Adult Services,Education,Transport,230008,Contract Hire,12-Mar-2015,2872648-15020,"1,266.00",RAPID MINIBUSES.
Children and Adult Services,Education,Transport,230008,Contract Hire,12-Mar-2015,2872648-15021,975.00,RAPID MINIBUSES.
Children and Adult Services,Education,Transport,230008,Contract Hire,12-Mar-2015,2872649-12427,"1,344.00",READYPAY LTD T/A PHOENIX TAXIS.
Children and Adult Services,Education,Transport,230008,Contract Hire,12-Mar-2015,2872661-73,"1,320.00",SAZ CABS.
Children and Adult Services,Education,Transport,230007,Contract Hire,12-Mar-2015,2872673-2511,"2,701.00",SNOWDON COACHES.
Children and Adult Services,Education,Transport,230007,Contract Hire,12-Mar-2015,2872680-12845,"1,650.00",STANLEY TRAVEL (NORTH EAST) LTD.
Children and Adult Services,Education,Transport,230008,Contract Hire,12-Mar-2015,2872680-12846,"1,356.80",STANLEY TRAVEL (NORTH EAST) LTD.
Children and Adult Services,Education,Transport,230008,Contract Hire,12-Mar-2015,2872680-12848,987.50,STANLEY TRAVEL (NORTH EAST) LTD.
Children and Adult Services,Education,Transport,230008,Contract Hire,12-Mar-2015,2872680-12850,"1,035.00",STANLEY TRAVEL (NORTH EAST) LTD.
Children and Adult Services,Education,Transport,230008,Contract Hire,12-Mar-2015,2872680-12851,585.00,STANLEY TRAVEL (NORTH EAST) LTD.
Children and Adult Services,Education,Transport,230008,Contract Hire,12-Mar-2015,2872680-12852,705.00,STANLEY TRAVEL (NORTH EAST) LTD.
Children and Adult Services,Education,Transport,230008,Contract Hire,12-Mar-2015,2872680-12853,778.50,STANLEY TRAVEL (NORTH EAST) LTD.
Children and Adult Services,Education,Transport,230009,Contract Hire,12-Mar-2015,2872680-12854,"1,605.00",STANLEY TRAVEL (NORTH EAST) LTD.
Children and Adult Services,Education,Transport,230006,Contract Hire,12-Mar-2015,2872680-12855,583.50,STANLEY TRAVEL (NORTH EAST) LTD.
Children and Adult Services,Education,Transport,230007,Contract Hire,12-Mar-2015,2872680-12856,"1,530.00",STANLEY TRAVEL (NORTH EAST) LTD.
Children and Adult Services,Education,Transport,230008,Contract Hire,12-Mar-2015,2872680-12857,525.00,STANLEY TRAVEL (NORTH EAST) LTD.
Children and Adult Services,Education,Transport,230007,Contract Hire,12-Mar-2015,2872680-12859,780.00,STANLEY TRAVEL (NORTH EAST) LTD.
Children and Adult Services,Education,Transport,230007,Contract Hire,12-Mar-2015,2872680-12860,"1,335.00",STANLEY TRAVEL (NORTH EAST) LTD.
Children and Adult Services,Education,Transport,230008,Contract Hire,12-Mar-2015,2872687-B714,895.00,TALBOTS TRAVEL LTD.
Children and Adult Services,Education,Transport,230007,Contract Hire,12-Mar-2015,2872688-01488,"1,071.00",TALLENTIRES LTD.
Children and Adult Services,Education,Transport,230008,Contract Hire,12-Mar-2015,2872700-ED287,600.00,TONYS TAXIS (A BIRCH).
Children and Adult Services,Education,Transport,230008,Contract Hire,12-Mar-2015,2872700-ED291,"1,708.00",TONYS TAXIS (A BIRCH).
Children and Adult Services,Education,Transport,230008,Contract Hire,12-Mar-2015,2872700-ED292,"1,188.00",TONYS TAXIS (A BIRCH).
Children and Adult Services,Education,Transport,230008,Contract Hire,12-Mar-2015,2872701-TS20-28,"1,500.00",TOP STAR TRAVEL.
Children and Adult Services,Education,Transport,230006,Contract Hire,12-Mar-2015,2872701-TSF601-06,594.00,TOP STAR TRAVEL.
Children and Adult Services,Education,Transport,230007,Contract Hire,12-Mar-2015,2872714-35-2/3/15,"1,120.00",WALTONS TAXIS.
Children and Adult Services,Education,Transport,230006,Contract Hire,12-Mar-2015,2872716-1011,"1,044.00",WE CONNOR.
Children and Adult Services,Education,Transport,230007,Contract Hire,12-Mar-2015,2872717-CONS/FEB/15/1,"2,523.00",WEARDALE MOTOR SERVICES LTD.
Children and Adult Services,Education,Transport,230006,Contract Hire,12-Mar-2015,2872718-5166,"1,143.00",WEARDALE PRIVATE HIRE.
Children and Adult Services,Education,Transport,230007,Contract Hire,12-Mar-2015,2872721-27215-3284,600.00,WIL TRAVEL.
Children and Adult Services,Education,Transport,230008,Contract Hire,13-Mar-2015,2872740-B41/SA,"1,736.00",AABAT TAXIS.
Children and Adult Services,Education,Transport,230008,Contract Hire,13-Mar-2015,2872740-B43/SC,825.00,AABAT TAXIS.
Children and Adult Services,Education,Transport,230008,Contract Hire,13-Mar-2015,2872740-B44/SD,882.00,AABAT TAXIS.
Children and Adult Services,Education,Transport,230008,Contract Hire,13-Mar-2015,2872740-B45/SE,"1,110.00",AABAT TAXIS.
Children and Adult Services,Education,Transport,230008,Contract Hire,13-Mar-2015,2872740-C14/AC,558.00,AABAT TAXIS.
Children and Adult Services,Education,Transport,230006,Contract Hire,13-Mar-2015,2872740-C17/GC,714.00,AABAT TAXIS.
Children and Adult Services,Education,Transport,230008,Contract Hire,13-Mar-2015,2872740-C3/SH,930.00,AABAT TAXIS.
Children and Adult Services,Education,Transport,230007,Contract Hire,13-Mar-2015,2872740-C4/SK,"1,568.80",AABAT TAXIS.
Children and Adult Services,Education,Transport,230007,Contract Hire,13-Mar-2015,2872740-C6/SM,525.00,AABAT TAXIS.
Children and Adult Services,Education,Transport,230007,Contract Hire,13-Mar-2015,2872740-C8/SP,660.00,AABAT TAXIS.
Children and Adult Services,Education,Transport,230007,Contract Hire,13-Mar-2015,2872750-SAS0215ESH,675.00,AIRPORT CARS DURHAM
Children and Adult Services,Education,Transport,230007,Contract Hire,13-Mar-2015,2872754-TX1474,"7,513.20",ALSTON ROAD GARAGE.
Children and Adult Services,Education,Transport,230007,Contract Hire,13-Mar-2015,2872754-TX1475,"4,555.11",ALSTON ROAD GARAGE.
Children and Adult Services,Education,Transport,230008,Contract Hire,13-Mar-2015,2872763-DCC2FEB15,"1,952.13",ATLAS TAXIS BISHOP AUCKLAND.
Children and Adult Services,Education,Transport,230008,Contract Hire,13-Mar-2015,2872781-06676,"1,155.00",BIRDS TAXIS.
Children and Adult Services,Education,Transport,230008,Contract Hire,13-Mar-2015,2872781-06677,"1,350.00",BIRDS TAXIS.
Children and Adult Services,Education,Transport,230008,Contract Hire,13-Mar-2015,2872781-06678,"1,515.00",BIRDS TAXIS.
Children and Adult Services,Education,Transport,230008,Contract Hire,13-Mar-2015,2872781-06679,"1,200.00",BIRDS TAXIS.
Children and Adult Services,Education,Transport,230008,Contract Hire,13-Mar-2015,2872781-06680,"1,470.00",BIRDS TAXIS.
Children and Adult Services,Education,Transport,230007,Contract Hire,13-Mar-2015,2872786-1113,"1,650.00",BOB SMITH COACHES.
Children and Adult Services,Education,Transport,230008,Contract Hire,13-Mar-2015,2872834-22/2015,"1,320.00",CHRIS`S TAXI.
Children and Adult Services,Education,Transport,230007,Contract Hire,13-Mar-2015,2872839-44754,"3,720.00",CJ GRIERSON.
Children and Adult Services,Education,Transport,230007,Contract Hire,13-Mar-2015,2872839-44755,"1,575.00",CJ GRIERSON.
Children and Adult Services,Education,Transport,230007,Contract Hire,13-Mar-2015,2872839-44756,"1,485.00",CJ GRIERSON.
Children and Adult Services,Education,Transport,230007,Contract Hire,13-Mar-2015,2872845-0001423,"1,050.00",COLORS TAXIS LTD.
Children and Adult Services,Education,Transfer Payments,510028,School Children,13-Mar-2015,2872860-CAS-03-2015-011,627.00,COUNDON & LEEHOLME EARLY YEARS CENTRE LTD.
Children and Adult Services,Education,Transport,230008,Contract Hire,13-Mar-2015,2872921-1502,"1,875.00",FRANK ATKINSON T/A FJ MINIBUS TRAVEL.
Children and Adult Services,Education,Transport,230007,Contract Hire,13-Mar-2015,2872929-17045,"3,270.00",GARNETTS LTD (COACHES).
Children and Adult Services,Education,Transport,230008,Contract Hire,13-Mar-2015,2872931-4954,"2,026.40",GATESHEAD CENTRAL TAXIS LTD.
Children and Adult Services,Education,Transport,230008,Contract Hire,13-Mar-2015,2872991-2360,"1,596.90",JEFF ANDERSON COACHES LTD.
Children and Adult Services,Education,Transport,230009,Contract Hire,13-Mar-2015,2873009-SI-71,660.00,L & M TAXIS.
Children and Adult Services,Education,Transport,230007,Contract Hire,13-Mar-2015,2873009-SI-72,540.00,L & M TAXIS.
Children and Adult Services,Education,Transport,230007,Contract Hire,13-Mar-2015,2873022-3125,"1,098.90",LINCAB TAXIS.
Children and Adult Services,Education,Transport,230008,Contract Hire,13-Mar-2015,2873029-93/15,750.00,LORRAINES TAXIS.
Children and Adult Services,Education,Transport,230008,Contract Hire,13-Mar-2015,2873041-MCD2044,"1,485.00",MCDONALD TRAVEL.
Children and Adult Services,Education,Transport,230008,Contract Hire,13-Mar-2015,2873043-00713,"1,560.00",MICHAELS TRAVEL.
Children and Adult Services,Education,Transport,230008,Contract Hire,13-Mar-2015,2873043-00714,"1,515.00",MICHAELS TRAVEL.
Children and Adult Services,Education,Transport,230008,Contract Hire,13-Mar-2015,2873054-702,850.00,MR AD HOWARD T/A TOFT HILL TAXIS.
Children and Adult Services,Education,Transport,230008,Contract Hire,13-Mar-2015,2873068-163,"2,040.00",N FORBES.
Children and Adult Services,Education,Transport,230007,Contract Hire,13-Mar-2015,2873216-23202D,785.00,T MOORE & SON.
Children and Adult Services,Education,Transport,230006,Contract Hire,13-Mar-2015,2873251-ED283,606.00,TONYS TAXIS (A BIRCH).
Children and Adult Services,Education,Transport,230008,Contract Hire,13-Mar-2015,2873251-ED288,"1,293.00",TONYS TAXIS (A BIRCH).
Children and Adult Services,Education,Transfer Payments,510028,School Children,16-Mar-2015,2873424-CAS-03-2015-057,"1,500.00",COTHERSTONE PRE SCHOOL PLAYGROUP.
Children and Adult Services,Education,Construction Work,908105,Construction work,16-Mar-2015,2873487-1325,714.00,F WARREN (ELECTRICAL) LTD.
Children and Adult Services,Education,Premises,106080,Centrally Controlled Rep and Maint,16-Mar-2015,2873543-7080462279,829.87,HONEYWELL NOVAR SYSTEMS LTD.
Children and Adult Services,Education,Premises,108099,Service Repairs and Maintenance,16-Mar-2015,2873569-10104,886.73,JC MAINTENANCE SERVICES LTD.
Children and Adult Services,Education,Third Party Payments,430100,Rendered by Private Contractors,16-Mar-2015,2873631-20/02/15,525.00,MR DAVID MCKEAGUE.
Children and Adult Services,Education,Third Party Payments,430100,Rendered by Private Contractors,16-Mar-2015,2873634-1,850.00,MR PHILLIP TAIT.
Children and Adult Services,Education,Supplies and Services,304259,Equipment and Materials,16-Mar-2015,2873662-INV0881863,585.00,NORMANS (BURTON ON TRENT) LTD.
Children and Adult Services,Education,Supplies and Services,384199,Miscellaneous Expenses,16-Mar-2015,2873754-00357M,"1,466.00",ROSE TREE ASSOCIATES LTD.
Children and Adult Services,Education,Supplies and Services,304259,Equipment and Materials,16-Mar-2015,2873783-7434,"12,849.89",SIGMA CATERING EQUIPMENT LTD.
Children and Adult Services,Education,Supplies and Services,324500,Provisions,16-Mar-2015,2873822-SI-TSW-1019821,"3,186.05",TAYLOR SHAW LTD.
Children and Adult Services,Education,Supplies and Services,324117,Provisions,16-Mar-2015,2873824-9410904550,727.90,TCHIBO COFFEE INTERNATIONAL LTD.
Children and Adult Services,Education,Transport,230006,Contract Hire,17-Mar-2015,2874535-523,504.00,A BARKER.
Children and Adult Services,Education,Transport,230007,Contract Hire,17-Mar-2015,2874540-136,"1,050.00",ACE TAXIS (WINSTON).
Children and Adult Services,Education,Transport,230008,Contract Hire,17-Mar-2015,2874561-459,"1,050.00",AT TAXIS LTD.
Children and Adult Services,Education,Transport,230008,Contract Hire,17-Mar-2015,2874561-461,885.00,AT TAXIS LTD.
Children and Adult Services,Education,Transport,230007,Contract Hire,17-Mar-2015,2874561-462,525.00,AT TAXIS LTD.
Children and Adult Services,Education,Transport,230007,Contract Hire,17-Mar-2015,2874567-DJ42260215,"3,600.00",BELL BROTHERS TRAVEL.
Children and Adult Services,Education,Transport,230007,Contract Hire,17-Mar-2015,2874573-36A,500.50,BOBS TAXIS.
Children and Adult Services,Education,Transport,230008,Contract Hire,17-Mar-2015,2874602-0001421,"2,030.00",COLORS TAXIS LTD.
Children and Adult Services,Education,Transport,230008,Contract Hire,17-Mar-2015,2874602-0001424,675.00,COLORS TAXIS LTD.
Children and Adult Services,Education,Transport,230006,Contract Hire,17-Mar-2015,2874602-0001427,876.00,COLORS TAXIS LTD.
Children and Adult Services,Education,Transport,230007,Contract Hire,17-Mar-2015,2874603-6035/02.15,"1,180.00",COLVIN`S CABS.
Children and Adult Services,Education,Transport,230006,Contract Hire,17-Mar-2015,2874615-5131,945.20,CROFT BUSINESS SERVICES (UK) LTD T/A CROFT TAXIS.
Children and Adult Services,Education,Transport,230008,Contract Hire,17-Mar-2015,2874615-5145,923.40,CROFT BUSINESS SERVICES (UK) LTD T/A CROFT TAXIS.
Children and Adult Services,Education,Transport,230006,Contract Hire,17-Mar-2015,2874615-5153,708.90,CROFT BUSINESS SERVICES (UK) LTD T/A CROFT TAXIS.
Children and Adult Services,Education,Transport,230006,Contract Hire,17-Mar-2015,2874615-5155,742.50,CROFT BUSINESS SERVICES (UK) LTD T/A CROFT TAXIS.
Children and Adult Services,Education,Transport,230007,Contract Hire,17-Mar-2015,2874615-5159,819.90,CROFT BUSINESS SERVICES (UK) LTD T/A CROFT TAXIS.
Children and Adult Services,Education,Transport,230008,Contract Hire,17-Mar-2015,2874615-5163,"1,311.00",CROFT BUSINESS SERVICES (UK) LTD T/A CROFT TAXIS.
Children and Adult Services,Education,Transport,230008,Contract Hire,17-Mar-2015,2874622-DI201502,660.00,D&I TAXIS.
Children and Adult Services,Education,Transport,230008,Contract Hire,17-Mar-2015,2874666-5229,"1,549.60",GATESHEAD CENTRAL TAXIS LTD.
Children and Adult Services,Education,Transport,230008,Contract Hire,17-Mar-2015,2874666-705/1627,"1,443.00",GATESHEAD CENTRAL TAXIS LTD.
Children and Adult Services,Education,Transport,230008,Contract Hire,17-Mar-2015,2874677-018A,888.00,GS PEARSON.
Children and Adult Services,Education,Transport,230006,Contract Hire,17-Mar-2015,2874699-0098,528.00,JACKSON`S TAXI.
Children and Adult Services,Education,Transport,230008,Contract Hire,17-Mar-2015,2874703-677,750.00,JDS PRIVATE HIRE DURHAM.
Children and Adult Services,Education,Transport,230008,Contract Hire,17-Mar-2015,2874707-28/02/15A,"1,500.00",JL EBDON.
Children and Adult Services,Education,Transport,230008,Contract Hire,17-Mar-2015,2874707-28/02/15C,900.00,JL EBDON.
Children and Adult Services,Education,Transport,230008,Contract Hire,17-Mar-2015,2874707-28/02/15D,"1,050.00",JL EBDON.
Children and Adult Services,Education,Transport,230008,Contract Hire,17-Mar-2015,2874707-28/02/15E,750.00,JL EBDON.
Children and Adult Services,Education,Transport,230008,Contract Hire,17-Mar-2015,2874707-280215F,"1,170.00",JL EBDON.
Children and Adult Services,Education,Transport,230008,Contract Hire,17-Mar-2015,2874722-106,575.70,LEE`S TAXIS.
Children and Adult Services,Education,Transport,230007,Contract Hire,17-Mar-2015,2874724-3144,"1,260.00",LINCAB TAXIS.
Children and Adult Services,Education,Transport,230008,Contract Hire,17-Mar-2015,2874724-3148,826.00,LINCAB TAXIS.
Children and Adult Services,Education,Transport,230008,Contract Hire,17-Mar-2015,2874724-3150,"1,898.75",LINCAB TAXIS.
Children and Adult Services,Education,Transport,230008,Contract Hire,17-Mar-2015,2874724-3154,967.50,LINCAB TAXIS.
Children and Adult Services,Education,Transport,230008,Contract Hire,17-Mar-2015,2874726-17,"1,125.00",M BEHAN T/A M & M`S TAXIS.
Children and Adult Services,Education,Transport,230007,Contract Hire,17-Mar-2015,2874730-5054,975.72,MAKEPEACE MOTORS.
Children and Adult Services,Education,Transport,230007,Contract Hire,17-Mar-2015,2874730-5055,862.56,MAKEPEACE MOTORS.
Children and Adult Services,Education,Transport,230007,Contract Hire,17-Mar-2015,2874730-5056,965.76,MAKEPEACE MOTORS.
Children and Adult Services,Education,Transport,230007,Contract Hire,17-Mar-2015,2874759-3662,"2,235.00",NIGHTINGALE COACHES.
Children and Adult Services,Education,Transport,230007,Contract Hire,17-Mar-2015,2874759-3663,"2,235.00",NIGHTINGALE COACHES.
